{"text_format":"1","workbook":"xlsx","n_sheets":3,"sheets":["البيانات الأساسية","شيت الترم الأول","شهادات الترم الأول"],"not_rendered":{"charts":0,"images":0,"macros":1,"external_links":0,"defined_names":5,"comments":0,"pivot_tables":0},"unopened":[],"bounds":{"document_bytes":16777216,"sheet_cells":100000,"rows_first":2000,"rows_last":500,"rows_between":2000,"halvings":0,"cell_chars":16384,"cell_head_chars":4096},"cells_cut":0,"cells_raw":0,"read":"whole","date_system":"1900"}

{"sheet":"البيانات الأساسية","index":0,"n_rows":9,"n_cols":18,"rows_kept":9,"cut":false,"hidden":false,"merged":[[0,0,0,1]]}
["البيانات الأساسية"]
["محافظة","الاسكندرية"]
["إدارة","المنتزه التعليمية"]
["مدرسة","محمد اسماعيل",null,null,null,null,null,null,null,null,null,null,null,null,null,null,null,"الصف الأول الإعدادي"]
["عام دراسي",null,null,null,null,null,null,null,null,null,null,null,null,null,null,null,null,"الصف الثاني الإعدادي"]
["الصف","الصف الأول الإعدادي"]
["رئيس الكنترول","محمد علي"]
["مدير المدرسة","محمود علي"]
["مدير إدارة المدرسة","السيد علي"]

{"sheet":"شيت الترم الأول","index":1,"n_rows":533,"n_cols":73,"rows_kept":533,"cut":false,"hidden":false,"merged":[[1,28,1,33],[2,1,2,3],[1,1,1,3],[0,1,0,3],[2,11,2,12],[1,12,1,27],[2,21,2,23],[2,13,2,14],[2,19,2,20],[4,0,6,0],[4,1,6,1],[4,3,5,3],[4,4,5,4],[4,6,6,6],[5,57,5,63],[4,12,4,14],[4,15,4,17],[4,39,4,41],[4,5,6,5],[4,7,6,7],[4,36,4,38],[4,18,4,21],[4,22,4,25],[4,26,4,28],[4,33,4,35],[4,29,4,32],[4,8,6,8],[4,9,4,11]]}
["محافظة",{"$f":"IF('البيانات الأساسية'!B2=\"\",\"\",'البيانات الأساسية'!B2)","v":"الاسكندرية"}]
["إدارة",{"$f":"IF('البيانات الأساسية'!B3=\"\",\"\",'البيانات الأساسية'!B3)","v":"المنتزه التعليمية"},null,null,null,null,null,null,null,null,null,null,"كشف رصد درجات نصف العـام \" ينايـر \" للصـــــف",null,null,null,null,null,null,null,null,null,null,null,null,null,null,null,{"$f":"IF('البيانات الأساسية'!B6=\"\",\"\",'البيانات الأساسية'!B6)","v":"الصف الأول الإعدادي"}]
["مدرسة",{"$f":"IF('البيانات الأساسية'!B4=\"\",\"\",'البيانات الأساسية'!B4)","v":"محمد اسماعيل"},null,null,null,null,null,null,null,null,null,null,null,null,null,null,null,null,null,"عام دراسي",null,{"$f":"IF('البيانات الأساسية'!B5=\"\",\"\",'البيانات الأساسية'!B5)","v":""},null,null,null,{"$f":"COUNTA(C8:C507)","v":10},{"$f":"COUNTA(C8:C107)","v":10},{"$f":"COUNTA(C108:C207)","v":0},{"$f":"COUNTA(C208:C307)","v":0},{"$f":"COUNTA(C308:C407)","v":0},{"$f":"COUNTA(C408:C507)","v":0}]
[]
["مسلسل","رقم الجلوس",null,"الفصل","رقم اللجنة ","الديانة","حالة القيد","الرقم السري","الرقم السري","لغة عربية وخط",null,null,"لغة إنجليزية",null,null,"دراسات",null,null,"رياضيات",null,null,null,"العلـــوم",null,null,null,"تربية فنية",null,null,"الكمبيوتر وتكنولوجيا المعلومات",null,null,null,"نشاط مصاحب",null,null,"تربية دينية",null,null,"لغة فرنسية",null,null,null,null,null,null,null,"غ"]
[null,null,"اسم الطالب",null,null,null,null,null,null,"ملف إنجاز الفصل الدراسي الأول","اختبار الفصل الدراسي الأول","المجموع","ملف إنجاز الفصل الدراسي الأول","اختبار الفصل الدراسي الأول","المجموع","ملف إنجاز الفصل الدراسي الأول","اختبار الفصل الدراسي الأول","المجموع","ملف إنجاز الفصل الدراسي الأول","اختبار الجبر والإحصاء","اختبار الهندسة","المجموع","ملف إنجاز الفصل الدراسي الأول","اختبار العملي","اختبار التحريري","المجموع","ملف إنجاز الفصل الدراسي الأول","اختبار الفصل الدراسي الأول","المجموع","ملف إنجاز الفصل الدراسي الأول","اختبار العملي","اختبار التحريري","المجموع","نشاط مصاحب (1)","نشاط مصاحب (2)","المجموع","ملف إنجاز الفصل الدراسي الأول","اختبار الفصل الدراسي الأول","المجموع","ملف إنجاز الفصل الدراسي الأول","اختبار الفصل الدراسي الأول","المجموع",null,null,null,null,null,"صفر",null,null,null,null,null,null,null,null,null,"كشوف المناداة",null,null,null,null,null,null,null,null,null,null,null,null,null,null,"المجموع الكلي 10 أوائل"]
[null,null,null,null,null,null,null,null,null,50,50,100,50,50,100,50,50,100,50,25,25,100,50,10,40,100,50,50,100,50,10,40,100,5,5,10,50,50,100,50,50,100,null,null,null,null,null,null,null,null,"مسلم","باق",null,null,null,"مجموع","ترتيب",null,null,null,null,null,null,null,null,null,null,null,null,null,null,null,{"$f":"SUM(L8,O8,R8,V8,Z8,AC8,AG8)","v":680}]
[{"$f":"IF(B8=\"\",\"\",ROW()-7)","v":1},101,"احمد السيد",null,null,"مسلم","مستجد",null,{"$f":"IF(H8<>\"\",(H8),\"\")","v":""},50,50,100,50,50,100,50,50,100,40,20,20,80,50,10,40,100,50,50,100,50,10,40,100,5,5,10,50,50,100,50,50,100,null,null,null,null,null,0,null,null,"مسيحي","مستجد",null,1,null,{"$f":"SUM(L8,O8,R8,V8,Z8,AC8,AG8)","v":680},{"$f":"IF(OR(C8=\"\",Z8=\"\"),\"\",COUNTIF(BD$8:BD$600,\">\"&BD8)+1)","v":1},{"$f":"IF(B8=\"\",\"\",B8)","v":101},{"$f":"IF(C8=\"\",\"\",C8)","v":"احمد السيد"},{"$f":"IF(D8=\"\",\"\",D8)","v":""},{"$f":"IF(E8=\"\",\"\",E8)","v":""},{"$f":"IF(F8=\"\",\"\",F8)","v":"مسلم"},null,1,1,null,null,null,null,null,null,null,{"$f":"SUM(L9,O9,R9,V9,Z9,AC9,AG9)","v":680}]
[2,102,"باسل علي",null,null,"مسلم","مستجد",null,"",50,50,100,50,50,100,50,50,100,40,20,20,80,50,10,40,100,50,50,100,50,10,40,100,5,5,10,50,50,100,50,50,100,null,null,null,null,null,0.5,null,null,null,null,null,null,2,{"$f":"SUM(L9,O9,R9,V9,Z9,AC9,AG9)","v":680},{"$f":"IF(OR(C9=\"\",Z9=\"\"),\"\",COUNTIF(BD$8:BD$600,\">\"&BD9)+1)","v":1},{"$f":"IF(B9=\"\",\"\",B9)","v":102},{"$f":"IF(C9=\"\",\"\",C9)","v":"باسل علي"},{"$f":"IF(D9=\"\",\"\",D9)","v":""},{"$f":"IF(E9=\"\",\"\",E9)","v":""},{"$f":"IF(F9=\"\",\"\",F9)","v":"مسلم"},null,2,null,2,null,null,null,null,null,null,680]
[3,103,"توفيق محمود",null,null,"مسلم","مستجد",null,"",50,50,100,50,50,100,50,50,100,40,20,20,80,50,10,40,100,50,50,100,50,10,40,100,5,5,10,50,50,100,50,50,100,null,null,null,null,null,1,null,null,null,null,null,3,null,680,1,103,"توفيق محمود","","","مسلم",null,3,null,null,3,null,null,null,null,null,680]
[4,104,"جابر مخمد",null,null,"مسلم","مستجد",null,"",50,50,100,50,50,100,50,50,100,40,20,20,80,50,10,40,100,50,50,100,50,10,40,100,5,5,10,50,50,100,50,50,100,null,null,null,null,null,1.5,null,null,null,null,null,null,4,680,1,104,"جابر مخمد","","","مسلم",null,4,null,null,null,4,null,null,null,null,680]
[5,105,"خالد مصطفى",null,null,"مسلم","مستجد",null,"",50,50,100,50,50,100,50,50,100,40,20,20,80,50,10,40,100,50,50,100,50,10,40,100,5,5,10,50,50,100,50,50,100,null,null,null,null,null,2,null,null,null,null,null,5,null,680,1,105,"خالد مصطفى","","","مسلم",null,5,null,null,null,null,5,null,null,null,680]
[6,106,"سليم مراد",null,null,"مسلم","مستجد",null,"",50,50,100,50,50,100,50,50,100,40,20,20,80,50,10,40,100,50,50,100,50,10,40,100,5,5,10,50,50,100,50,50,100,null,null,null,null,null,2.5,null,null,null,null,null,null,6,680,1,106,"سليم مراد","","","مسلم",null,6,null,null,null,null,null,6,null,null,680]
[7,107,"شاكر محمود",null,null,"مسلم","مستجد",null,"",50,50,100,50,50,100,50,50,100,40,20,20,80,50,10,40,100,50,50,100,50,10,40,100,5,5,10,50,50,100,50,50,100,null,null,null,null,null,3,null,null,null,null,null,7,null,680,1,107,"شاكر محمود","","","مسلم",null,7,null,null,null,null,null,null,7,null,680]
[8,108,"ماهر السيد",null,null,"مسلم","مستجد",null,"",50,50,100,50,50,100,50,50,100,40,20,20,80,50,10,40,100,50,50,100,50,10,40,100,5,5,10,50,50,100,50,50,100,null,null,null,null,null,3.5,null,null,null,null,null,null,8,680,1,108,"ماهر السيد","","","مسلم",null,8,null,null,null,null,null,null,null,8,680]
[9,109,"محمد حامد",null,null,"مسلم","مستجد",null,"",50,50,100,50,50,100,50,50,100,40,20,20,80,50,10,40,100,50,50,100,50,10,40,100,5,5,10,50,50,100,50,50,100,null,null,null,null,null,4,null,null,null,null,null,9,null,680,1,109,"محمد حامد","","","مسلم",null,9,9,null,null,null,null,null,null,null,680]
[10,110,"محمد جابر علي",null,null,"مسلم","مستجد",null,"",50,50,100,50,50,100,50,50,100,40,20,20,80,50,10,40,100,50,50,100,50,10,40,100,5,5,10,50,50,100,50,50,100,null,null,null,null,null,4.5,null,null,null,null,null,null,10,680,1,110,"محمد جابر علي","","","مسلم",null,10,null,10,null,null,null,null,null,null,0]
["",null,null,null,null,null,null,null,"",null,null,null,null,null,null,null,null,null,null,null,null,null,null,null,null,null,null,null,null,null,null,null,null,null,null,null,null,null,null,null,null,null,null,null,null,null,null,5,null,null,null,null,null,11,null,0,"","","","","","",null,11,null,null,11,null,null,null,null,null,0]
["",null,null,null,null,null,null,null,"",null,null,null,null,null,null,null,null,null,null,null,null,null,null,null,null,null,null,null,null,null,null,null,null,null,null,null,null,null,null,null,null,null,null,null,null,null,null,5.5,null,null,null,null,null,null,12,0,"","","","","","",null,12,null,null,null,12,null,null,null,null,0]
["",null,null,null,null,null,null,null,"",null,null,null,null,null,null,null,null,null,null,null,null,null,null,null,null,null,null,null,null,null,null,null,null,null,null,null,null,null,null,null,null,null,null,null,null,null,null,6,null,null,null,null,null,13,null,0,"","","","","","",null,13,null,null,null,null,13,null,null,null,0]
["",null,null,null,null,null,null,null,"",null,null,null,null,null,null,null,null,null,null,null,null,null,null,null,null,null,null,null,null,null,null,null,null,null,null,null,null,null,null,null,null,null,null,null,null,null,null,6.5,null,null,null,null,null,null,14,0,"","","","","","",null,14,null,null,null,null,null,14,null,null,0]
["",null,null,null,null,null,null,null,"",null,null,null,null,null,null,null,null,null,null,null,null,null,null,null,null,null,null,null,null,null,null,null,null,null,null,null,null,null,null,null,null,null,null,null,null,null,null,7,null,null,null,null,null,15,null,0,"","","","","","",null,15,null,null,null,null,null,null,15,null,0]
["",null,null,null,null,null,null,null,"",null,null,null,null,null,null,null,null,null,null,null,null,null,null,null,null,null,null,null,null,null,null,null,null,null,null,null,null,null,null,null,null,null,null,null,null,null,null,7.5,null,null,null,null,null,null,16,0,"","","","","","",null,16,null,null,null,null,null,null,null,16,0]
["",null,null,null,null,null,null,null,"",null,null,null,null,null,null,null,null,null,null,null,null,null,null,null,null,null,null,null,null,null,null,null,null,null,null,null,null,null,null,null,null,null,null,null,null,null,null,8,null,null,null,null,null,17,null,0,"","","","","","",null,17,17,null,null,null,null,null,null,null,0]
["",null,null,null,null,null,null,null,"",null,null,null,null,null,null,null,null,null,null,null,null,null,null,null,null,null,null,null,null,null,null,null,null,null,null,null,null,null,null,null,null,null,null,null,null,null,null,8.5,null,null,null,null,null,null,18,0,"","","","","","",null,18,null,18,null,null,null,null,null,null,0]
["",null,null,null,null,null,null,null,"",null,null,null,null,null,null,null,null,null,null,null,null,null,null,null,null,null,null,null,null,null,null,null,null,null,null,null,null,null,null,null,null,null,null,null,null,null,null,9,null,null,null,null,null,19,null,0,"","","","","","",null,19,null,null,19,null,null,null,null,null,0]
["",null,null,null,null,null,null,null,"",null,null,null,null,null,null,null,null,null,null,null,null,null,null,null,null,null,null,null,null,null,null,null,null,null,null,null,null,null,null,null,null,null,null,null,null,null,null,9.5,null,null,null,null,null,null,20,0,"","","","","","",null,20,null,null,null,20,null,null,null,null,0]
["",null,null,null,null,null,null,null,"",null,null,null,null,null,null,null,null,null,null,null,null,null,null,null,null,null,null,null,null,null,null,null,null,null,null,null,null,null,null,null,null,null,null,null,null,null,null,10,null,null,null,null,null,21,null,0,"","","","","","",null,21,null,null,null,null,21,null,null,null,0]
["",null,null,null,null,null,null,null,"",null,null,null,null,null,null,null,null,null,null,null,null,null,null,null,null,null,null,null,null,null,null,null,null,null,null,null,null,null,null,null,null,null,null,null,null,null,null,10.5,null,null,null,null,null,null,22,0,"","","","","","",null,22,null,null,null,null,null,22,null,null,0]
["",null,null,null,null,null,null,null,"",null,null,null,null,null,null,null,null,null,null,null,null,null,null,null,null,null,null,null,null,null,null,null,null,null,null,null,null,null,null,null,null,null,null,null,null,null,null,11,null,null,null,null,null,23,null,0,"","","","","","",null,23,null,null,null,null,null,null,23,null,0]
["",null,null,null,null,null,null,null,"",null,null,null,null,null,null,null,null,null,null,null,null,null,null,null,null,null,null,null,null,null,null,null,null,null,null,null,null,null,null,null,null,null,null,null,null,null,null,11.5,null,null,null,null,null,null,24,0,"","","","","","",null,24,null,null,null,null,null,null,null,24,0]
["",null,null,null,null,null,null,null,"",null,null,null,null,null,null,null,null,null,null,null,null,null,null,null,null,null,null,null,null,null,null,null,null,null,null,null,null,null,null,null,null,null,null,null,null,null,null,12,null,null,null,null,null,25,null,0,"","","","","","",null,25,25,null,null,null,null,null,null,null,0]
["",null,null,null,null,null,null,null,"",null,null,null,null,null,null,null,null,null,null,null,null,null,null,null,null,null,null,null,null,null,null,null,null,null,null,null,null,null,null,null,null,null,null,null,null,null,null,12.5,null,null,null,null,null,null,26,0,"","","","","","",null,26,null,26,null,null,null,null,null,null,0]
["",null,null,null,null,null,null,null,"",null,null,null,null,null,null,null,null,null,null,null,null,null,null,null,null,null,null,null,null,null,null,null,null,null,null,null,null,null,null,null,null,null,null,null,null,null,null,13,null,null,null,null,null,27,null,0,"","","","","","",null,27,null,null,27,null,null,null,null,null,0]
["",null,null,null,null,null,null,null,"",null,null,null,null,null,null,null,null,null,null,null,null,null,null,null,null,null,null,null,null,null,null,null,null,null,null,null,null,null,null,null,null,null,null,null,null,null,null,13.5,null,null,null,null,null,null,28,0,"","","","","","",null,28,null,null,null,28,null,null,null,null,0]
["",null,null,null,null,null,null,null,"",null,null,null,null,null,null,null,null,null,null,null,null,null,null,null,null,null,null,null,null,null,null,null,null,null,null,null,null,null,null,null,null,null,null,null,null,null,null,14,null,null,null,null,null,29,null,0,"","","","","","",null,29,null,null,null,null,29,null,null,null,0]
["",null,null,null,null,null,null,null,"",null,null,null,null,null,null,null,null,null,null,null,null,null,null,null,null,null,null,null,null,null,null,null,null,null,null,null,null,null,null,null,null,null,null,null,null,null,null,14.5,null,null,null,null,null,null,30,0,"","","","","","",null,30,null,null,null,null,null,30,null,null,0]
["",null,null,null,null,null,null,null,"",null,null,null,null,null,null,null,null,null,null,null,null,null,null,null,null,null,null,null,null,null,null,null,null,null,null,null,null,null,null,null,null,null,null,null,null,null,null,15,null,null,null,null,null,31,null,0,"","","","","","",null,31,null,null,null,null,null,null,31,null,0]
["",null,null,null,null,null,null,null,"",null,null,null,null,null,null,null,null,null,null,null,null,null,null,null,null,null,null,null,null,null,null,null,null,null,null,null,null,null,null,null,null,null,null,null,null,null,null,15.5,null,null,null,null,null,null,32,0,"","","","","","",null,32,null,null,null,null,null,null,null,32,0]
["",null,null,null,null,null,null,null,"",null,null,null,null,null,null,null,null,null,null,null,null,null,null,null,null,null,null,null,null,null,null,null,null,null,null,null,null,null,null,null,null,null,null,null,null,null,null,16,null,null,null,null,null,33,null,0,"","","","","","",null,33,33,null,null,null,null,null,null,null,0]
["",null,null,null,null,null,null,null,"",null,null,null,null,null,null,null,null,null,null,null,null,null,null,null,null,null,null,null,null,null,null,null,null,null,null,null,null,null,null,null,null,null,null,null,null,null,null,16.5,null,null,null,null,null,null,34,0,"","","","","","",null,34,null,34,null,null,null,null,null,null,0]
["",null,null,null,null,null,null,null,"",null,null,null,null,null,null,null,null,null,null,null,null,null,null,null,null,null,null,null,null,null,null,null,null,null,null,null,null,null,null,null,null,null,null,null,null,null,null,17,null,null,null,null,null,35,null,0,"","","","","","",null,35,null,null,35,null,null,null,null,null,0]
["",null,null,null,null,null,null,null,"",null,null,null,null,null,null,null,null,null,null,null,null,null,null,null,null,null,null,null,null,null,null,null,null,null,null,null,null,null,null,null,null,null,null,null,null,null,null,17.5,null,null,null,null,null,null,36,0,"","","","","","",null,36,null,null,null,36,null,null,null,null,0]
["",null,null,null,null,null,null,null,"",null,null,null,null,null,null,null,null,null,null,null,null,null,null,null,null,null,null,null,null,null,null,null,null,null,null,null,null,null,null,null,null,null,null,null,null,null,null,18,null,null,null,null,null,37,null,0,"","","","","","",null,37,null,null,null,null,37,null,null,null,0]
["",null,null,null,null,null,null,null,"",null,null,null,null,null,null,null,null,null,null,null,null,null,null,null,null,null,null,null,null,null,null,null,null,null,null,null,null,null,null,null,null,null,null,null,null,null,null,18.5,null,null,null,null,null,null,38,0,"","","","","","",null,38,null,null,null,null,null,38,null,null,0]
["",null,null,null,null,null,null,null,"",null,null,null,null,null,null,null,null,null,null,null,null,null,null,null,null,null,null,null,null,null,null,null,null,null,null,null,null,null,null,null,null,null,null,null,null,null,null,19,null,null,null,null,null,39,null,0,"","","","","","",null,39,null,null,null,null,null,null,39,null,0]
["",null,null,null,null,null,null,null,"",null,null,null,null,null,null,null,null,null,null,null,null,null,null,null,null,null,null,null,null,null,null,null,null,null,null,null,null,null,null,null,null,null,null,null,null,null,null,19.5,null,null,null,null,null,null,40,0,"","","","","","",null,40,null,null,null,null,null,null,null,40,0]
["",null,null,null,null,null,null,null,"",null,null,null,null,null,null,null,null,null,null,null,null,null,null,null,null,null,null,null,null,null,null,null,null,null,null,null,null,null,null,null,null,null,null,null,null,null,null,20,null,null,null,null,null,41,null,0,"","","","","","",null,41,41,null,null,null,null,null,null,null,0]
["",null,null,null,null,null,null,null,"",null,null,null,null,null,null,null,null,null,null,null,null,null,null,null,null,null,null,null,null,null,null,null,null,null,null,null,null,null,null,null,null,null,null,null,null,null,null,20.5,null,null,null,null,null,null,42,0,"","","","","","",null,42,null,42,null,null,null,null,null,null,0]
["",null,null,null,null,null,null,null,"",null,null,null,null,null,null,null,null,null,null,null,null,null,null,null,null,null,null,null,null,null,null,null,null,null,null,null,null,null,null,null,null,null,null,null,null,null,null,21,null,null,null,null,null,43,null,0,"","","","","","",null,43,null,null,43,null,null,null,null,null,0]
["",null,null,null,null,null,null,null,"",null,null,null,null,null,null,null,null,null,null,null,null,null,null,null,null,null,null,null,null,null,null,null,null,null,null,null,null,null,null,null,null,null,null,null,null,null,null,21.5,null,null,null,null,null,null,44,0,"","","","","","",null,44,null,null,null,44,null,null,null,null,0]
["",null,null,null,null,null,null,null,"",null,null,null,null,null,null,null,null,null,null,null,null,null,null,null,null,null,null,null,null,null,null,null,null,null,null,null,null,null,null,null,null,null,null,null,null,null,null,22,null,null,null,null,null,45,null,0,"","","","","","",null,45,null,null,null,null,45,null,null,null,0]
["",null,null,null,null,null,null,null,"",null,null,null,null,null,null,null,null,null,null,null,null,null,null,null,null,null,null,null,null,null,null,null,null,null,null,null,null,null,null,null,null,null,null,null,null,null,null,22.5,null,null,null,null,null,null,46,0,"","","","","","",null,46,null,null,null,null,null,46,null,null,0]
["",null,null,null,null,null,null,null,"",null,null,null,null,null,null,null,null,null,null,null,null,null,null,null,null,null,null,null,null,null,null,null,null,null,null,null,null,null,null,null,null,null,null,null,null,null,null,23,null,null,null,null,null,47,null,0,"","","","","","",null,47,null,null,null,null,null,null,47,null,0]
["",null,null,null,null,null,null,null,"",null,null,null,null,null,null,null,null,null,null,null,null,null,null,null,null,null,null,null,null,null,null,null,null,null,null,null,null,null,null,null,null,null,null,null,null,null,null,23.5,null,null,null,null,null,null,48,0,"","","","","","",null,48,null,null,null,null,null,null,null,48,0]
["",null,null,null,null,null,null,null,"",null,null,null,null,null,null,null,null,null,null,null,null,null,null,null,null,null,null,null,null,null,null,null,null,null,null,null,null,null,null,null,null,null,null,null,null,null,null,24,null,null,null,null,null,49,null,0,"","","","","","",null,49,49,null,null,null,null,null,null,null,0]
["",null,null,null,null,null,null,null,"",null,null,null,null,null,null,null,null,null,null,null,null,null,null,null,null,null,null,null,null,null,null,null,null,null,null,null,null,null,null,null,null,null,null,null,null,null,null,24.5,null,null,null,null,null,null,50,0,"","","","","","",null,50,null,50,null,null,null,null,null,null,0]
["",null,null,null,null,null,null,null,"",null,null,null,null,null,null,null,null,null,null,null,null,null,null,null,null,null,null,null,null,null,null,null,null,null,null,null,null,null,null,null,null,null,null,null,null,null,null,25,null,null,null,null,null,51,null,0,"","","","","","",null,51,null,null,51,null,null,null,null,null,0]
["",null,null,null,null,null,null,null,"",null,null,null,null,null,null,null,null,null,null,null,null,null,null,null,null,null,null,null,null,null,null,null,null,null,null,null,null,null,null,null,null,null,null,null,null,null,null,25.5,null,null,null,null,null,null,52,0,"","","","","","",null,52,null,null,null,52,null,null,null,null,0]
["",null,null,null,null,null,null,null,"",null,null,null,null,null,null,null,null,null,null,null,null,null,null,null,null,null,null,null,null,null,null,null,null,null,null,null,null,null,null,null,null,null,null,null,null,null,null,26,null,null,null,null,null,53,null,0,"","","","","","",null,53,null,null,null,null,53,null,null,null,0]
["",null,null,null,null,null,null,null,"",null,null,null,null,null,null,null,null,null,null,null,null,null,null,null,null,null,null,null,null,null,null,null,null,null,null,null,null,null,null,null,null,null,null,null,null,null,null,26.5,null,null,null,null,null,null,54,0,"","","","","","",null,54,null,null,null,null,null,54,null,null,0]
["",null,null,null,null,null,null,null,"",null,null,null,null,null,null,null,null,null,null,null,null,null,null,null,null,null,null,null,null,null,null,null,null,null,null,null,null,null,null,null,null,null,null,null,null,null,null,27,null,null,null,null,null,55,null,0,"","","","","","",null,55,null,null,null,null,null,null,55,null,0]
["",null,null,null,null,null,null,null,"",null,null,null,null,null,null,null,null,null,null,null,null,null,null,null,null,null,null,null,null,null,null,null,null,null,null,null,null,null,null,null,null,null,null,null,null,null,null,27.5,null,null,null,null,null,null,56,0,"","","","","","",null,56,null,null,null,null,null,null,null,56,0]
["",null,null,null,null,null,null,null,"",null,null,null,null,null,null,null,null,null,null,null,null,null,null,null,null,null,null,null,null,null,null,null,null,null,null,null,null,null,null,null,null,null,null,null,null,null,null,28,null,null,null,null,null,57,null,0,"","","","","","",null,57,57,null,null,null,null,null,null,null,0]
["",null,null,null,null,null,null,null,"",null,null,null,null,null,null,null,null,null,null,null,null,null,null,null,null,null,null,null,null,null,null,null,null,null,null,null,null,null,null,null,null,null,null,null,null,null,null,28.5,null,null,null,null,null,null,58,0,"","","","","","",null,58,null,58,null,null,null,null,null,null,0]
["",null,null,null,null,null,null,null,"",null,null,null,null,null,null,null,null,null,null,null,null,null,null,null,null,null,null,null,null,null,null,null,null,null,null,null,null,null,null,null,null,null,null,null,null,null,null,29,null,null,null,null,null,59,null,0,"","","","","","",null,59,null,null,59,null,null,null,null,null,0]
["",null,null,null,null,null,null,null,"",null,null,null,null,null,null,null,null,null,null,null,null,null,null,null,null,null,null,null,null,null,null,null,null,null,null,null,null,null,null,null,null,null,null,null,null,null,null,29.5,null,null,null,null,null,null,60,0,"","","","","","",null,60,null,null,null,60,null,null,null,null,0]
["",null,null,null,null,null,null,null,"",null,null,null,null,null,null,null,null,null,null,null,null,null,null,null,null,null,null,null,null,null,null,null,null,null,null,null,null,null,null,null,null,null,null,null,null,null,null,30,null,null,null,null,null,61,null,0,"","","","","","",null,61,null,null,null,null,61,null,null,null,0]
["",null,null,null,null,null,null,null,"",null,null,null,null,null,null,null,null,null,null,null,null,null,null,null,null,null,null,null,null,null,null,null,null,null,null,null,null,null,null,null,null,null,null,null,null,null,null,30.5,null,null,null,null,null,null,62,0,"","","","","","",null,62,null,null,null,null,null,62,null,null,0]
["",null,null,null,null,null,null,null,"",null,null,null,null,null,null,null,null,null,null,null,null,null,null,null,null,null,null,null,null,null,null,null,null,null,null,null,null,null,null,null,null,null,null,null,null,null,null,31,null,null,null,null,null,63,null,0,"","","","","","",null,63,null,null,null,null,null,null,63,null,0]
["",null,null,null,null,null,null,null,"",null,null,null,null,null,null,null,null,null,null,null,null,null,null,null,null,null,null,null,null,null,null,null,null,null,null,null,null,null,null,null,null,null,null,null,null,null,null,31.5,null,null,null,null,null,null,64,0,"","","","","","",null,64,null,null,null,null,null,null,null,64,0]
[{"$f":"IF(B72=\"\",\"\",ROW()-7)","v":""},null,null,null,null,null,null,null,{"$f":"IF(H72<>\"\",(H72),\"\")","v":""},null,null,null,null,null,null,null,null,null,null,null,null,null,null,null,null,null,null,null,null,null,null,null,null,null,null,null,null,null,null,null,null,null,null,null,null,null,null,32,null,null,null,null,null,65,null,0,"","","","","","",null,65,65,null,null,null,null,null,null,null,{"$f":"SUM(L73,O73,R73,V73,Z73,AC73,AG73)","v":0}]
["",null,null,null,null,null,null,null,"",null,null,null,null,null,null,null,null,null,null,null,null,null,null,null,null,null,null,null,null,null,null,null,null,null,null,null,null,null,null,null,null,null,null,null,null,null,null,32.5,null,null,null,null,null,null,66,{"$f":"SUM(L73,O73,R73,V73,Z73,AC73,AG73)","v":0},{"$f":"IF(OR(C73=\"\",Z73=\"\"),\"\",COUNTIF(BD$8:BD$600,\">\"&BD73)+1)","v":""},{"$f":"IF(B73=\"\",\"\",B73)","v":""},{"$f":"IF(C73=\"\",\"\",C73)","v":""},{"$f":"IF(D73=\"\",\"\",D73)","v":""},{"$f":"IF(E73=\"\",\"\",E73)","v":""},{"$f":"IF(F73=\"\",\"\",F73)","v":""},null,66,null,66,null,null,null,null,null,null,0]
["",null,null,null,null,null,null,null,"",null,null,null,null,null,null,null,null,null,null,null,null,null,null,null,null,null,null,null,null,null,null,null,null,null,null,null,null,null,null,null,null,null,null,null,null,null,null,33,null,null,null,null,null,67,null,0,"","","","","","",null,67,null,null,67,null,null,null,null,null,0]
["",null,null,null,null,null,null,null,"",null,null,null,null,null,null,null,null,null,null,null,null,null,null,null,null,null,null,null,null,null,null,null,null,null,null,null,null,null,null,null,null,null,null,null,null,null,null,33.5,null,null,null,null,null,null,68,0,"","","","","","",null,68,null,null,null,68,null,null,null,null,0]
["",null,null,null,null,null,null,null,"",null,null,null,null,null,null,null,null,null,null,null,null,null,null,null,null,null,null,null,null,null,null,null,null,null,null,null,null,null,null,null,null,null,null,null,null,null,null,34,null,null,null,null,null,69,null,0,"","","","","","",null,69,null,null,null,null,69,null,null,null,0]
["",null,null,null,null,null,null,null,"",null,null,null,null,null,null,null,null,null,null,null,null,null,null,null,null,null,null,null,null,null,null,null,null,null,null,null,null,null,null,null,null,null,null,null,null,null,null,34.5,null,null,null,null,null,null,70,0,"","","","","","",null,70,null,null,null,null,null,70,null,null,0]
["",null,null,null,null,null,null,null,"",null,null,null,null,null,null,null,null,null,null,null,null,null,null,null,null,null,null,null,null,null,null,null,null,null,null,null,null,null,null,null,null,null,null,null,null,null,null,35,null,null,null,null,null,71,null,0,"","","","","","",null,71,null,null,null,null,null,null,71,null,0]
["",null,null,null,null,null,null,null,"",null,null,null,null,null,null,null,null,null,null,null,null,null,null,null,null,null,null,null,null,null,null,null,null,null,null,null,null,null,null,null,null,null,null,null,null,null,null,35.5,null,null,null,null,null,null,72,0,"","","","","","",null,72,null,null,null,null,null,null,null,72,0]
["",null,null,null,null,null,null,null,"",null,null,null,null,null,null,null,null,null,null,null,null,null,null,null,null,null,null,null,null,null,null,null,null,null,null,null,null,null,null,null,null,null,null,null,null,null,null,36,null,null,null,null,null,73,null,0,"","","","","","",null,73,73,null,null,null,null,null,null,null,0]
["",null,null,null,null,null,null,null,"",null,null,null,null,null,null,null,null,null,null,null,null,null,null,null,null,null,null,null,null,null,null,null,null,null,null,null,null,null,null,null,null,null,null,null,null,null,null,36.5,null,null,null,null,null,null,74,0,"","","","","","",null,74,null,74,null,null,null,null,null,null,0]
["",null,null,null,null,null,null,null,"",null,null,null,null,null,null,null,null,null,null,null,null,null,null,null,null,null,null,null,null,null,null,null,null,null,null,null,null,null,null,null,null,null,null,null,null,null,null,37,null,null,null,null,null,75,null,0,"","","","","","",null,75,null,null,75,null,null,null,null,null,0]
["",null,null,null,null,null,null,null,"",null,null,null,null,null,null,null,null,null,null,null,null,null,null,null,null,null,null,null,null,null,null,null,null,null,null,null,null,null,null,null,null,null,null,null,null,null,null,37.5,null,null,null,null,null,null,76,0,"","","","","","",null,76,null,null,null,76,null,null,null,null,0]
["",null,null,null,null,null,null,null,"",null,null,null,null,null,null,null,null,null,null,null,null,null,null,null,null,null,null,null,null,null,null,null,null,null,null,null,null,null,null,null,null,null,null,null,null,null,null,38,null,null,null,null,null,77,null,0,"","","","","","",null,77,null,null,null,null,77,null,null,null,0]
["",null,null,null,null,null,null,null,"",null,null,null,null,null,null,null,null,null,null,null,null,null,null,null,null,null,null,null,null,null,null,null,null,null,null,null,null,null,null,null,null,null,null,null,null,null,null,38.5,null,null,null,null,null,null,78,0,"","","","","","",null,78,null,null,null,null,null,78,null,null,0]
["",null,null,null,null,null,null,null,"",null,null,null,null,null,null,null,null,null,null,null,null,null,null,null,null,null,null,null,null,null,null,null,null,null,null,null,null,null,null,null,null,null,null,null,null,null,null,39,null,null,null,null,null,79,null,0,"","","","","","",null,79,null,null,null,null,null,null,79,null,0]
["",null,null,null,null,null,null,null,"",null,null,null,null,null,null,null,null,null,null,null,null,null,null,null,null,null,null,null,null,null,null,null,null,null,null,null,null,null,null,null,null,null,null,null,null,null,null,39.5,null,null,null,null,null,null,80,0,"","","","","","",null,80,null,null,null,null,null,null,null,80,0]
["",null,null,null,null,null,null,null,"",null,null,null,null,null,null,null,null,null,null,null,null,null,null,null,null,null,null,null,null,null,null,null,null,null,null,null,null,null,null,null,null,null,null,null,null,null,null,40,null,null,null,null,null,81,null,0,"","","","","","",null,81,81,null,null,null,null,null,null,null,0]
["",null,null,null,null,null,null,null,"",null,null,null,null,null,null,null,null,null,null,null,null,null,null,null,null,null,null,null,null,null,null,null,null,null,null,null,null,null,null,null,null,null,null,null,null,null,null,40.5,null,null,null,null,null,null,82,0,"","","","","","",null,82,null,82,null,null,null,null,null,null,0]
["",null,null,null,null,null,null,null,"",null,null,null,null,null,null,null,null,null,null,null,null,null,null,null,null,null,null,null,null,null,null,null,null,null,null,null,null,null,null,null,null,null,null,null,null,null,null,41,null,null,null,null,null,83,null,0,"","","","","","",null,83,null,null,83,null,null,null,null,null,0]
["",null,null,null,null,null,null,null,"",null,null,null,null,null,null,null,null,null,null,null,null,null,null,null,null,null,null,null,null,null,null,null,null,null,null,null,null,null,null,null,null,null,null,null,null,null,null,41.5,null,null,null,null,null,null,84,0,"","","","","","",null,84,null,null,null,84,null,null,null,null,0]
["",null,null,null,null,null,null,null,"",null,null,null,null,null,null,null,null,null,null,null,null,null,null,null,null,null,null,null,null,null,null,null,null,null,null,null,null,null,null,null,null,null,null,null,null,null,null,42,null,null,null,null,null,85,null,0,"","","","","","",null,85,null,null,null,null,85,null,null,null,0]
["",null,null,null,null,null,null,null,"",null,null,null,null,null,null,null,null,null,null,null,null,null,null,null,null,null,null,null,null,null,null,null,null,null,null,null,null,null,null,null,null,null,null,null,null,null,null,42.5,null,null,null,null,null,null,86,0,"","","","","","",null,86,null,null,null,null,null,86,null,null,0]
["",null,null,null,null,null,null,null,"",null,null,null,null,null,null,null,null,null,null,null,null,null,null,null,null,null,null,null,null,null,null,null,null,null,null,null,null,null,null,null,null,null,null,null,null,null,null,43,null,null,null,null,null,87,null,0,"","","","","","",null,87,null,null,null,null,null,null,87,null,0]
["",null,null,null,null,null,null,null,"",null,null,null,null,null,null,null,null,null,null,null,null,null,null,null,null,null,null,null,null,null,null,null,null,null,null,null,null,null,null,null,null,null,null,null,null,null,null,43.5,null,null,null,null,null,null,88,0,"","","","","","",null,88,null,null,null,null,null,null,null,88,0]
["",null,null,null,null,null,null,null,"",null,null,null,null,null,null,null,null,null,null,null,null,null,null,null,null,null,null,null,null,null,null,null,null,null,null,null,null,null,null,null,null,null,null,null,null,null,null,44,null,null,null,null,null,89,null,0,"","","","","","",null,89,89,null,null,null,null,null,null,null,0]
["",null,null,null,null,null,null,null,"",null,null,null,null,null,null,null,null,null,null,null,null,null,null,null,null,null,null,null,null,null,null,null,null,null,null,null,null,null,null,null,null,null,null,null,null,null,null,44.5,null,null,null,null,null,null,90,0,"","","","","","",null,90,null,90,null,null,null,null,null,null,0]
["",null,null,null,null,null,null,null,"",null,null,null,null,null,null,null,null,null,null,null,null,null,null,null,null,null,null,null,null,null,null,null,null,null,null,null,null,null,null,null,null,null,null,null,null,null,null,45,null,null,null,null,null,91,null,0,"","","","","","",null,91,null,null,91,null,null,null,null,null,0]
["",null,null,null,null,null,null,null,"",null,null,null,null,null,null,null,null,null,null,null,null,null,null,null,null,null,null,null,null,null,null,null,null,null,null,null,null,null,null,null,null,null,null,null,null,null,null,45.5,null,null,null,null,null,null,92,0,"","","","","","",null,92,null,null,null,92,null,null,null,null,0]
["",null,null,null,null,null,null,null,"",null,null,null,null,null,null,null,null,null,null,null,null,null,null,null,null,null,null,null,null,null,null,null,null,null,null,null,null,null,null,null,null,null,null,null,null,null,null,46,null,null,null,null,null,93,null,0,"","","","","","",null,93,null,null,null,null,93,null,null,null,0]
["",null,null,null,null,null,null,null,"",null,null,null,null,null,null,null,null,null,null,null,null,null,null,null,null,null,null,null,null,null,null,null,null,null,null,null,null,null,null,null,null,null,null,null,null,null,null,46.5,null,null,null,null,null,null,94,0,"","","","","","",null,94,null,null,null,null,null,94,null,null,0]
["",null,null,null,null,null,null,null,"",null,null,null,null,null,null,null,null,null,null,null,null,null,null,null,null,null,null,null,null,null,null,null,null,null,null,null,null,null,null,null,null,null,null,null,null,null,null,47,null,null,null,null,null,95,null,0,"","","","","","",null,95,null,null,null,null,null,null,95,null,0]
["",null,null,null,null,null,null,null,"",null,null,null,null,null,null,null,null,null,null,null,null,null,null,null,null,null,null,null,null,null,null,null,null,null,null,null,null,null,null,null,null,null,null,null,null,null,null,47.5,null,null,null,null,null,null,96,0,"","","","","","",null,96,null,null,null,null,null,null,null,96,0]
["",null,null,null,null,null,null,null,"",null,null,null,null,null,null,null,null,null,null,null,null,null,null,null,null,null,null,null,null,null,null,null,null,null,null,null,null,null,null,null,null,null,null,null,null,null,null,48,null,null,null,null,null,97,null,0,"","","","","","",null,97,97,null,null,null,null,null,null,null,0]
["",null,null,null,null,null,null,null,"",null,null,null,null,null,null,null,null,null,null,null,null,null,null,null,null,null,null,null,null,null,null,null,null,null,null,null,null,null,null,null,null,null,null,null,null,null,null,48.5,null,null,null,null,null,null,98,0,"","","","","","",null,98,null,98,null,null,null,null,null,null,0]
["",null,null,null,null,null,null,null,"",null,null,null,null,null,null,null,null,null,null,null,null,null,null,null,null,null,null,null,null,null,null,null,null,null,null,null,null,null,null,null,null,null,null,null,null,null,null,49,null,null,null,null,null,99,null,0,"","","","","","",null,99,null,null,99,null,null,null,null,null,0]
["",null,null,null,null,null,null,null,"",null,null,null,null,null,null,null,null,null,null,null,null,null,null,null,null,null,null,null,null,null,null,null,null,null,null,null,null,null,null,null,null,null,null,null,null,null,null,49.5,null,null,null,null,null,null,100,0,"","","","","","",null,100,null,null,null,100,null,null,null,null,0]
["",null,null,null,null,null,null,null,"",null,null,null,null,null,null,null,null,null,null,null,null,null,null,null,null,null,null,null,null,null,null,null,null,null,null,null,null,null,null,null,null,null,null,null,null,null,null,50,null,null,null,null,null,101,null,0,"","","","","","",null,101,null,null,null,null,101,null,null,null,0]
["",null,null,null,null,null,null,null,"",null,null,null,null,null,null,null,null,null,null,null,null,null,null,null,null,null,null,null,null,null,null,null,null,null,null,null,null,null,null,null,null,null,null,null,null,null,null,null,null,null,null,null,null,null,102,0,"","","","","","",null,102,null,null,null,null,null,102,null,null,0]
["",null,null,null,null,null,null,null,"",null,null,null,null,null,null,null,null,null,null,null,null,null,null,null,null,null,null,null,null,null,null,null,null,null,null,null,null,null,null,null,null,null,null,null,null,null,null,null,null,null,null,null,null,103,null,0,"","","","","","",null,103,null,null,null,null,null,null,103,null,0]
["",null,null,null,null,null,null,null,"",null,null,null,null,null,null,null,null,null,null,null,null,null,null,null,null,null,null,null,null,null,null,null,null,null,null,null,null,null,null,null,null,null,null,null,null,null,null,null,null,null,null,null,null,null,104,0,"","","","","","",null,104,null,null,null,null,null,null,null,104,0]
["",null,null,null,null,null,null,null,"",null,null,null,null,null,null,null,null,null,null,null,null,null,null,null,null,null,null,null,null,null,null,null,null,null,null,null,null,null,null,null,null,null,null,null,null,null,null,null,null,null,null,null,null,105,null,0,"","","","","","",null,105,105,null,null,null,null,null,null,null,0]
["",null,null,null,null,null,null,null,"",null,null,null,null,null,null,null,null,null,null,null,null,null,null,null,null,null,null,null,null,null,null,null,null,null,null,null,null,null,null,null,null,null,null,null,null,null,null,null,null,null,null,null,null,null,106,0,"","","","","","",null,106,null,106,null,null,null,null,null,null,0]
["",null,null,null,null,null,null,null,"",null,null,null,null,null,null,null,null,null,null,null,null,null,null,null,null,null,null,null,null,null,null,null,null,null,null,null,null,null,null,null,null,null,null,null,null,null,null,null,null,null,null,null,null,107,null,0,"","","","","","",null,107,null,null,107,null,null,null,null,null,0]
["",null,null,null,null,null,null,null,"",null,null,null,null,null,null,null,null,null,null,null,null,null,null,null,null,null,null,null,null,null,null,null,null,null,null,null,null,null,null,null,null,null,null,null,null,null,null,null,null,null,null,null,null,null,108,0,"","","","","","",null,108,null,null,null,108,null,null,null,null,0]
["",null,null,null,null,null,null,null,"",null,null,null,null,null,null,null,null,null,null,null,null,null,null,null,null,null,null,null,null,null,null,null,null,null,null,null,null,null,null,null,null,null,null,null,null,null,null,null,null,null,null,null,null,109,null,0,"","","","","","",null,109,null,null,null,null,109,null,null,null,0]
["",null,null,null,null,null,null,null,"",null,null,null,null,null,null,null,null,null,null,null,null,null,null,null,null,null,null,null,null,null,null,null,null,null,null,null,null,null,null,null,null,null,null,null,null,null,null,null,null,null,null,null,null,null,110,0,"","","","","","",null,110,null,null,null,null,null,110,null,null,0]
["",null,null,null,null,null,null,null,"",null,null,null,null,null,null,null,null,null,null,null,null,null,null,null,null,null,null,null,null,null,null,null,null,null,null,null,null,null,null,null,null,null,null,null,null,null,null,null,null,null,null,null,null,111,null,0,"","","","","","",null,111,null,null,null,null,null,null,111,null,0]
["",null,null,null,null,null,null,null,"",null,null,null,null,null,null,null,null,null,null,null,null,null,null,null,null,null,null,null,null,null,null,null,null,null,null,null,null,null,null,null,null,null,null,null,null,null,null,null,null,null,null,null,null,null,112,0,"","","","","","",null,112,null,null,null,null,null,null,null,112,0]
["",null,null,null,null,null,null,null,"",null,null,null,null,null,null,null,null,null,null,null,null,null,null,null,null,null,null,null,null,null,null,null,null,null,null,null,null,null,null,null,null,null,null,null,null,null,null,null,null,null,null,null,null,113,null,0,"","","","","","",null,113,113,null,null,null,null,null,null,null,0]
["",null,null,null,null,null,null,null,"",null,null,null,null,null,null,null,null,null,null,null,null,null,null,null,null,null,null,null,null,null,null,null,null,null,null,null,null,null,null,null,null,null,null,null,null,null,null,null,null,null,null,null,null,null,114,0,"","","","","","",null,114,null,114,null,null,null,null,null,null,0]
["",null,null,null,null,null,null,null,"",null,null,null,null,null,null,null,null,null,null,null,null,null,null,null,null,null,null,null,null,null,null,null,null,null,null,null,null,null,null,null,null,null,null,null,null,null,null,null,null,null,null,null,null,115,null,0,"","","","","","",null,115,null,null,115,null,null,null,null,null,0]
["",null,null,null,null,null,null,null,"",null,null,null,null,null,null,null,null,null,null,null,null,null,null,null,null,null,null,null,null,null,null,null,null,null,null,null,null,null,null,null,null,null,null,null,null,null,null,null,null,null,null,null,null,null,116,0,"","","","","","",null,116,null,null,null,116,null,null,null,null,0]
["",null,null,null,null,null,null,null,"",null,null,null,null,null,null,null,null,null,null,null,null,null,null,null,null,null,null,null,null,null,null,null,null,null,null,null,null,null,null,null,null,null,null,null,null,null,null,null,null,null,null,null,null,117,null,0,"","","","","","",null,117,null,null,null,null,117,null,null,null,0]
["",null,null,null,null,null,null,null,"",null,null,null,null,null,null,null,null,null,null,null,null,null,null,null,null,null,null,null,null,null,null,null,null,null,null,null,null,null,null,null,null,null,null,null,null,null,null,null,null,null,null,null,null,null,118,0,"","","","","","",null,118,null,null,null,null,null,118,null,null,0]
["",null,null,null,null,null,null,null,"",null,null,null,null,null,null,null,null,null,null,null,null,null,null,null,null,null,null,null,null,null,null,null,null,null,null,null,null,null,null,null,null,null,null,null,null,null,null,null,null,null,null,null,null,119,null,0,"","","","","","",null,119,null,null,null,null,null,null,119,null,0]
["",null,null,null,null,null,null,null,"",null,null,null,null,null,null,null,null,null,null,null,null,null,null,null,null,null,null,null,null,null,null,null,null,null,null,null,null,null,null,null,null,null,null,null,null,null,null,null,null,null,null,null,null,null,120,0,"","","","","","",null,120,null,null,null,null,null,null,null,120,0]
["",null,null,null,null,null,null,null,"",null,null,null,null,null,null,null,null,null,null,null,null,null,null,null,null,null,null,null,null,null,null,null,null,null,null,null,null,null,null,null,null,null,null,null,null,null,null,null,null,null,null,null,null,121,null,0,"","","","","","",null,121,121,null,null,null,null,null,null,null,0]
["",null,null,null,null,null,null,null,"",null,null,null,null,null,null,null,null,null,null,null,null,null,null,null,null,null,null,null,null,null,null,null,null,null,null,null,null,null,null,null,null,null,null,null,null,null,null,null,null,null,null,null,null,null,122,0,"","","","","","",null,122,null,122,null,null,null,null,null,null,0]
["",null,null,null,null,null,null,null,"",null,null,null,null,null,null,null,null,null,null,null,null,null,null,null,null,null,null,null,null,null,null,null,null,null,null,null,null,null,null,null,null,null,null,null,null,null,null,null,null,null,null,null,null,123,null,0,"","","","","","",null,123,null,null,123,null,null,null,null,null,0]
["",null,null,null,null,null,null,null,"",null,null,null,null,null,null,null,null,null,null,null,null,null,null,null,null,null,null,null,null,null,null,null,null,null,null,null,null,null,null,null,null,null,null,null,null,null,null,null,null,null,null,null,null,null,124,0,"","","","","","",null,124,null,null,null,124,null,null,null,null,0]
["",null,null,null,null,null,null,null,"",null,null,null,null,null,null,null,null,null,null,null,null,null,null,null,null,null,null,null,null,null,null,null,null,null,null,null,null,null,null,null,null,null,null,null,null,null,null,null,null,null,null,null,null,125,null,0,"","","","","","",null,125,null,null,null,null,125,null,null,null,0]
["",null,null,null,null,null,null,null,"",null,null,null,null,null,null,null,null,null,null,null,null,null,null,null,null,null,null,null,null,null,null,null,null,null,null,null,null,null,null,null,null,null,null,null,null,null,null,null,null,null,null,null,null,null,126,0,"","","","","","",null,126,null,null,null,null,null,126,null,null,0]
["",null,null,null,null,null,null,null,"",null,null,null,null,null,null,null,null,null,null,null,null,null,null,null,null,null,null,null,null,null,null,null,null,null,null,null,null,null,null,null,null,null,null,null,null,null,null,null,null,null,null,null,null,127,null,0,"","","","","","",null,127,null,null,null,null,null,null,127,null,0]
["",null,null,null,null,null,null,null,"",null,null,null,null,null,null,null,null,null,null,null,null,null,null,null,null,null,null,null,null,null,null,null,null,null,null,null,null,null,null,null,null,null,null,null,null,null,null,null,null,null,null,null,null,null,128,0,"","","","","","",null,128,null,null,null,null,null,null,null,128,0]
[{"$f":"IF(B136=\"\",\"\",ROW()-7)","v":""},null,null,null,null,null,null,null,{"$f":"IF(H136<>\"\",(H136),\"\")","v":""},null,null,null,null,null,null,null,null,null,null,null,null,null,null,null,null,null,null,null,null,null,null,null,null,null,null,null,null,null,null,null,null,null,null,null,null,null,null,null,null,null,null,null,null,129,null,0,"","","","","","",null,129,129,null,null,null,null,null,null,null,{"$f":"SUM(L137,O137,R137,V137,Z137,AC137,AG137)","v":0}]
["",null,null,null,null,null,null,null,"",null,null,null,null,null,null,null,null,null,null,null,null,null,null,null,null,null,null,null,null,null,null,null,null,null,null,null,null,null,null,null,null,null,null,null,null,null,null,null,null,null,null,null,null,null,130,{"$f":"SUM(L137,O137,R137,V137,Z137,AC137,AG137)","v":0},{"$f":"IF(OR(C137=\"\",Z137=\"\"),\"\",COUNTIF(BD$8:BD$600,\">\"&BD137)+1)","v":""},{"$f":"IF(B137=\"\",\"\",B137)","v":""},{"$f":"IF(C137=\"\",\"\",C137)","v":""},{"$f":"IF(D137=\"\",\"\",D137)","v":""},{"$f":"IF(E137=\"\",\"\",E137)","v":""},{"$f":"IF(F137=\"\",\"\",F137)","v":""},null,130,null,130,null,null,null,null,null,null,0]
["",null,null,null,null,null,null,null,"",null,null,null,null,null,null,null,null,null,null,null,null,null,null,null,null,null,null,null,null,null,null,null,null,null,null,null,null,null,null,null,null,null,null,null,null,null,null,null,null,null,null,null,null,131,null,0,"","","","","","",null,131,null,null,131,null,null,null,null,null,0]
["",null,null,null,null,null,null,null,"",null,null,null,null,null,null,null,null,null,null,null,null,null,null,null,null,null,null,null,null,null,null,null,null,null,null,null,null,null,null,null,null,null,null,null,null,null,null,null,null,null,null,null,null,null,132,0,"","","","","","",null,132,null,null,null,132,null,null,null,null,0]
["",null,null,null,null,null,null,null,"",null,null,null,null,null,null,null,null,null,null,null,null,null,null,null,null,null,null,null,null,null,null,null,null,null,null,null,null,null,null,null,null,null,null,null,null,null,null,null,null,null,null,null,null,133,null,0,"","","","","","",null,133,null,null,null,null,133,null,null,null,0]
["",null,null,null,null,null,null,null,"",null,null,null,null,null,null,null,null,null,null,null,null,null,null,null,null,null,null,null,null,null,null,null,null,null,null,null,null,null,null,null,null,null,null,null,null,null,null,null,null,null,null,null,null,null,134,0,"","","","","","",null,134,null,null,null,null,null,134,null,null,0]
["",null,null,null,null,null,null,null,"",null,null,null,null,null,null,null,null,null,null,null,null,null,null,null,null,null,null,null,null,null,null,null,null,null,null,null,null,null,null,null,null,null,null,null,null,null,null,null,null,null,null,null,null,135,null,0,"","","","","","",null,135,null,null,null,null,null,null,135,null,0]
["",null,null,null,null,null,null,null,"",null,null,null,null,null,null,null,null,null,null,null,null,null,null,null,null,null,null,null,null,null,null,null,null,null,null,null,null,null,null,null,null,null,null,null,null,null,null,null,null,null,null,null,null,null,136,0,"","","","","","",null,136,null,null,null,null,null,null,null,136,0]
["",null,null,null,null,null,null,null,"",null,null,null,null,null,null,null,null,null,null,null,null,null,null,null,null,null,null,null,null,null,null,null,null,null,null,null,null,null,null,null,null,null,null,null,null,null,null,null,null,null,null,null,null,137,null,0,"","","","","","",null,137,137,null,null,null,null,null,null,null,0]
["",null,null,null,null,null,null,null,"",null,null,null,null,null,null,null,null,null,null,null,null,null,null,null,null,null,null,null,null,null,null,null,null,null,null,null,null,null,null,null,null,null,null,null,null,null,null,null,null,null,null,null,null,null,138,0,"","","","","","",null,138,null,138,null,null,null,null,null,null,0]
["",null,null,null,null,null,null,null,"",null,null,null,null,null,null,null,null,null,null,null,null,null,null,null,null,null,null,null,null,null,null,null,null,null,null,null,null,null,null,null,null,null,null,null,null,null,null,null,null,null,null,null,null,139,null,0,"","","","","","",null,139,null,null,139,null,null,null,null,null,0]
["",null,null,null,null,null,null,null,"",null,null,null,null,null,null,null,null,null,null,null,null,null,null,null,null,null,null,null,null,null,null,null,null,null,null,null,null,null,null,null,null,null,null,null,null,null,null,null,null,null,null,null,null,null,140,0,"","","","","","",null,140,null,null,null,140,null,null,null,null,0]
["",null,null,null,null,null,null,null,"",null,null,null,null,null,null,null,null,null,null,null,null,null,null,null,null,null,null,null,null,null,null,null,null,null,null,null,null,null,null,null,null,null,null,null,null,null,null,null,null,null,null,null,null,141,null,0,"","","","","","",null,141,null,null,null,null,141,null,null,null,0]
["",null,null,null,null,null,null,null,"",null,null,null,null,null,null,null,null,null,null,null,null,null,null,null,null,null,null,null,null,null,null,null,null,null,null,null,null,null,null,null,null,null,null,null,null,null,null,null,null,null,null,null,null,null,142,0,"","","","","","",null,142,null,null,null,null,null,142,null,null,0]
["",null,null,null,null,null,null,null,"",null,null,null,null,null,null,null,null,null,null,null,null,null,null,null,null,null,null,null,null,null,null,null,null,null,null,null,null,null,null,null,null,null,null,null,null,null,null,null,null,null,null,null,null,143,null,0,"","","","","","",null,143,null,null,null,null,null,null,143,null,0]
["",null,null,null,null,null,null,null,"",null,null,null,null,null,null,null,null,null,null,null,null,null,null,null,null,null,null,null,null,null,null,null,null,null,null,null,null,null,null,null,null,null,null,null,null,null,null,null,null,null,null,null,null,null,144,0,"","","","","","",null,144,null,null,null,null,null,null,null,144,0]
["",null,null,null,null,null,null,null,"",null,null,null,null,null,null,null,null,null,null,null,null,null,null,null,null,null,null,null,null,null,null,null,null,null,null,null,null,null,null,null,null,null,null,null,null,null,null,null,null,null,null,null,null,145,null,0,"","","","","","",null,145,145,null,null,null,null,null,null,null,0]
["",null,null,null,null,null,null,null,"",null,null,null,null,null,null,null,null,null,null,null,null,null,null,null,null,null,null,null,null,null,null,null,null,null,null,null,null,null,null,null,null,null,null,null,null,null,null,null,null,null,null,null,null,null,146,0,"","","","","","",null,146,null,146,null,null,null,null,null,null,0]
["",null,null,null,null,null,null,null,"",null,null,null,null,null,null,null,null,null,null,null,null,null,null,null,null,null,null,null,null,null,null,null,null,null,null,null,null,null,null,null,null,null,null,null,null,null,null,null,null,null,null,null,null,147,null,0,"","","","","","",null,147,null,null,147,null,null,null,null,null,0]
["",null,null,null,null,null,null,null,"",null,null,null,null,null,null,null,null,null,null,null,null,null,null,null,null,null,null,null,null,null,null,null,null,null,null,null,null,null,null,null,null,null,null,null,null,null,null,null,null,null,null,null,null,null,148,0,"","","","","","",null,148,null,null,null,148,null,null,null,null,0]
["",null,null,null,null,null,null,null,"",null,null,null,null,null,null,null,null,null,null,null,null,null,null,null,null,null,null,null,null,null,null,null,null,null,null,null,null,null,null,null,null,null,null,null,null,null,null,null,null,null,null,null,null,149,null,0,"","","","","","",null,149,null,null,null,null,149,null,null,null,0]
["",null,null,null,null,null,null,null,"",null,null,null,null,null,null,null,null,null,null,null,null,null,null,null,null,null,null,null,null,null,null,null,null,null,null,null,null,null,null,null,null,null,null,null,null,null,null,null,null,null,null,null,null,null,150,0,"","","","","","",null,150,null,null,null,null,null,150,null,null,0]
["",null,null,null,null,null,null,null,"",null,null,null,null,null,null,null,null,null,null,null,null,null,null,null,null,null,null,null,null,null,null,null,null,null,null,null,null,null,null,null,null,null,null,null,null,null,null,null,null,null,null,null,null,151,null,0,"","","","","","",null,151,null,null,null,null,null,null,151,null,0]
["",null,null,null,null,null,null,null,"",null,null,null,null,null,null,null,null,null,null,null,null,null,null,null,null,null,null,null,null,null,null,null,null,null,null,null,null,null,null,null,null,null,null,null,null,null,null,null,null,null,null,null,null,null,152,0,"","","","","","",null,152,null,null,null,null,null,null,null,152,0]
["",null,null,null,null,null,null,null,"",null,null,null,null,null,null,null,null,null,null,null,null,null,null,null,null,null,null,null,null,null,null,null,null,null,null,null,null,null,null,null,null,null,null,null,null,null,null,null,null,null,null,null,null,153,null,0,"","","","","","",null,153,153,null,null,null,null,null,null,null,0]
["",null,null,null,null,null,null,null,"",null,null,null,null,null,null,null,null,null,null,null,null,null,null,null,null,null,null,null,null,null,null,null,null,null,null,null,null,null,null,null,null,null,null,null,null,null,null,null,null,null,null,null,null,null,154,0,"","","","","","",null,154,null,154,null,null,null,null,null,null,0]
["",null,null,null,null,null,null,null,"",null,null,null,null,null,null,null,null,null,null,null,null,null,null,null,null,null,null,null,null,null,null,null,null,null,null,null,null,null,null,null,null,null,null,null,null,null,null,null,null,null,null,null,null,155,null,0,"","","","","","",null,155,null,null,155,null,null,null,null,null,0]
["",null,null,null,null,null,null,null,"",null,null,null,null,null,null,null,null,null,null,null,null,null,null,null,null,null,null,null,null,null,null,null,null,null,null,null,null,null,null,null,null,null,null,null,null,null,null,null,null,null,null,null,null,null,156,0,"","","","","","",null,156,null,null,null,156,null,null,null,null,0]
["",null,null,null,null,null,null,null,"",null,null,null,null,null,null,null,null,null,null,null,null,null,null,null,null,null,null,null,null,null,null,null,null,null,null,null,null,null,null,null,null,null,null,null,null,null,null,null,null,null,null,null,null,157,null,0,"","","","","","",null,157,null,null,null,null,157,null,null,null,0]
["",null,null,null,null,null,null,null,"",null,null,null,null,null,null,null,null,null,null,null,null,null,null,null,null,null,null,null,null,null,null,null,null,null,null,null,null,null,null,null,null,null,null,null,null,null,null,null,null,null,null,null,null,null,158,0,"","","","","","",null,158,null,null,null,null,null,158,null,null,0]
["",null,null,null,null,null,null,null,"",null,null,null,null,null,null,null,null,null,null,null,null,null,null,null,null,null,null,null,null,null,null,null,null,null,null,null,null,null,null,null,null,null,null,null,null,null,null,null,null,null,null,null,null,159,null,0,"","","","","","",null,159,null,null,null,null,null,null,159,null,0]
["",null,null,null,null,null,null,null,"",null,null,null,null,null,null,null,null,null,null,null,null,null,null,null,null,null,null,null,null,null,null,null,null,null,null,null,null,null,null,null,null,null,null,null,null,null,null,null,null,null,null,null,null,null,160,0,"","","","","","",null,160,null,null,null,null,null,null,null,160,0]
["",null,null,null,null,null,null,null,"",null,null,null,null,null,null,null,null,null,null,null,null,null,null,null,null,null,null,null,null,null,null,null,null,null,null,null,null,null,null,null,null,null,null,null,null,null,null,null,null,null,null,null,null,161,null,0,"","","","","","",null,161,161,null,null,null,null,null,null,null,0]
["",null,null,null,null,null,null,null,"",null,null,null,null,null,null,null,null,null,null,null,null,null,null,null,null,null,null,null,null,null,null,null,null,null,null,null,null,null,null,null,null,null,null,null,null,null,null,null,null,null,null,null,null,null,162,0,"","","","","","",null,162,null,162,null,null,null,null,null,null,0]
["",null,null,null,null,null,null,null,"",null,null,null,null,null,null,null,null,null,null,null,null,null,null,null,null,null,null,null,null,null,null,null,null,null,null,null,null,null,null,null,null,null,null,null,null,null,null,null,null,null,null,null,null,163,null,0,"","","","","","",null,163,null,null,163,null,null,null,null,null,0]
["",null,null,null,null,null,null,null,"",null,null,null,null,null,null,null,null,null,null,null,null,null,null,null,null,null,null,null,null,null,null,null,null,null,null,null,null,null,null,null,null,null,null,null,null,null,null,null,null,null,null,null,null,null,164,0,"","","","","","",null,164,null,null,null,164,null,null,null,null,0]
["",null,null,null,null,null,null,null,"",null,null,null,null,null,null,null,null,null,null,null,null,null,null,null,null,null,null,null,null,null,null,null,null,null,null,null,null,null,null,null,null,null,null,null,null,null,null,null,null,null,null,null,null,165,null,0,"","","","","","",null,165,null,null,null,null,165,null,null,null,0]
["",null,null,null,null,null,null,null,"",null,null,null,null,null,null,null,null,null,null,null,null,null,null,null,null,null,null,null,null,null,null,null,null,null,null,null,null,null,null,null,null,null,null,null,null,null,null,null,null,null,null,null,null,null,166,0,"","","","","","",null,166,null,null,null,null,null,166,null,null,0]
["",null,null,null,null,null,null,null,"",null,null,null,null,null,null,null,null,null,null,null,null,null,null,null,null,null,null,null,null,null,null,null,null,null,null,null,null,null,null,null,null,null,null,null,null,null,null,null,null,null,null,null,null,167,null,0,"","","","","","",null,167,null,null,null,null,null,null,167,null,0]
["",null,null,null,null,null,null,null,"",null,null,null,null,null,null,null,null,null,null,null,null,null,null,null,null,null,null,null,null,null,null,null,null,null,null,null,null,null,null,null,null,null,null,null,null,null,null,null,null,null,null,null,null,null,168,0,"","","","","","",null,168,null,null,null,null,null,null,null,168,0]
["",null,null,null,null,null,null,null,"",null,null,null,null,null,null,null,null,null,null,null,null,null,null,null,null,null,null,null,null,null,null,null,null,null,null,null,null,null,null,null,null,null,null,null,null,null,null,null,null,null,null,null,null,169,null,0,"","","","","","",null,169,169,null,null,null,null,null,null,null,0]
["",null,null,null,null,null,null,null,"",null,null,null,null,null,null,null,null,null,null,null,null,null,null,null,null,null,null,null,null,null,null,null,null,null,null,null,null,null,null,null,null,null,null,null,null,null,null,null,null,null,null,null,null,null,170,0,"","","","","","",null,170,null,170,null,null,null,null,null,null,0]
["",null,null,null,null,null,null,null,"",null,null,null,null,null,null,null,null,null,null,null,null,null,null,null,null,null,null,null,null,null,null,null,null,null,null,null,null,null,null,null,null,null,null,null,null,null,null,null,null,null,null,null,null,171,null,0,"","","","","","",null,171,null,null,171,null,null,null,null,null,0]
["",null,null,null,null,null,null,null,"",null,null,null,null,null,null,null,null,null,null,null,null,null,null,null,null,null,null,null,null,null,null,null,null,null,null,null,null,null,null,null,null,null,null,null,null,null,null,null,null,null,null,null,null,null,172,0,"","","","","","",null,172,null,null,null,172,null,null,null,null,0]
["",null,null,null,null,null,null,null,"",null,null,null,null,null,null,null,null,null,null,null,null,null,null,null,null,null,null,null,null,null,null,null,null,null,null,null,null,null,null,null,null,null,null,null,null,null,null,null,null,null,null,null,null,173,null,0,"","","","","","",null,173,null,null,null,null,173,null,null,null,0]
["",null,null,null,null,null,null,null,"",null,null,null,null,null,null,null,null,null,null,null,null,null,null,null,null,null,null,null,null,null,null,null,null,null,null,null,null,null,null,null,null,null,null,null,null,null,null,null,null,null,null,null,null,null,174,0,"","","","","","",null,174,null,null,null,null,null,174,null,null,0]
["",null,null,null,null,null,null,null,"",null,null,null,null,null,null,null,null,null,null,null,null,null,null,null,null,null,null,null,null,null,null,null,null,null,null,null,null,null,null,null,null,null,null,null,null,null,null,null,null,null,null,null,null,175,null,0,"","","","","","",null,175,null,null,null,null,null,null,175,null,0]
["",null,null,null,null,null,null,null,"",null,null,null,null,null,null,null,null,null,null,null,null,null,null,null,null,null,null,null,null,null,null,null,null,null,null,null,null,null,null,null,null,null,null,null,null,null,null,null,null,null,null,null,null,null,176,0,"","","","","","",null,176,null,null,null,null,null,null,null,176,0]
["",null,null,null,null,null,null,null,"",null,null,null,null,null,null,null,null,null,null,null,null,null,null,null,null,null,null,null,null,null,null,null,null,null,null,null,null,null,null,null,null,null,null,null,null,null,null,null,null,null,null,null,null,177,null,0,"","","","","","",null,177,177,null,null,null,null,null,null,null,0]
["",null,null,null,null,null,null,null,"",null,null,null,null,null,null,null,null,null,null,null,null,null,null,null,null,null,null,null,null,null,null,null,null,null,null,null,null,null,null,null,null,null,null,null,null,null,null,null,null,null,null,null,null,null,178,0,"","","","","","",null,178,null,178,null,null,null,null,null,null,0]
["",null,null,null,null,null,null,null,"",null,null,null,null,null,null,null,null,null,null,null,null,null,null,null,null,null,null,null,null,null,null,null,null,null,null,null,null,null,null,null,null,null,null,null,null,null,null,null,null,null,null,null,null,179,null,0,"","","","","","",null,179,null,null,179,null,null,null,null,null,0]
["",null,null,null,null,null,null,null,"",null,null,null,null,null,null,null,null,null,null,null,null,null,null,null,null,null,null,null,null,null,null,null,null,null,null,null,null,null,null,null,null,null,null,null,null,null,null,null,null,null,null,null,null,null,180,0,"","","","","","",null,180,null,null,null,180,null,null,null,null,0]
["",null,null,null,null,null,null,null,"",null,null,null,null,null,null,null,null,null,null,null,null,null,null,null,null,null,null,null,null,null,null,null,null,null,null,null,null,null,null,null,null,null,null,null,null,null,null,null,null,null,null,null,null,181,null,0,"","","","","","",null,181,null,null,null,null,181,null,null,null,0]
["",null,null,null,null,null,null,null,"",null,null,null,null,null,null,null,null,null,null,null,null,null,null,null,null,null,null,null,null,null,null,null,null,null,null,null,null,null,null,null,null,null,null,null,null,null,null,null,null,null,null,null,null,null,182,0,"","","","","","",null,182,null,null,null,null,null,182,null,null,0]
["",null,null,null,null,null,null,null,"",null,null,null,null,null,null,null,null,null,null,null,null,null,null,null,null,null,null,null,null,null,null,null,null,null,null,null,null,null,null,null,null,null,null,null,null,null,null,null,null,null,null,null,null,183,null,0,"","","","","","",null,183,null,null,null,null,null,null,183,null,0]
["",null,null,null,null,null,null,null,"",null,null,null,null,null,null,null,null,null,null,null,null,null,null,null,null,null,null,null,null,null,null,null,null,null,null,null,null,null,null,null,null,null,null,null,null,null,null,null,null,null,null,null,null,null,184,0,"","","","","","",null,184,null,null,null,null,null,null,null,184,0]
["",null,null,null,null,null,null,null,"",null,null,null,null,null,null,null,null,null,null,null,null,null,null,null,null,null,null,null,null,null,null,null,null,null,null,null,null,null,null,null,null,null,null,null,null,null,null,null,null,null,null,null,null,185,null,0,"","","","","","",null,185,185,null,null,null,null,null,null,null,0]
["",null,null,null,null,null,null,null,"",null,null,null,null,null,null,null,null,null,null,null,null,null,null,null,null,null,null,null,null,null,null,null,null,null,null,null,null,null,null,null,null,null,null,null,null,null,null,null,null,null,null,null,null,null,186,0,"","","","","","",null,186,null,186,null,null,null,null,null,null,0]
["",null,null,null,null,null,null,null,"",null,null,null,null,null,null,null,null,null,null,null,null,null,null,null,null,null,null,null,null,null,null,null,null,null,null,null,null,null,null,null,null,null,null,null,null,null,null,null,null,null,null,null,null,187,null,0,"","","","","","",null,187,null,null,187,null,null,null,null,null,0]
["",null,null,null,null,null,null,null,"",null,null,null,null,null,null,null,null,null,null,null,null,null,null,null,null,null,null,null,null,null,null,null,null,null,null,null,null,null,null,null,null,null,null,null,null,null,null,null,null,null,null,null,null,null,188,0,"","","","","","",null,188,null,null,null,188,null,null,null,null,0]
["",null,null,null,null,null,null,null,"",null,null,null,null,null,null,null,null,null,null,null,null,null,null,null,null,null,null,null,null,null,null,null,null,null,null,null,null,null,null,null,null,null,null,null,null,null,null,null,null,null,null,null,null,189,null,0,"","","","","","",null,189,null,null,null,null,189,null,null,null,0]
["",null,null,null,null,null,null,null,"",null,null,null,null,null,null,null,null,null,null,null,null,null,null,null,null,null,null,null,null,null,null,null,null,null,null,null,null,null,null,null,null,null,null,null,null,null,null,null,null,null,null,null,null,null,190,0,"","","","","","",null,190,null,null,null,null,null,190,null,null,0]
["",null,null,null,null,null,null,null,"",null,null,null,null,null,null,null,null,null,null,null,null,null,null,null,null,null,null,null,null,null,null,null,null,null,null,null,null,null,null,null,null,null,null,null,null,null,null,null,null,null,null,null,null,191,null,0,"","","","","","",null,191,null,null,null,null,null,null,191,null,0]
["",null,null,null,null,null,null,null,"",null,null,null,null,null,null,null,null,null,null,null,null,null,null,null,null,null,null,null,null,null,null,null,null,null,null,null,null,null,null,null,null,null,null,null,null,null,null,null,null,null,null,null,null,null,192,0,"","","","","","",null,192,null,null,null,null,null,null,null,192,0]
[{"$f":"IF(B200=\"\",\"\",ROW()-7)","v":""},null,null,null,null,null,null,null,{"$f":"IF(H200<>\"\",(H200),\"\")","v":""},null,null,null,null,null,null,null,null,null,null,null,null,null,null,null,null,null,null,null,null,null,null,null,null,null,null,null,null,null,null,null,null,null,null,null,null,null,null,null,null,null,null,null,null,193,null,0,"","","","","","",null,193,193,null,null,null,null,null,null,null,{"$f":"SUM(L201,O201,R201,V201,Z201,AC201,AG201)","v":0}]
["",null,null,null,null,null,null,null,"",null,null,null,null,null,null,null,null,null,null,null,null,null,null,null,null,null,null,null,null,null,null,null,null,null,null,null,null,null,null,null,null,null,null,null,null,null,null,null,null,null,null,null,null,null,194,{"$f":"SUM(L201,O201,R201,V201,Z201,AC201,AG201)","v":0},{"$f":"IF(OR(C201=\"\",Z201=\"\"),\"\",COUNTIF(BD$8:BD$600,\">\"&BD201)+1)","v":""},{"$f":"IF(B201=\"\",\"\",B201)","v":""},{"$f":"IF(C201=\"\",\"\",C201)","v":""},{"$f":"IF(D201=\"\",\"\",D201)","v":""},{"$f":"IF(E201=\"\",\"\",E201)","v":""},{"$f":"IF(F201=\"\",\"\",F201)","v":""},null,194,null,194,null,null,null,null,null,null,0]
["",null,null,null,null,null,null,null,"",null,null,null,null,null,null,null,null,null,null,null,null,null,null,null,null,null,null,null,null,null,null,null,null,null,null,null,null,null,null,null,null,null,null,null,null,null,null,null,null,null,null,null,null,195,null,0,"","","","","","",null,195,null,null,195,null,null,null,null,null,0]
["",null,null,null,null,null,null,null,"",null,null,null,null,null,null,null,null,null,null,null,null,null,null,null,null,null,null,null,null,null,null,null,null,null,null,null,null,null,null,null,null,null,null,null,null,null,null,null,null,null,null,null,null,null,196,0,"","","","","","",null,196,null,null,null,196,null,null,null,null,0]
["",null,null,null,null,null,null,null,"",null,null,null,null,null,null,null,null,null,null,null,null,null,null,null,null,null,null,null,null,null,null,null,null,null,null,null,null,null,null,null,null,null,null,null,null,null,null,null,null,null,null,null,null,197,null,0,"","","","","","",null,197,null,null,null,null,197,null,null,null,0]
["",null,null,null,null,null,null,null,"",null,null,null,null,null,null,null,null,null,null,null,null,null,null,null,null,null,null,null,null,null,null,null,null,null,null,null,null,null,null,null,null,null,null,null,null,null,null,null,null,null,null,null,null,null,198,0,"","","","","","",null,198,null,null,null,null,null,198,null,null,0]
["",null,null,null,null,null,null,null,"",null,null,null,null,null,null,null,null,null,null,null,null,null,null,null,null,null,null,null,null,null,null,null,null,null,null,null,null,null,null,null,null,null,null,null,null,null,null,null,null,null,null,null,null,199,null,0,"","","","","","",null,199,null,null,null,null,null,null,199,null,0]
["",null,null,null,null,null,null,null,"",null,null,null,null,null,null,null,null,null,null,null,null,null,null,null,null,null,null,null,null,null,null,null,null,null,null,null,null,null,null,null,null,null,null,null,null,null,null,null,null,null,null,null,null,null,200,0,"","","","","","",null,200,null,null,null,null,null,null,null,200,0]
["",null,null,null,null,null,null,null,"",null,null,null,null,null,null,null,null,null,null,null,null,null,null,null,null,null,null,null,null,null,null,null,null,null,null,null,null,null,null,null,null,null,null,null,null,null,null,null,null,null,null,null,null,201,null,0,"","","","","","",null,201,201,null,null,null,null,null,null,null,0]
["",null,null,null,null,null,null,null,"",null,null,null,null,null,null,null,null,null,null,null,null,null,null,null,null,null,null,null,null,null,null,null,null,null,null,null,null,null,null,null,null,null,null,null,null,null,null,null,null,null,null,null,null,null,202,0,"","","","","","",null,202,null,202,null,null,null,null,null,null,0]
["",null,null,null,null,null,null,null,"",null,null,null,null,null,null,null,null,null,null,null,null,null,null,null,null,null,null,null,null,null,null,null,null,null,null,null,null,null,null,null,null,null,null,null,null,null,null,null,null,null,null,null,null,203,null,0,"","","","","","",null,203,null,null,203,null,null,null,null,null,0]
["",null,null,null,null,null,null,null,"",null,null,null,null,null,null,null,null,null,null,null,null,null,null,null,null,null,null,null,null,null,null,null,null,null,null,null,null,null,null,null,null,null,null,null,null,null,null,null,null,null,null,null,null,null,204,0,"","","","","","",null,204,null,null,null,204,null,null,null,null,0]
["",null,null,null,null,null,null,null,"",null,null,null,null,null,null,null,null,null,null,null,null,null,null,null,null,null,null,null,null,null,null,null,null,null,null,null,null,null,null,null,null,null,null,null,null,null,null,null,null,null,null,null,null,205,null,0,"","","","","","",null,205,null,null,null,null,205,null,null,null,0]
["",null,null,null,null,null,null,null,"",null,null,null,null,null,null,null,null,null,null,null,null,null,null,null,null,null,null,null,null,null,null,null,null,null,null,null,null,null,null,null,null,null,null,null,null,null,null,null,null,null,null,null,null,null,206,0,"","","","","","",null,206,null,null,null,null,null,206,null,null,0]
["",null,null,null,null,null,null,null,"",null,null,null,null,null,null,null,null,null,null,null,null,null,null,null,null,null,null,null,null,null,null,null,null,null,null,null,null,null,null,null,null,null,null,null,null,null,null,null,null,null,null,null,null,207,null,0,"","","","","","",null,207,null,null,null,null,null,null,207,null,0]
["",null,null,null,null,null,null,null,"",null,null,null,null,null,null,null,null,null,null,null,null,null,null,null,null,null,null,null,null,null,null,null,null,null,null,null,null,null,null,null,null,null,null,null,null,null,null,null,null,null,null,null,null,null,208,0,"","","","","","",null,208,null,null,null,null,null,null,null,208,0]
["",null,null,null,null,null,null,null,"",null,null,null,null,null,null,null,null,null,null,null,null,null,null,null,null,null,null,null,null,null,null,null,null,null,null,null,null,null,null,null,null,null,null,null,null,null,null,null,null,null,null,null,null,209,null,0,"","","","","","",null,209,209,null,null,null,null,null,null,null,0]
["",null,null,null,null,null,null,null,"",null,null,null,null,null,null,null,null,null,null,null,null,null,null,null,null,null,null,null,null,null,null,null,null,null,null,null,null,null,null,null,null,null,null,null,null,null,null,null,null,null,null,null,null,null,210,0,"","","","","","",null,210,null,210,null,null,null,null,null,null,0]
["",null,null,null,null,null,null,null,"",null,null,null,null,null,null,null,null,null,null,null,null,null,null,null,null,null,null,null,null,null,null,null,null,null,null,null,null,null,null,null,null,null,null,null,null,null,null,null,null,null,null,null,null,211,null,0,"","","","","","",null,211,null,null,211,null,null,null,null,null,0]
["",null,null,null,null,null,null,null,"",null,null,null,null,null,null,null,null,null,null,null,null,null,null,null,null,null,null,null,null,null,null,null,null,null,null,null,null,null,null,null,null,null,null,null,null,null,null,null,null,null,null,null,null,null,212,0,"","","","","","",null,212,null,null,null,212,null,null,null,null,0]
["",null,null,null,null,null,null,null,"",null,null,null,null,null,null,null,null,null,null,null,null,null,null,null,null,null,null,null,null,null,null,null,null,null,null,null,null,null,null,null,null,null,null,null,null,null,null,null,null,null,null,null,null,213,null,0,"","","","","","",null,213,null,null,null,null,213,null,null,null,0]
["",null,null,null,null,null,null,null,"",null,null,null,null,null,null,null,null,null,null,null,null,null,null,null,null,null,null,null,null,null,null,null,null,null,null,null,null,null,null,null,null,null,null,null,null,null,null,null,null,null,null,null,null,null,214,0,"","","","","","",null,214,null,null,null,null,null,214,null,null,0]
["",null,null,null,null,null,null,null,"",null,null,null,null,null,null,null,null,null,null,null,null,null,null,null,null,null,null,null,null,null,null,null,null,null,null,null,null,null,null,null,null,null,null,null,null,null,null,null,null,null,null,null,null,215,null,0,"","","","","","",null,215,null,null,null,null,null,null,215,null,0]
["",null,null,null,null,null,null,null,"",null,null,null,null,null,null,null,null,null,null,null,null,null,null,null,null,null,null,null,null,null,null,null,null,null,null,null,null,null,null,null,null,null,null,null,null,null,null,null,null,null,null,null,null,null,216,0,"","","","","","",null,216,null,null,null,null,null,null,null,216,0]
["",null,null,null,null,null,null,null,"",null,null,null,null,null,null,null,null,null,null,null,null,null,null,null,null,null,null,null,null,null,null,null,null,null,null,null,null,null,null,null,null,null,null,null,null,null,null,null,null,null,null,null,null,217,null,0,"","","","","","",null,217,217,null,null,null,null,null,null,null,0]
["",null,null,null,null,null,null,null,"",null,null,null,null,null,null,null,null,null,null,null,null,null,null,null,null,null,null,null,null,null,null,null,null,null,null,null,null,null,null,null,null,null,null,null,null,null,null,null,null,null,null,null,null,null,218,0,"","","","","","",null,218,null,218,null,null,null,null,null,null,0]
["",null,null,null,null,null,null,null,"",null,null,null,null,null,null,null,null,null,null,null,null,null,null,null,null,null,null,null,null,null,null,null,null,null,null,null,null,null,null,null,null,null,null,null,null,null,null,null,null,null,null,null,null,219,null,0,"","","","","","",null,219,null,null,219,null,null,null,null,null,0]
["",null,null,null,null,null,null,null,"",null,null,null,null,null,null,null,null,null,null,null,null,null,null,null,null,null,null,null,null,null,null,null,null,null,null,null,null,null,null,null,null,null,null,null,null,null,null,null,null,null,null,null,null,null,220,0,"","","","","","",null,220,null,null,null,220,null,null,null,null,0]
["",null,null,null,null,null,null,null,"",null,null,null,null,null,null,null,null,null,null,null,null,null,null,null,null,null,null,null,null,null,null,null,null,null,null,null,null,null,null,null,null,null,null,null,null,null,null,null,null,null,null,null,null,221,null,0,"","","","","","",null,221,null,null,null,null,221,null,null,null,0]
["",null,null,null,null,null,null,null,"",null,null,null,null,null,null,null,null,null,null,null,null,null,null,null,null,null,null,null,null,null,null,null,null,null,null,null,null,null,null,null,null,null,null,null,null,null,null,null,null,null,null,null,null,null,222,0,"","","","","","",null,222,null,null,null,null,null,222,null,null,0]
["",null,null,null,null,null,null,null,"",null,null,null,null,null,null,null,null,null,null,null,null,null,null,null,null,null,null,null,null,null,null,null,null,null,null,null,null,null,null,null,null,null,null,null,null,null,null,null,null,null,null,null,null,223,null,0,"","","","","","",null,223,null,null,null,null,null,null,223,null,0]
["",null,null,null,null,null,null,null,"",null,null,null,null,null,null,null,null,null,null,null,null,null,null,null,null,null,null,null,null,null,null,null,null,null,null,null,null,null,null,null,null,null,null,null,null,null,null,null,null,null,null,null,null,null,224,0,"","","","","","",null,224,null,null,null,null,null,null,null,224,0]
["",null,null,null,null,null,null,null,"",null,null,null,null,null,null,null,null,null,null,null,null,null,null,null,null,null,null,null,null,null,null,null,null,null,null,null,null,null,null,null,null,null,null,null,null,null,null,null,null,null,null,null,null,225,null,0,"","","","","","",null,225,225,null,null,null,null,null,null,null,0]
["",null,null,null,null,null,null,null,"",null,null,null,null,null,null,null,null,null,null,null,null,null,null,null,null,null,null,null,null,null,null,null,null,null,null,null,null,null,null,null,null,null,null,null,null,null,null,null,null,null,null,null,null,null,226,0,"","","","","","",null,226,null,226,null,null,null,null,null,null,0]
["",null,null,null,null,null,null,null,"",null,null,null,null,null,null,null,null,null,null,null,null,null,null,null,null,null,null,null,null,null,null,null,null,null,null,null,null,null,null,null,null,null,null,null,null,null,null,null,null,null,null,null,null,227,null,0,"","","","","","",null,227,null,null,227,null,null,null,null,null,0]
["",null,null,null,null,null,null,null,"",null,null,null,null,null,null,null,null,null,null,null,null,null,null,null,null,null,null,null,null,null,null,null,null,null,null,null,null,null,null,null,null,null,null,null,null,null,null,null,null,null,null,null,null,null,228,0,"","","","","","",null,228,null,null,null,228,null,null,null,null,0]
["",null,null,null,null,null,null,null,"",null,null,null,null,null,null,null,null,null,null,null,null,null,null,null,null,null,null,null,null,null,null,null,null,null,null,null,null,null,null,null,null,null,null,null,null,null,null,null,null,null,null,null,null,229,null,0,"","","","","","",null,229,null,null,null,null,229,null,null,null,0]
["",null,null,null,null,null,null,null,"",null,null,null,null,null,null,null,null,null,null,null,null,null,null,null,null,null,null,null,null,null,null,null,null,null,null,null,null,null,null,null,null,null,null,null,null,null,null,null,null,null,null,null,null,null,230,0,"","","","","","",null,230,null,null,null,null,null,230,null,null,0]
["",null,null,null,null,null,null,null,"",null,null,null,null,null,null,null,null,null,null,null,null,null,null,null,null,null,null,null,null,null,null,null,null,null,null,null,null,null,null,null,null,null,null,null,null,null,null,null,null,null,null,null,null,231,null,0,"","","","","","",null,231,null,null,null,null,null,null,231,null,0]
["",null,null,null,null,null,null,null,"",null,null,null,null,null,null,null,null,null,null,null,null,null,null,null,null,null,null,null,null,null,null,null,null,null,null,null,null,null,null,null,null,null,null,null,null,null,null,null,null,null,null,null,null,null,232,0,"","","","","","",null,232,null,null,null,null,null,null,null,232,0]
["",null,null,null,null,null,null,null,"",null,null,null,null,null,null,null,null,null,null,null,null,null,null,null,null,null,null,null,null,null,null,null,null,null,null,null,null,null,null,null,null,null,null,null,null,null,null,null,null,null,null,null,null,233,null,0,"","","","","","",null,233,233,null,null,null,null,null,null,null,0]
["",null,null,null,null,null,null,null,"",null,null,null,null,null,null,null,null,null,null,null,null,null,null,null,null,null,null,null,null,null,null,null,null,null,null,null,null,null,null,null,null,null,null,null,null,null,null,null,null,null,null,null,null,null,234,0,"","","","","","",null,234,null,234,null,null,null,null,null,null,0]
["",null,null,null,null,null,null,null,"",null,null,null,null,null,null,null,null,null,null,null,null,null,null,null,null,null,null,null,null,null,null,null,null,null,null,null,null,null,null,null,null,null,null,null,null,null,null,null,null,null,null,null,null,235,null,0,"","","","","","",null,235,null,null,235,null,null,null,null,null,0]
["",null,null,null,null,null,null,null,"",null,null,null,null,null,null,null,null,null,null,null,null,null,null,null,null,null,null,null,null,null,null,null,null,null,null,null,null,null,null,null,null,null,null,null,null,null,null,null,null,null,null,null,null,null,236,0,"","","","","","",null,236,null,null,null,236,null,null,null,null,0]
["",null,null,null,null,null,null,null,"",null,null,null,null,null,null,null,null,null,null,null,null,null,null,null,null,null,null,null,null,null,null,null,null,null,null,null,null,null,null,null,null,null,null,null,null,null,null,null,null,null,null,null,null,237,null,0,"","","","","","",null,237,null,null,null,null,237,null,null,null,0]
["",null,null,null,null,null,null,null,"",null,null,null,null,null,null,null,null,null,null,null,null,null,null,null,null,null,null,null,null,null,null,null,null,null,null,null,null,null,null,null,null,null,null,null,null,null,null,null,null,null,null,null,null,null,238,0,"","","","","","",null,238,null,null,null,null,null,238,null,null,0]
["",null,null,null,null,null,null,null,"",null,null,null,null,null,null,null,null,null,null,null,null,null,null,null,null,null,null,null,null,null,null,null,null,null,null,null,null,null,null,null,null,null,null,null,null,null,null,null,null,null,null,null,null,239,null,0,"","","","","","",null,239,null,null,null,null,null,null,239,null,0]
["",null,null,null,null,null,null,null,"",null,null,null,null,null,null,null,null,null,null,null,null,null,null,null,null,null,null,null,null,null,null,null,null,null,null,null,null,null,null,null,null,null,null,null,null,null,null,null,null,null,null,null,null,null,240,0,"","","","","","",null,240,null,null,null,null,null,null,null,240,0]
["",null,null,null,null,null,null,null,"",null,null,null,null,null,null,null,null,null,null,null,null,null,null,null,null,null,null,null,null,null,null,null,null,null,null,null,null,null,null,null,null,null,null,null,null,null,null,null,null,null,null,null,null,241,null,0,"","","","","","",null,241,241,null,null,null,null,null,null,null,0]
["",null,null,null,null,null,null,null,"",null,null,null,null,null,null,null,null,null,null,null,null,null,null,null,null,null,null,null,null,null,null,null,null,null,null,null,null,null,null,null,null,null,null,null,null,null,null,null,null,null,null,null,null,null,242,0,"","","","","","",null,242,null,242,null,null,null,null,null,null,0]
["",null,null,null,null,null,null,null,"",null,null,null,null,null,null,null,null,null,null,null,null,null,null,null,null,null,null,null,null,null,null,null,null,null,null,null,null,null,null,null,null,null,null,null,null,null,null,null,null,null,null,null,null,243,null,0,"","","","","","",null,243,null,null,243,null,null,null,null,null,0]
["",null,null,null,null,null,null,null,"",null,null,null,null,null,null,null,null,null,null,null,null,null,null,null,null,null,null,null,null,null,null,null,null,null,null,null,null,null,null,null,null,null,null,null,null,null,null,null,null,null,null,null,null,null,244,0,"","","","","","",null,244,null,null,null,244,null,null,null,null,0]
["",null,null,null,null,null,null,null,"",null,null,null,null,null,null,null,null,null,null,null,null,null,null,null,null,null,null,null,null,null,null,null,null,null,null,null,null,null,null,null,null,null,null,null,null,null,null,null,null,null,null,null,null,245,null,0,"","","","","","",null,245,null,null,null,null,245,null,null,null,0]
["",null,null,null,null,null,null,null,"",null,null,null,null,null,null,null,null,null,null,null,null,null,null,null,null,null,null,null,null,null,null,null,null,null,null,null,null,null,null,null,null,null,null,null,null,null,null,null,null,null,null,null,null,null,246,0,"","","","","","",null,246,null,null,null,null,null,246,null,null,0]
["",null,null,null,null,null,null,null,"",null,null,null,null,null,null,null,null,null,null,null,null,null,null,null,null,null,null,null,null,null,null,null,null,null,null,null,null,null,null,null,null,null,null,null,null,null,null,null,null,null,null,null,null,247,null,0,"","","","","","",null,247,null,null,null,null,null,null,247,null,0]
["",null,null,null,null,null,null,null,"",null,null,null,null,null,null,null,null,null,null,null,null,null,null,null,null,null,null,null,null,null,null,null,null,null,null,null,null,null,null,null,null,null,null,null,null,null,null,null,null,null,null,null,null,null,248,0,"","","","","","",null,248,null,null,null,null,null,null,null,248,0]
["",null,null,null,null,null,null,null,"",null,null,null,null,null,null,null,null,null,null,null,null,null,null,null,null,null,null,null,null,null,null,null,null,null,null,null,null,null,null,null,null,null,null,null,null,null,null,null,null,null,null,null,null,249,null,0,"","","","","","",null,249,249,null,null,null,null,null,null,null,0]
["",null,null,null,null,null,null,null,"",null,null,null,null,null,null,null,null,null,null,null,null,null,null,null,null,null,null,null,null,null,null,null,null,null,null,null,null,null,null,null,null,null,null,null,null,null,null,null,null,null,null,null,null,null,250,0,"","","","","","",null,250,null,250,null,null,null,null,null,null,0]
["",null,null,null,null,null,null,null,"",null,null,null,null,null,null,null,null,null,null,null,null,null,null,null,null,null,null,null,null,null,null,null,null,null,null,null,null,null,null,null,null,null,null,null,null,null,null,null,null,null,null,null,null,251,null,0,"","","","","","",null,251,null,null,251,null,null,null,null,null,0]
["",null,null,null,null,null,null,null,"",null,null,null,null,null,null,null,null,null,null,null,null,null,null,null,null,null,null,null,null,null,null,null,null,null,null,null,null,null,null,null,null,null,null,null,null,null,null,null,null,null,null,null,null,null,252,0,"","","","","","",null,252,null,null,null,252,null,null,null,null,0]
["",null,null,null,null,null,null,null,"",null,null,null,null,null,null,null,null,null,null,null,null,null,null,null,null,null,null,null,null,null,null,null,null,null,null,null,null,null,null,null,null,null,null,null,null,null,null,null,null,null,null,null,null,253,null,0,"","","","","","",null,253,null,null,null,null,253,null,null,null,0]
["",null,null,null,null,null,null,null,"",null,null,null,null,null,null,null,null,null,null,null,null,null,null,null,null,null,null,null,null,null,null,null,null,null,null,null,null,null,null,null,null,null,null,null,null,null,null,null,null,null,null,null,null,null,254,0,"","","","","","",null,254,null,null,null,null,null,254,null,null,0]
["",null,null,null,null,null,null,null,"",null,null,null,null,null,null,null,null,null,null,null,null,null,null,null,null,null,null,null,null,null,null,null,null,null,null,null,null,null,null,null,null,null,null,null,null,null,null,null,null,null,null,null,null,255,null,0,"","","","","","",null,255,null,null,null,null,null,null,255,null,0]
["",null,null,null,null,null,null,null,"",null,null,null,null,null,null,null,null,null,null,null,null,null,null,null,null,null,null,null,null,null,null,null,null,null,null,null,null,null,null,null,null,null,null,null,null,null,null,null,null,null,null,null,null,null,256,0,"","","","","","",null,256,null,null,null,null,null,null,null,256,0]
[{"$f":"IF(B264=\"\",\"\",ROW()-7)","v":""},null,null,null,null,null,null,null,{"$f":"IF(H264<>\"\",(H264),\"\")","v":""},null,null,null,null,null,null,null,null,null,null,null,null,null,null,null,null,null,null,null,null,null,null,null,null,null,null,null,null,null,null,null,null,null,null,null,null,null,null,null,null,null,null,null,null,257,null,0,"","","","","","",null,257,257,null,null,null,null,null,null,null,{"$f":"SUM(L265,O265,R265,V265,Z265,AC265,AG265)","v":0}]
["",null,null,null,null,null,null,null,"",null,null,null,null,null,null,null,null,null,null,null,null,null,null,null,null,null,null,null,null,null,null,null,null,null,null,null,null,null,null,null,null,null,null,null,null,null,null,null,null,null,null,null,null,null,258,{"$f":"SUM(L265,O265,R265,V265,Z265,AC265,AG265)","v":0},{"$f":"IF(OR(C265=\"\",Z265=\"\"),\"\",COUNTIF(BD$8:BD$600,\">\"&BD265)+1)","v":""},{"$f":"IF(B265=\"\",\"\",B265)","v":""},{"$f":"IF(C265=\"\",\"\",C265)","v":""},{"$f":"IF(D265=\"\",\"\",D265)","v":""},{"$f":"IF(E265=\"\",\"\",E265)","v":""},{"$f":"IF(F265=\"\",\"\",F265)","v":""},null,258,null,258,null,null,null,null,null,null,0]
["",null,null,null,null,null,null,null,"",null,null,null,null,null,null,null,null,null,null,null,null,null,null,null,null,null,null,null,null,null,null,null,null,null,null,null,null,null,null,null,null,null,null,null,null,null,null,null,null,null,null,null,null,259,null,0,"","","","","","",null,259,null,null,259,null,null,null,null,null,0]
["",null,null,null,null,null,null,null,"",null,null,null,null,null,null,null,null,null,null,null,null,null,null,null,null,null,null,null,null,null,null,null,null,null,null,null,null,null,null,null,null,null,null,null,null,null,null,null,null,null,null,null,null,null,260,0,"","","","","","",null,260,null,null,null,260,null,null,null,null,0]
["",null,null,null,null,null,null,null,"",null,null,null,null,null,null,null,null,null,null,null,null,null,null,null,null,null,null,null,null,null,null,null,null,null,null,null,null,null,null,null,null,null,null,null,null,null,null,null,null,null,null,null,null,261,null,0,"","","","","","",null,261,null,null,null,null,261,null,null,null,0]
["",null,null,null,null,null,null,null,"",null,null,null,null,null,null,null,null,null,null,null,null,null,null,null,null,null,null,null,null,null,null,null,null,null,null,null,null,null,null,null,null,null,null,null,null,null,null,null,null,null,null,null,null,null,262,0,"","","","","","",null,262,null,null,null,null,null,262,null,null,0]
["",null,null,null,null,null,null,null,"",null,null,null,null,null,null,null,null,null,null,null,null,null,null,null,null,null,null,null,null,null,null,null,null,null,null,null,null,null,null,null,null,null,null,null,null,null,null,null,null,null,null,null,null,263,null,0,"","","","","","",null,263,null,null,null,null,null,null,263,null,0]
["",null,null,null,null,null,null,null,"",null,null,null,null,null,null,null,null,null,null,null,null,null,null,null,null,null,null,null,null,null,null,null,null,null,null,null,null,null,null,null,null,null,null,null,null,null,null,null,null,null,null,null,null,null,264,0,"","","","","","",null,264,null,null,null,null,null,null,null,264,0]
["",null,null,null,null,null,null,null,"",null,null,null,null,null,null,null,null,null,null,null,null,null,null,null,null,null,null,null,null,null,null,null,null,null,null,null,null,null,null,null,null,null,null,null,null,null,null,null,null,null,null,null,null,265,null,0,"","","","","","",null,265,265,null,null,null,null,null,null,null,0]
["",null,null,null,null,null,null,null,"",null,null,null,null,null,null,null,null,null,null,null,null,null,null,null,null,null,null,null,null,null,null,null,null,null,null,null,null,null,null,null,null,null,null,null,null,null,null,null,null,null,null,null,null,null,266,0,"","","","","","",null,266,null,266,null,null,null,null,null,null,0]
["",null,null,null,null,null,null,null,"",null,null,null,null,null,null,null,null,null,null,null,null,null,null,null,null,null,null,null,null,null,null,null,null,null,null,null,null,null,null,null,null,null,null,null,null,null,null,null,null,null,null,null,null,267,null,0,"","","","","","",null,267,null,null,267,null,null,null,null,null,0]
["",null,null,null,null,null,null,null,"",null,null,null,null,null,null,null,null,null,null,null,null,null,null,null,null,null,null,null,null,null,null,null,null,null,null,null,null,null,null,null,null,null,null,null,null,null,null,null,null,null,null,null,null,null,268,0,"","","","","","",null,268,null,null,null,268,null,null,null,null,0]
["",null,null,null,null,null,null,null,"",null,null,null,null,null,null,null,null,null,null,null,null,null,null,null,null,null,null,null,null,null,null,null,null,null,null,null,null,null,null,null,null,null,null,null,null,null,null,null,null,null,null,null,null,269,null,0,"","","","","","",null,269,null,null,null,null,269,null,null,null,0]
["",null,null,null,null,null,null,null,"",null,null,null,null,null,null,null,null,null,null,null,null,null,null,null,null,null,null,null,null,null,null,null,null,null,null,null,null,null,null,null,null,null,null,null,null,null,null,null,null,null,null,null,null,null,270,0,"","","","","","",null,270,null,null,null,null,null,270,null,null,0]
["",null,null,null,null,null,null,null,"",null,null,null,null,null,null,null,null,null,null,null,null,null,null,null,null,null,null,null,null,null,null,null,null,null,null,null,null,null,null,null,null,null,null,null,null,null,null,null,null,null,null,null,null,271,null,0,"","","","","","",null,271,null,null,null,null,null,null,271,null,0]
["",null,null,null,null,null,null,null,"",null,null,null,null,null,null,null,null,null,null,null,null,null,null,null,null,null,null,null,null,null,null,null,null,null,null,null,null,null,null,null,null,null,null,null,null,null,null,null,null,null,null,null,null,null,272,0,"","","","","","",null,272,null,null,null,null,null,null,null,272,0]
["",null,null,null,null,null,null,null,"",null,null,null,null,null,null,null,null,null,null,null,null,null,null,null,null,null,null,null,null,null,null,null,null,null,null,null,null,null,null,null,null,null,null,null,null,null,null,null,null,null,null,null,null,273,null,0,"","","","","","",null,273,273,null,null,null,null,null,null,null,0]
["",null,null,null,null,null,null,null,"",null,null,null,null,null,null,null,null,null,null,null,null,null,null,null,null,null,null,null,null,null,null,null,null,null,null,null,null,null,null,null,null,null,null,null,null,null,null,null,null,null,null,null,null,null,274,0,"","","","","","",null,274,null,274,null,null,null,null,null,null,0]
["",null,null,null,null,null,null,null,"",null,null,null,null,null,null,null,null,null,null,null,null,null,null,null,null,null,null,null,null,null,null,null,null,null,null,null,null,null,null,null,null,null,null,null,null,null,null,null,null,null,null,null,null,275,null,0,"","","","","","",null,275,null,null,275,null,null,null,null,null,0]
["",null,null,null,null,null,null,null,"",null,null,null,null,null,null,null,null,null,null,null,null,null,null,null,null,null,null,null,null,null,null,null,null,null,null,null,null,null,null,null,null,null,null,null,null,null,null,null,null,null,null,null,null,null,276,0,"","","","","","",null,276,null,null,null,276,null,null,null,null,0]
["",null,null,null,null,null,null,null,"",null,null,null,null,null,null,null,null,null,null,null,null,null,null,null,null,null,null,null,null,null,null,null,null,null,null,null,null,null,null,null,null,null,null,null,null,null,null,null,null,null,null,null,null,277,null,0,"","","","","","",null,277,null,null,null,null,277,null,null,null,0]
["",null,null,null,null,null,null,null,"",null,null,null,null,null,null,null,null,null,null,null,null,null,null,null,null,null,null,null,null,null,null,null,null,null,null,null,null,null,null,null,null,null,null,null,null,null,null,null,null,null,null,null,null,null,278,0,"","","","","","",null,278,null,null,null,null,null,278,null,null,0]
["",null,null,null,null,null,null,null,"",null,null,null,null,null,null,null,null,null,null,null,null,null,null,null,null,null,null,null,null,null,null,null,null,null,null,null,null,null,null,null,null,null,null,null,null,null,null,null,null,null,null,null,null,279,null,0,"","","","","","",null,279,null,null,null,null,null,null,279,null,0]
["",null,null,null,null,null,null,null,"",null,null,null,null,null,null,null,null,null,null,null,null,null,null,null,null,null,null,null,null,null,null,null,null,null,null,null,null,null,null,null,null,null,null,null,null,null,null,null,null,null,null,null,null,null,280,0,"","","","","","",null,280,null,null,null,null,null,null,null,280,0]
["",null,null,null,null,null,null,null,"",null,null,null,null,null,null,null,null,null,null,null,null,null,null,null,null,null,null,null,null,null,null,null,null,null,null,null,null,null,null,null,null,null,null,null,null,null,null,null,null,null,null,null,null,281,null,0,"","","","","","",null,281,281,null,null,null,null,null,null,null,0]
["",null,null,null,null,null,null,null,"",null,null,null,null,null,null,null,null,null,null,null,null,null,null,null,null,null,null,null,null,null,null,null,null,null,null,null,null,null,null,null,null,null,null,null,null,null,null,null,null,null,null,null,null,null,282,0,"","","","","","",null,282,null,282,null,null,null,null,null,null,0]
["",null,null,null,null,null,null,null,"",null,null,null,null,null,null,null,null,null,null,null,null,null,null,null,null,null,null,null,null,null,null,null,null,null,null,null,null,null,null,null,null,null,null,null,null,null,null,null,null,null,null,null,null,283,null,0,"","","","","","",null,283,null,null,283,null,null,null,null,null,0]
["",null,null,null,null,null,null,null,"",null,null,null,null,null,null,null,null,null,null,null,null,null,null,null,null,null,null,null,null,null,null,null,null,null,null,null,null,null,null,null,null,null,null,null,null,null,null,null,null,null,null,null,null,null,284,0,"","","","","","",null,284,null,null,null,284,null,null,null,null,0]
["",null,null,null,null,null,null,null,"",null,null,null,null,null,null,null,null,null,null,null,null,null,null,null,null,null,null,null,null,null,null,null,null,null,null,null,null,null,null,null,null,null,null,null,null,null,null,null,null,null,null,null,null,285,null,0,"","","","","","",null,285,null,null,null,null,285,null,null,null,0]
["",null,null,null,null,null,null,null,"",null,null,null,null,null,null,null,null,null,null,null,null,null,null,null,null,null,null,null,null,null,null,null,null,null,null,null,null,null,null,null,null,null,null,null,null,null,null,null,null,null,null,null,null,null,286,0,"","","","","","",null,286,null,null,null,null,null,286,null,null,0]
["",null,null,null,null,null,null,null,"",null,null,null,null,null,null,null,null,null,null,null,null,null,null,null,null,null,null,null,null,null,null,null,null,null,null,null,null,null,null,null,null,null,null,null,null,null,null,null,null,null,null,null,null,287,null,0,"","","","","","",null,287,null,null,null,null,null,null,287,null,0]
["",null,null,null,null,null,null,null,"",null,null,null,null,null,null,null,null,null,null,null,null,null,null,null,null,null,null,null,null,null,null,null,null,null,null,null,null,null,null,null,null,null,null,null,null,null,null,null,null,null,null,null,null,null,288,0,"","","","","","",null,288,null,null,null,null,null,null,null,288,0]
["",null,null,null,null,null,null,null,"",null,null,null,null,null,null,null,null,null,null,null,null,null,null,null,null,null,null,null,null,null,null,null,null,null,null,null,null,null,null,null,null,null,null,null,null,null,null,null,null,null,null,null,null,289,null,0,"","","","","","",null,289,289,null,null,null,null,null,null,null,0]
["",null,null,null,null,null,null,null,"",null,null,null,null,null,null,null,null,null,null,null,null,null,null,null,null,null,null,null,null,null,null,null,null,null,null,null,null,null,null,null,null,null,null,null,null,null,null,null,null,null,null,null,null,null,290,0,"","","","","","",null,290,null,290,null,null,null,null,null,null,0]
["",null,null,null,null,null,null,null,"",null,null,null,null,null,null,null,null,null,null,null,null,null,null,null,null,null,null,null,null,null,null,null,null,null,null,null,null,null,null,null,null,null,null,null,null,null,null,null,null,null,null,null,null,291,null,0,"","","","","","",null,291,null,null,291,null,null,null,null,null,0]
["",null,null,null,null,null,null,null,"",null,null,null,null,null,null,null,null,null,null,null,null,null,null,null,null,null,null,null,null,null,null,null,null,null,null,null,null,null,null,null,null,null,null,null,null,null,null,null,null,null,null,null,null,null,292,0,"","","","","","",null,292,null,null,null,292,null,null,null,null,0]
["",null,null,null,null,null,null,null,"",null,null,null,null,null,null,null,null,null,null,null,null,null,null,null,null,null,null,null,null,null,null,null,null,null,null,null,null,null,null,null,null,null,null,null,null,null,null,null,null,null,null,null,null,293,null,0,"","","","","","",null,293,null,null,null,null,293,null,null,null,0]
["",null,null,null,null,null,null,null,"",null,null,null,null,null,null,null,null,null,null,null,null,null,null,null,null,null,null,null,null,null,null,null,null,null,null,null,null,null,null,null,null,null,null,null,null,null,null,null,null,null,null,null,null,null,294,0,"","","","","","",null,294,null,null,null,null,null,294,null,null,0]
["",null,null,null,null,null,null,null,"",null,null,null,null,null,null,null,null,null,null,null,null,null,null,null,null,null,null,null,null,null,null,null,null,null,null,null,null,null,null,null,null,null,null,null,null,null,null,null,null,null,null,null,null,295,null,0,"","","","","","",null,295,null,null,null,null,null,null,295,null,0]
["",null,null,null,null,null,null,null,"",null,null,null,null,null,null,null,null,null,null,null,null,null,null,null,null,null,null,null,null,null,null,null,null,null,null,null,null,null,null,null,null,null,null,null,null,null,null,null,null,null,null,null,null,null,296,0,"","","","","","",null,296,null,null,null,null,null,null,null,296,0]
["",null,null,null,null,null,null,null,"",null,null,null,null,null,null,null,null,null,null,null,null,null,null,null,null,null,null,null,null,null,null,null,null,null,null,null,null,null,null,null,null,null,null,null,null,null,null,null,null,null,null,null,null,297,null,0,"","","","","","",null,297,297,null,null,null,null,null,null,null,0]
["",null,null,null,null,null,null,null,"",null,null,null,null,null,null,null,null,null,null,null,null,null,null,null,null,null,null,null,null,null,null,null,null,null,null,null,null,null,null,null,null,null,null,null,null,null,null,null,null,null,null,null,null,null,298,0,"","","","","","",null,298,null,298,null,null,null,null,null,null,0]
["",null,null,null,null,null,null,null,"",null,null,null,null,null,null,null,null,null,null,null,null,null,null,null,null,null,null,null,null,null,null,null,null,null,null,null,null,null,null,null,null,null,null,null,null,null,null,null,null,null,null,null,null,299,null,0,"","","","","","",null,299,null,null,299,null,null,null,null,null,0]
["",null,null,null,null,null,null,null,"",null,null,null,null,null,null,null,null,null,null,null,null,null,null,null,null,null,null,null,null,null,null,null,null,null,null,null,null,null,null,null,null,null,null,null,null,null,null,null,null,null,null,null,null,null,300,0,"","","","","","",null,300,null,null,null,300,null,null,null,null,0]
["",null,null,null,null,null,null,null,"",null,null,null,null,null,null,null,null,null,null,null,null,null,null,null,null,null,null,null,null,null,null,null,null,null,null,null,null,null,null,null,null,null,null,null,null,null,null,null,null,null,null,null,null,301,null,0,"","","","","","",null,301,null,null,null,null,301,null,null,null,0]
["",null,null,null,null,null,null,null,"",null,null,null,null,null,null,null,null,null,null,null,null,null,null,null,null,null,null,null,null,null,null,null,null,null,null,null,null,null,null,null,null,null,null,null,null,null,null,null,null,null,null,null,null,null,302,0,"","","","","","",null,302,null,null,null,null,null,302,null,null,0]
["",null,null,null,null,null,null,null,"",null,null,null,null,null,null,null,null,null,null,null,null,null,null,null,null,null,null,null,null,null,null,null,null,null,null,null,null,null,null,null,null,null,null,null,null,null,null,null,null,null,null,null,null,303,null,0,"","","","","","",null,303,null,null,null,null,null,null,303,null,0]
["",null,null,null,null,null,null,null,"",null,null,null,null,null,null,null,null,null,null,null,null,null,null,null,null,null,null,null,null,null,null,null,null,null,null,null,null,null,null,null,null,null,null,null,null,null,null,null,null,null,null,null,null,null,304,0,"","","","","","",null,304,null,null,null,null,null,null,null,304,0]
["",null,null,null,null,null,null,null,"",null,null,null,null,null,null,null,null,null,null,null,null,null,null,null,null,null,null,null,null,null,null,null,null,null,null,null,null,null,null,null,null,null,null,null,null,null,null,null,null,null,null,null,null,305,null,0,"","","","","","",null,305,305,null,null,null,null,null,null,null,0]
["",null,null,null,null,null,null,null,"",null,null,null,null,null,null,null,null,null,null,null,null,null,null,null,null,null,null,null,null,null,null,null,null,null,null,null,null,null,null,null,null,null,null,null,null,null,null,null,null,null,null,null,null,null,306,0,"","","","","","",null,306,null,306,null,null,null,null,null,null,0]
["",null,null,null,null,null,null,null,"",null,null,null,null,null,null,null,null,null,null,null,null,null,null,null,null,null,null,null,null,null,null,null,null,null,null,null,null,null,null,null,null,null,null,null,null,null,null,null,null,null,null,null,null,307,null,0,"","","","","","",null,307,null,null,307,null,null,null,null,null,0]
["",null,null,null,null,null,null,null,"",null,null,null,null,null,null,null,null,null,null,null,null,null,null,null,null,null,null,null,null,null,null,null,null,null,null,null,null,null,null,null,null,null,null,null,null,null,null,null,null,null,null,null,null,null,308,0,"","","","","","",null,308,null,null,null,308,null,null,null,null,0]
["",null,null,null,null,null,null,null,"",null,null,null,null,null,null,null,null,null,null,null,null,null,null,null,null,null,null,null,null,null,null,null,null,null,null,null,null,null,null,null,null,null,null,null,null,null,null,null,null,null,null,null,null,309,null,0,"","","","","","",null,309,null,null,null,null,309,null,null,null,0]
["",null,null,null,null,null,null,null,"",null,null,null,null,null,null,null,null,null,null,null,null,null,null,null,null,null,null,null,null,null,null,null,null,null,null,null,null,null,null,null,null,null,null,null,null,null,null,null,null,null,null,null,null,null,310,0,"","","","","","",null,310,null,null,null,null,null,310,null,null,0]
["",null,null,null,null,null,null,null,"",null,null,null,null,null,null,null,null,null,null,null,null,null,null,null,null,null,null,null,null,null,null,null,null,null,null,null,null,null,null,null,null,null,null,null,null,null,null,null,null,null,null,null,null,311,null,0,"","","","","","",null,311,null,null,null,null,null,null,311,null,0]
["",null,null,null,null,null,null,null,"",null,null,null,null,null,null,null,null,null,null,null,null,null,null,null,null,null,null,null,null,null,null,null,null,null,null,null,null,null,null,null,null,null,null,null,null,null,null,null,null,null,null,null,null,null,312,0,"","","","","","",null,312,null,null,null,null,null,null,null,312,0]
["",null,null,null,null,null,null,null,"",null,null,null,null,null,null,null,null,null,null,null,null,null,null,null,null,null,null,null,null,null,null,null,null,null,null,null,null,null,null,null,null,null,null,null,null,null,null,null,null,null,null,null,null,313,null,0,"","","","","","",null,313,313,null,null,null,null,null,null,null,0]
["",null,null,null,null,null,null,null,"",null,null,null,null,null,null,null,null,null,null,null,null,null,null,null,null,null,null,null,null,null,null,null,null,null,null,null,null,null,null,null,null,null,null,null,null,null,null,null,null,null,null,null,null,null,314,0,"","","","","","",null,314,null,314,null,null,null,null,null,null,0]
["",null,null,null,null,null,null,null,"",null,null,null,null,null,null,null,null,null,null,null,null,null,null,null,null,null,null,null,null,null,null,null,null,null,null,null,null,null,null,null,null,null,null,null,null,null,null,null,null,null,null,null,null,315,null,0,"","","","","","",null,315,null,null,315,null,null,null,null,null,0]
["",null,null,null,null,null,null,null,"",null,null,null,null,null,null,null,null,null,null,null,null,null,null,null,null,null,null,null,null,null,null,null,null,null,null,null,null,null,null,null,null,null,null,null,null,null,null,null,null,null,null,null,null,null,316,0,"","","","","","",null,316,null,null,null,316,null,null,null,null,0]
["",null,null,null,null,null,null,null,"",null,null,null,null,null,null,null,null,null,null,null,null,null,null,null,null,null,null,null,null,null,null,null,null,null,null,null,null,null,null,null,null,null,null,null,null,null,null,null,null,null,null,null,null,317,null,0,"","","","","","",null,317,null,null,null,null,317,null,null,null,0]
["",null,null,null,null,null,null,null,"",null,null,null,null,null,null,null,null,null,null,null,null,null,null,null,null,null,null,null,null,null,null,null,null,null,null,null,null,null,null,null,null,null,null,null,null,null,null,null,null,null,null,null,null,null,318,0,"","","","","","",null,318,null,null,null,null,null,318,null,null,0]
["",null,null,null,null,null,null,null,"",null,null,null,null,null,null,null,null,null,null,null,null,null,null,null,null,null,null,null,null,null,null,null,null,null,null,null,null,null,null,null,null,null,null,null,null,null,null,null,null,null,null,null,null,319,null,0,"","","","","","",null,319,null,null,null,null,null,null,319,null,0]
["",null,null,null,null,null,null,null,"",null,null,null,null,null,null,null,null,null,null,null,null,null,null,null,null,null,null,null,null,null,null,null,null,null,null,null,null,null,null,null,null,null,null,null,null,null,null,null,null,null,null,null,null,null,320,0,"","","","","","",null,320,null,null,null,null,null,null,null,320,0]
[{"$f":"IF(B328=\"\",\"\",ROW()-7)","v":""},null,null,null,null,null,null,null,{"$f":"IF(H328<>\"\",(H328),\"\")","v":""},null,null,null,null,null,null,null,null,null,null,null,null,null,null,null,null,null,null,null,null,null,null,null,null,null,null,null,null,null,null,null,null,null,null,null,null,null,null,null,null,null,null,null,null,321,null,0,"","","","","","",null,321,321,null,null,null,null,null,null,null,{"$f":"SUM(L329,O329,R329,V329,Z329,AC329,AG329)","v":0}]
["",null,null,null,null,null,null,null,"",null,null,null,null,null,null,null,null,null,null,null,null,null,null,null,null,null,null,null,null,null,null,null,null,null,null,null,null,null,null,null,null,null,null,null,null,null,null,null,null,null,null,null,null,null,322,{"$f":"SUM(L329,O329,R329,V329,Z329,AC329,AG329)","v":0},{"$f":"IF(OR(C329=\"\",Z329=\"\"),\"\",COUNTIF(BD$8:BD$600,\">\"&BD329)+1)","v":""},{"$f":"IF(B329=\"\",\"\",B329)","v":""},{"$f":"IF(C329=\"\",\"\",C329)","v":""},{"$f":"IF(D329=\"\",\"\",D329)","v":""},{"$f":"IF(E329=\"\",\"\",E329)","v":""},{"$f":"IF(F329=\"\",\"\",F329)","v":""},null,322,null,322,null,null,null,null,null,null,0]
["",null,null,null,null,null,null,null,"",null,null,null,null,null,null,null,null,null,null,null,null,null,null,null,null,null,null,null,null,null,null,null,null,null,null,null,null,null,null,null,null,null,null,null,null,null,null,null,null,null,null,null,null,323,null,0,"","","","","","",null,323,null,null,323,null,null,null,null,null,0]
["",null,null,null,null,null,null,null,"",null,null,null,null,null,null,null,null,null,null,null,null,null,null,null,null,null,null,null,null,null,null,null,null,null,null,null,null,null,null,null,null,null,null,null,null,null,null,null,null,null,null,null,null,null,324,0,"","","","","","",null,324,null,null,null,324,null,null,null,null,0]
["",null,null,null,null,null,null,null,"",null,null,null,null,null,null,null,null,null,null,null,null,null,null,null,null,null,null,null,null,null,null,null,null,null,null,null,null,null,null,null,null,null,null,null,null,null,null,null,null,null,null,null,null,325,null,0,"","","","","","",null,325,null,null,null,null,325,null,null,null,0]
["",null,null,null,null,null,null,null,"",null,null,null,null,null,null,null,null,null,null,null,null,null,null,null,null,null,null,null,null,null,null,null,null,null,null,null,null,null,null,null,null,null,null,null,null,null,null,null,null,null,null,null,null,null,326,0,"","","","","","",null,326,null,null,null,null,null,326,null,null,0]
["",null,null,null,null,null,null,null,"",null,null,null,null,null,null,null,null,null,null,null,null,null,null,null,null,null,null,null,null,null,null,null,null,null,null,null,null,null,null,null,null,null,null,null,null,null,null,null,null,null,null,null,null,327,null,0,"","","","","","",null,327,null,null,null,null,null,null,327,null,0]
["",null,null,null,null,null,null,null,"",null,null,null,null,null,null,null,null,null,null,null,null,null,null,null,null,null,null,null,null,null,null,null,null,null,null,null,null,null,null,null,null,null,null,null,null,null,null,null,null,null,null,null,null,null,328,0,"","","","","","",null,328,null,null,null,null,null,null,null,328,0]
["",null,null,null,null,null,null,null,"",null,null,null,null,null,null,null,null,null,null,null,null,null,null,null,null,null,null,null,null,null,null,null,null,null,null,null,null,null,null,null,null,null,null,null,null,null,null,null,null,null,null,null,null,329,null,0,"","","","","","",null,329,329,null,null,null,null,null,null,null,0]
["",null,null,null,null,null,null,null,"",null,null,null,null,null,null,null,null,null,null,null,null,null,null,null,null,null,null,null,null,null,null,null,null,null,null,null,null,null,null,null,null,null,null,null,null,null,null,null,null,null,null,null,null,null,330,0,"","","","","","",null,330,null,330,null,null,null,null,null,null,0]
["",null,null,null,null,null,null,null,"",null,null,null,null,null,null,null,null,null,null,null,null,null,null,null,null,null,null,null,null,null,null,null,null,null,null,null,null,null,null,null,null,null,null,null,null,null,null,null,null,null,null,null,null,331,null,0,"","","","","","",null,331,null,null,331,null,null,null,null,null,0]
["",null,null,null,null,null,null,null,"",null,null,null,null,null,null,null,null,null,null,null,null,null,null,null,null,null,null,null,null,null,null,null,null,null,null,null,null,null,null,null,null,null,null,null,null,null,null,null,null,null,null,null,null,null,332,0,"","","","","","",null,332,null,null,null,332,null,null,null,null,0]
["",null,null,null,null,null,null,null,"",null,null,null,null,null,null,null,null,null,null,null,null,null,null,null,null,null,null,null,null,null,null,null,null,null,null,null,null,null,null,null,null,null,null,null,null,null,null,null,null,null,null,null,null,333,null,0,"","","","","","",null,333,null,null,null,null,333,null,null,null,0]
["",null,null,null,null,null,null,null,"",null,null,null,null,null,null,null,null,null,null,null,null,null,null,null,null,null,null,null,null,null,null,null,null,null,null,null,null,null,null,null,null,null,null,null,null,null,null,null,null,null,null,null,null,null,334,0,"","","","","","",null,334,null,null,null,null,null,334,null,null,0]
["",null,null,null,null,null,null,null,"",null,null,null,null,null,null,null,null,null,null,null,null,null,null,null,null,null,null,null,null,null,null,null,null,null,null,null,null,null,null,null,null,null,null,null,null,null,null,null,null,null,null,null,null,335,null,0,"","","","","","",null,335,null,null,null,null,null,null,335,null,0]
["",null,null,null,null,null,null,null,"",null,null,null,null,null,null,null,null,null,null,null,null,null,null,null,null,null,null,null,null,null,null,null,null,null,null,null,null,null,null,null,null,null,null,null,null,null,null,null,null,null,null,null,null,null,336,0,"","","","","","",null,336,null,null,null,null,null,null,null,336,0]
["",null,null,null,null,null,null,null,"",null,null,null,null,null,null,null,null,null,null,null,null,null,null,null,null,null,null,null,null,null,null,null,null,null,null,null,null,null,null,null,null,null,null,null,null,null,null,null,null,null,null,null,null,337,null,0,"","","","","","",null,337,337,null,null,null,null,null,null,null,0]
["",null,null,null,null,null,null,null,"",null,null,null,null,null,null,null,null,null,null,null,null,null,null,null,null,null,null,null,null,null,null,null,null,null,null,null,null,null,null,null,null,null,null,null,null,null,null,null,null,null,null,null,null,null,338,0,"","","","","","",null,338,null,338,null,null,null,null,null,null,0]
["",null,null,null,null,null,null,null,"",null,null,null,null,null,null,null,null,null,null,null,null,null,null,null,null,null,null,null,null,null,null,null,null,null,null,null,null,null,null,null,null,null,null,null,null,null,null,null,null,null,null,null,null,339,null,0,"","","","","","",null,339,null,null,339,null,null,null,null,null,0]
["",null,null,null,null,null,null,null,"",null,null,null,null,null,null,null,null,null,null,null,null,null,null,null,null,null,null,null,null,null,null,null,null,null,null,null,null,null,null,null,null,null,null,null,null,null,null,null,null,null,null,null,null,null,340,0,"","","","","","",null,340,null,null,null,340,null,null,null,null,0]
["",null,null,null,null,null,null,null,"",null,null,null,null,null,null,null,null,null,null,null,null,null,null,null,null,null,null,null,null,null,null,null,null,null,null,null,null,null,null,null,null,null,null,null,null,null,null,null,null,null,null,null,null,341,null,0,"","","","","","",null,341,null,null,null,null,341,null,null,null,0]
["",null,null,null,null,null,null,null,"",null,null,null,null,null,null,null,null,null,null,null,null,null,null,null,null,null,null,null,null,null,null,null,null,null,null,null,null,null,null,null,null,null,null,null,null,null,null,null,null,null,null,null,null,null,342,0,"","","","","","",null,342,null,null,null,null,null,342,null,null,0]
["",null,null,null,null,null,null,null,"",null,null,null,null,null,null,null,null,null,null,null,null,null,null,null,null,null,null,null,null,null,null,null,null,null,null,null,null,null,null,null,null,null,null,null,null,null,null,null,null,null,null,null,null,343,null,0,"","","","","","",null,343,null,null,null,null,null,null,343,null,0]
["",null,null,null,null,null,null,null,"",null,null,null,null,null,null,null,null,null,null,null,null,null,null,null,null,null,null,null,null,null,null,null,null,null,null,null,null,null,null,null,null,null,null,null,null,null,null,null,null,null,null,null,null,null,344,0,"","","","","","",null,344,null,null,null,null,null,null,null,344,0]
["",null,null,null,null,null,null,null,"",null,null,null,null,null,null,null,null,null,null,null,null,null,null,null,null,null,null,null,null,null,null,null,null,null,null,null,null,null,null,null,null,null,null,null,null,null,null,null,null,null,null,null,null,345,null,0,"","","","","","",null,345,345,null,null,null,null,null,null,null,0]
["",null,null,null,null,null,null,null,"",null,null,null,null,null,null,null,null,null,null,null,null,null,null,null,null,null,null,null,null,null,null,null,null,null,null,null,null,null,null,null,null,null,null,null,null,null,null,null,null,null,null,null,null,null,346,0,"","","","","","",null,346,null,346,null,null,null,null,null,null,0]
["",null,null,null,null,null,null,null,"",null,null,null,null,null,null,null,null,null,null,null,null,null,null,null,null,null,null,null,null,null,null,null,null,null,null,null,null,null,null,null,null,null,null,null,null,null,null,null,null,null,null,null,null,347,null,0,"","","","","","",null,347,null,null,347,null,null,null,null,null,0]
["",null,null,null,null,null,null,null,"",null,null,null,null,null,null,null,null,null,null,null,null,null,null,null,null,null,null,null,null,null,null,null,null,null,null,null,null,null,null,null,null,null,null,null,null,null,null,null,null,null,null,null,null,null,348,0,"","","","","","",null,348,null,null,null,348,null,null,null,null,0]
["",null,null,null,null,null,null,null,"",null,null,null,null,null,null,null,null,null,null,null,null,null,null,null,null,null,null,null,null,null,null,null,null,null,null,null,null,null,null,null,null,null,null,null,null,null,null,null,null,null,null,null,null,349,null,0,"","","","","","",null,349,null,null,null,null,349,null,null,null,0]
["",null,null,null,null,null,null,null,"",null,null,null,null,null,null,null,null,null,null,null,null,null,null,null,null,null,null,null,null,null,null,null,null,null,null,null,null,null,null,null,null,null,null,null,null,null,null,null,null,null,null,null,null,null,350,0,"","","","","","",null,350,null,null,null,null,null,350,null,null,0]
["",null,null,null,null,null,null,null,"",null,null,null,null,null,null,null,null,null,null,null,null,null,null,null,null,null,null,null,null,null,null,null,null,null,null,null,null,null,null,null,null,null,null,null,null,null,null,null,null,null,null,null,null,351,null,0,"","","","","","",null,351,null,null,null,null,null,null,351,null,0]
["",null,null,null,null,null,null,null,"",null,null,null,null,null,null,null,null,null,null,null,null,null,null,null,null,null,null,null,null,null,null,null,null,null,null,null,null,null,null,null,null,null,null,null,null,null,null,null,null,null,null,null,null,null,352,0,"","","","","","",null,352,null,null,null,null,null,null,null,352,0]
["",null,null,null,null,null,null,null,"",null,null,null,null,null,null,null,null,null,null,null,null,null,null,null,null,null,null,null,null,null,null,null,null,null,null,null,null,null,null,null,null,null,null,null,null,null,null,null,null,null,null,null,null,353,null,0,"","","","","","",null,353,353,null,null,null,null,null,null,null,0]
["",null,null,null,null,null,null,null,"",null,null,null,null,null,null,null,null,null,null,null,null,null,null,null,null,null,null,null,null,null,null,null,null,null,null,null,null,null,null,null,null,null,null,null,null,null,null,null,null,null,null,null,null,null,354,0,"","","","","","",null,354,null,354,null,null,null,null,null,null,0]
["",null,null,null,null,null,null,null,"",null,null,null,null,null,null,null,null,null,null,null,null,null,null,null,null,null,null,null,null,null,null,null,null,null,null,null,null,null,null,null,null,null,null,null,null,null,null,null,null,null,null,null,null,355,null,0,"","","","","","",null,355,null,null,355,null,null,null,null,null,0]
["",null,null,null,null,null,null,null,"",null,null,null,null,null,null,null,null,null,null,null,null,null,null,null,null,null,null,null,null,null,null,null,null,null,null,null,null,null,null,null,null,null,null,null,null,null,null,null,null,null,null,null,null,null,356,0,"","","","","","",null,356,null,null,null,356,null,null,null,null,0]
["",null,null,null,null,null,null,null,"",null,null,null,null,null,null,null,null,null,null,null,null,null,null,null,null,null,null,null,null,null,null,null,null,null,null,null,null,null,null,null,null,null,null,null,null,null,null,null,null,null,null,null,null,357,null,0,"","","","","","",null,357,null,null,null,null,357,null,null,null,0]
["",null,null,null,null,null,null,null,"",null,null,null,null,null,null,null,null,null,null,null,null,null,null,null,null,null,null,null,null,null,null,null,null,null,null,null,null,null,null,null,null,null,null,null,null,null,null,null,null,null,null,null,null,null,358,0,"","","","","","",null,358,null,null,null,null,null,358,null,null,0]
["",null,null,null,null,null,null,null,"",null,null,null,null,null,null,null,null,null,null,null,null,null,null,null,null,null,null,null,null,null,null,null,null,null,null,null,null,null,null,null,null,null,null,null,null,null,null,null,null,null,null,null,null,359,null,0,"","","","","","",null,359,null,null,null,null,null,null,359,null,0]
["",null,null,null,null,null,null,null,"",null,null,null,null,null,null,null,null,null,null,null,null,null,null,null,null,null,null,null,null,null,null,null,null,null,null,null,null,null,null,null,null,null,null,null,null,null,null,null,null,null,null,null,null,null,360,0,"","","","","","",null,360,null,null,null,null,null,null,null,360,0]
["",null,null,null,null,null,null,null,"",null,null,null,null,null,null,null,null,null,null,null,null,null,null,null,null,null,null,null,null,null,null,null,null,null,null,null,null,null,null,null,null,null,null,null,null,null,null,null,null,null,null,null,null,361,null,0,"","","","","","",null,361,361,null,null,null,null,null,null,null,0]
["",null,null,null,null,null,null,null,"",null,null,null,null,null,null,null,null,null,null,null,null,null,null,null,null,null,null,null,null,null,null,null,null,null,null,null,null,null,null,null,null,null,null,null,null,null,null,null,null,null,null,null,null,null,362,0,"","","","","","",null,362,null,362,null,null,null,null,null,null,0]
["",null,null,null,null,null,null,null,"",null,null,null,null,null,null,null,null,null,null,null,null,null,null,null,null,null,null,null,null,null,null,null,null,null,null,null,null,null,null,null,null,null,null,null,null,null,null,null,null,null,null,null,null,363,null,0,"","","","","","",null,363,null,null,363,null,null,null,null,null,0]
["",null,null,null,null,null,null,null,"",null,null,null,null,null,null,null,null,null,null,null,null,null,null,null,null,null,null,null,null,null,null,null,null,null,null,null,null,null,null,null,null,null,null,null,null,null,null,null,null,null,null,null,null,null,364,0,"","","","","","",null,364,null,null,null,364,null,null,null,null,0]
["",null,null,null,null,null,null,null,"",null,null,null,null,null,null,null,null,null,null,null,null,null,null,null,null,null,null,null,null,null,null,null,null,null,null,null,null,null,null,null,null,null,null,null,null,null,null,null,null,null,null,null,null,365,null,0,"","","","","","",null,365,null,null,null,null,365,null,null,null,0]
["",null,null,null,null,null,null,null,"",null,null,null,null,null,null,null,null,null,null,null,null,null,null,null,null,null,null,null,null,null,null,null,null,null,null,null,null,null,null,null,null,null,null,null,null,null,null,null,null,null,null,null,null,null,366,0,"","","","","","",null,366,null,null,null,null,null,366,null,null,0]
["",null,null,null,null,null,null,null,"",null,null,null,null,null,null,null,null,null,null,null,null,null,null,null,null,null,null,null,null,null,null,null,null,null,null,null,null,null,null,null,null,null,null,null,null,null,null,null,null,null,null,null,null,367,null,0,"","","","","","",null,367,null,null,null,null,null,null,367,null,0]
["",null,null,null,null,null,null,null,"",null,null,null,null,null,null,null,null,null,null,null,null,null,null,null,null,null,null,null,null,null,null,null,null,null,null,null,null,null,null,null,null,null,null,null,null,null,null,null,null,null,null,null,null,null,368,0,"","","","","","",null,368,null,null,null,null,null,null,null,368,0]
["",null,null,null,null,null,null,null,"",null,null,null,null,null,null,null,null,null,null,null,null,null,null,null,null,null,null,null,null,null,null,null,null,null,null,null,null,null,null,null,null,null,null,null,null,null,null,null,null,null,null,null,null,369,null,0,"","","","","","",null,369,369,null,null,null,null,null,null,null,0]
["",null,null,null,null,null,null,null,"",null,null,null,null,null,null,null,null,null,null,null,null,null,null,null,null,null,null,null,null,null,null,null,null,null,null,null,null,null,null,null,null,null,null,null,null,null,null,null,null,null,null,null,null,null,370,0,"","","","","","",null,370,null,370,null,null,null,null,null,null,0]
["",null,null,null,null,null,null,null,"",null,null,null,null,null,null,null,null,null,null,null,null,null,null,null,null,null,null,null,null,null,null,null,null,null,null,null,null,null,null,null,null,null,null,null,null,null,null,null,null,null,null,null,null,371,null,0,"","","","","","",null,371,null,null,371,null,null,null,null,null,0]
["",null,null,null,null,null,null,null,"",null,null,null,null,null,null,null,null,null,null,null,null,null,null,null,null,null,null,null,null,null,null,null,null,null,null,null,null,null,null,null,null,null,null,null,null,null,null,null,null,null,null,null,null,null,372,0,"","","","","","",null,372,null,null,null,372,null,null,null,null,0]
["",null,null,null,null,null,null,null,"",null,null,null,null,null,null,null,null,null,null,null,null,null,null,null,null,null,null,null,null,null,null,null,null,null,null,null,null,null,null,null,null,null,null,null,null,null,null,null,null,null,null,null,null,373,null,0,"","","","","","",null,373,null,null,null,null,373,null,null,null,0]
["",null,null,null,null,null,null,null,"",null,null,null,null,null,null,null,null,null,null,null,null,null,null,null,null,null,null,null,null,null,null,null,null,null,null,null,null,null,null,null,null,null,null,null,null,null,null,null,null,null,null,null,null,null,374,0,"","","","","","",null,374,null,null,null,null,null,374,null,null,0]
["",null,null,null,null,null,null,null,"",null,null,null,null,null,null,null,null,null,null,null,null,null,null,null,null,null,null,null,null,null,null,null,null,null,null,null,null,null,null,null,null,null,null,null,null,null,null,null,null,null,null,null,null,375,null,0,"","","","","","",null,375,null,null,null,null,null,null,375,null,0]
["",null,null,null,null,null,null,null,"",null,null,null,null,null,null,null,null,null,null,null,null,null,null,null,null,null,null,null,null,null,null,null,null,null,null,null,null,null,null,null,null,null,null,null,null,null,null,null,null,null,null,null,null,null,376,0,"","","","","","",null,376,null,null,null,null,null,null,null,376,0]
["",null,null,null,null,null,null,null,"",null,null,null,null,null,null,null,null,null,null,null,null,null,null,null,null,null,null,null,null,null,null,null,null,null,null,null,null,null,null,null,null,null,null,null,null,null,null,null,null,null,null,null,null,377,null,0,"","","","","","",null,377,377,null,null,null,null,null,null,null,0]
["",null,null,null,null,null,null,null,"",null,null,null,null,null,null,null,null,null,null,null,null,null,null,null,null,null,null,null,null,null,null,null,null,null,null,null,null,null,null,null,null,null,null,null,null,null,null,null,null,null,null,null,null,null,378,0,"","","","","","",null,378,null,378,null,null,null,null,null,null,0]
["",null,null,null,null,null,null,null,"",null,null,null,null,null,null,null,null,null,null,null,null,null,null,null,null,null,null,null,null,null,null,null,null,null,null,null,null,null,null,null,null,null,null,null,null,null,null,null,null,null,null,null,null,379,null,0,"","","","","","",null,379,null,null,379,null,null,null,null,null,0]
["",null,null,null,null,null,null,null,"",null,null,null,null,null,null,null,null,null,null,null,null,null,null,null,null,null,null,null,null,null,null,null,null,null,null,null,null,null,null,null,null,null,null,null,null,null,null,null,null,null,null,null,null,null,380,0,"","","","","","",null,380,null,null,null,380,null,null,null,null,0]
["",null,null,null,null,null,null,null,"",null,null,null,null,null,null,null,null,null,null,null,null,null,null,null,null,null,null,null,null,null,null,null,null,null,null,null,null,null,null,null,null,null,null,null,null,null,null,null,null,null,null,null,null,381,null,0,"","","","","","",null,381,null,null,null,null,381,null,null,null,0]
["",null,null,null,null,null,null,null,"",null,null,null,null,null,null,null,null,null,null,null,null,null,null,null,null,null,null,null,null,null,null,null,null,null,null,null,null,null,null,null,null,null,null,null,null,null,null,null,null,null,null,null,null,null,382,0,"","","","","","",null,382,null,null,null,null,null,382,null,null,0]
["",null,null,null,null,null,null,null,"",null,null,null,null,null,null,null,null,null,null,null,null,null,null,null,null,null,null,null,null,null,null,null,null,null,null,null,null,null,null,null,null,null,null,null,null,null,null,null,null,null,null,null,null,383,null,0,"","","","","","",null,383,null,null,null,null,null,null,383,null,0]
["",null,null,null,null,null,null,null,"",null,null,null,null,null,null,null,null,null,null,null,null,null,null,null,null,null,null,null,null,null,null,null,null,null,null,null,null,null,null,null,null,null,null,null,null,null,null,null,null,null,null,null,null,null,384,0,"","","","","","",null,384,null,null,null,null,null,null,null,384,0]
[{"$f":"IF(B392=\"\",\"\",ROW()-7)","v":""},null,null,null,null,null,null,null,{"$f":"IF(H392<>\"\",(H392),\"\")","v":""},null,null,null,null,null,null,null,null,null,null,null,null,null,null,null,null,null,null,null,null,null,null,null,null,null,null,null,null,null,null,null,null,null,null,null,null,null,null,null,null,null,null,null,null,385,null,0,"","","","","","",null,385,385,null,null,null,null,null,null,null,{"$f":"SUM(L393,O393,R393,V393,Z393,AC393,AG393)","v":0}]
["",null,null,null,null,null,null,null,"",null,null,null,null,null,null,null,null,null,null,null,null,null,null,null,null,null,null,null,null,null,null,null,null,null,null,null,null,null,null,null,null,null,null,null,null,null,null,null,null,null,null,null,null,null,386,{"$f":"SUM(L393,O393,R393,V393,Z393,AC393,AG393)","v":0},{"$f":"IF(OR(C393=\"\",Z393=\"\"),\"\",COUNTIF(BD$8:BD$600,\">\"&BD393)+1)","v":""},{"$f":"IF(B393=\"\",\"\",B393)","v":""},{"$f":"IF(C393=\"\",\"\",C393)","v":""},{"$f":"IF(D393=\"\",\"\",D393)","v":""},{"$f":"IF(E393=\"\",\"\",E393)","v":""},{"$f":"IF(F393=\"\",\"\",F393)","v":""},null,386,null,386,null,null,null,null,null,null,0]
["",null,null,null,null,null,null,null,"",null,null,null,null,null,null,null,null,null,null,null,null,null,null,null,null,null,null,null,null,null,null,null,null,null,null,null,null,null,null,null,null,null,null,null,null,null,null,null,null,null,null,null,null,387,null,0,"","","","","","",null,387,null,null,387,null,null,null,null,null,0]
["",null,null,null,null,null,null,null,"",null,null,null,null,null,null,null,null,null,null,null,null,null,null,null,null,null,null,null,null,null,null,null,null,null,null,null,null,null,null,null,null,null,null,null,null,null,null,null,null,null,null,null,null,null,388,0,"","","","","","",null,388,null,null,null,388,null,null,null,null,0]
["",null,null,null,null,null,null,null,"",null,null,null,null,null,null,null,null,null,null,null,null,null,null,null,null,null,null,null,null,null,null,null,null,null,null,null,null,null,null,null,null,null,null,null,null,null,null,null,null,null,null,null,null,389,null,0,"","","","","","",null,389,null,null,null,null,389,null,null,null,0]
["",null,null,null,null,null,null,null,"",null,null,null,null,null,null,null,null,null,null,null,null,null,null,null,null,null,null,null,null,null,null,null,null,null,null,null,null,null,null,null,null,null,null,null,null,null,null,null,null,null,null,null,null,null,390,0,"","","","","","",null,390,null,null,null,null,null,390,null,null,0]
["",null,null,null,null,null,null,null,"",null,null,null,null,null,null,null,null,null,null,null,null,null,null,null,null,null,null,null,null,null,null,null,null,null,null,null,null,null,null,null,null,null,null,null,null,null,null,null,null,null,null,null,null,391,null,0,"","","","","","",null,391,null,null,null,null,null,null,391,null,0]
["",null,null,null,null,null,null,null,"",null,null,null,null,null,null,null,null,null,null,null,null,null,null,null,null,null,null,null,null,null,null,null,null,null,null,null,null,null,null,null,null,null,null,null,null,null,null,null,null,null,null,null,null,null,392,0,"","","","","","",null,392,null,null,null,null,null,null,null,392,0]
["",null,null,null,null,null,null,null,"",null,null,null,null,null,null,null,null,null,null,null,null,null,null,null,null,null,null,null,null,null,null,null,null,null,null,null,null,null,null,null,null,null,null,null,null,null,null,null,null,null,null,null,null,393,null,0,"","","","","","",null,393,393,null,null,null,null,null,null,null,0]
["",null,null,null,null,null,null,null,"",null,null,null,null,null,null,null,null,null,null,null,null,null,null,null,null,null,null,null,null,null,null,null,null,null,null,null,null,null,null,null,null,null,null,null,null,null,null,null,null,null,null,null,null,null,394,0,"","","","","","",null,394,null,394,null,null,null,null,null,null,0]
["",null,null,null,null,null,null,null,"",null,null,null,null,null,null,null,null,null,null,null,null,null,null,null,null,null,null,null,null,null,null,null,null,null,null,null,null,null,null,null,null,null,null,null,null,null,null,null,null,null,null,null,null,395,null,0,"","","","","","",null,395,null,null,395,null,null,null,null,null,0]
["",null,null,null,null,null,null,null,"",null,null,null,null,null,null,null,null,null,null,null,null,null,null,null,null,null,null,null,null,null,null,null,null,null,null,null,null,null,null,null,null,null,null,null,null,null,null,null,null,null,null,null,null,null,396,0,"","","","","","",null,396,null,null,null,396,null,null,null,null,0]
["",null,null,null,null,null,null,null,"",null,null,null,null,null,null,null,null,null,null,null,null,null,null,null,null,null,null,null,null,null,null,null,null,null,null,null,null,null,null,null,null,null,null,null,null,null,null,null,null,null,null,null,null,397,null,0,"","","","","","",null,397,null,null,null,null,397,null,null,null,0]
["",null,null,null,null,null,null,null,"",null,null,null,null,null,null,null,null,null,null,null,null,null,null,null,null,null,null,null,null,null,null,null,null,null,null,null,null,null,null,null,null,null,null,null,null,null,null,null,null,null,null,null,null,null,398,0,"","","","","","",null,398,null,null,null,null,null,398,null,null,0]
["",null,null,null,null,null,null,null,"",null,null,null,null,null,null,null,null,null,null,null,null,null,null,null,null,null,null,null,null,null,null,null,null,null,null,null,null,null,null,null,null,null,null,null,null,null,null,null,null,null,null,null,null,399,null,0,"","","","","","",null,399,null,null,null,null,null,null,399,null,0]
["",null,null,null,null,null,null,null,"",null,null,null,null,null,null,null,null,null,null,null,null,null,null,null,null,null,null,null,null,null,null,null,null,null,null,null,null,null,null,null,null,null,null,null,null,null,null,null,null,null,null,null,null,null,400,0,"","","","","","",null,400,null,null,null,null,null,null,null,400,0]
["",null,null,null,null,null,null,null,"",null,null,null,null,null,null,null,null,null,null,null,null,null,null,null,null,null,null,null,null,null,null,null,null,null,null,null,null,null,null,null,null,null,null,null,null,null,null,null,null,null,null,null,null,401,null,0,"","","","","","",null,401,401,null,null,null,null,null,null,null,0]
["",null,null,null,null,null,null,null,"",null,null,null,null,null,null,null,null,null,null,null,null,null,null,null,null,null,null,null,null,null,null,null,null,null,null,null,null,null,null,null,null,null,null,null,null,null,null,null,null,null,null,null,null,null,402,0,"","","","","","",null,402,null,402,null,null,null,null,null,null,0]
["",null,null,null,null,null,null,null,"",null,null,null,null,null,null,null,null,null,null,null,null,null,null,null,null,null,null,null,null,null,null,null,null,null,null,null,null,null,null,null,null,null,null,null,null,null,null,null,null,null,null,null,null,403,null,0,"","","","","","",null,403,null,null,403,null,null,null,null,null,0]
["",null,null,null,null,null,null,null,"",null,null,null,null,null,null,null,null,null,null,null,null,null,null,null,null,null,null,null,null,null,null,null,null,null,null,null,null,null,null,null,null,null,null,null,null,null,null,null,null,null,null,null,null,null,404,0,"","","","","","",null,404,null,null,null,404,null,null,null,null,0]
["",null,null,null,null,null,null,null,"",null,null,null,null,null,null,null,null,null,null,null,null,null,null,null,null,null,null,null,null,null,null,null,null,null,null,null,null,null,null,null,null,null,null,null,null,null,null,null,null,null,null,null,null,405,null,0,"","","","","","",null,405,null,null,null,null,405,null,null,null,0]
["",null,null,null,null,null,null,null,"",null,null,null,null,null,null,null,null,null,null,null,null,null,null,null,null,null,null,null,null,null,null,null,null,null,null,null,null,null,null,null,null,null,null,null,null,null,null,null,null,null,null,null,null,null,406,0,"","","","","","",null,406,null,null,null,null,null,406,null,null,0]
["",null,null,null,null,null,null,null,"",null,null,null,null,null,null,null,null,null,null,null,null,null,null,null,null,null,null,null,null,null,null,null,null,null,null,null,null,null,null,null,null,null,null,null,null,null,null,null,null,null,null,null,null,407,null,0,"","","","","","",null,407,null,null,null,null,null,null,407,null,0]
["",null,null,null,null,null,null,null,"",null,null,null,null,null,null,null,null,null,null,null,null,null,null,null,null,null,null,null,null,null,null,null,null,null,null,null,null,null,null,null,null,null,null,null,null,null,null,null,null,null,null,null,null,null,408,0,"","","","","","",null,408,null,null,null,null,null,null,null,408,0]
["",null,null,null,null,null,null,null,"",null,null,null,null,null,null,null,null,null,null,null,null,null,null,null,null,null,null,null,null,null,null,null,null,null,null,null,null,null,null,null,null,null,null,null,null,null,null,null,null,null,null,null,null,409,null,0,"","","","","","",null,409,409,null,null,null,null,null,null,null,0]
["",null,null,null,null,null,null,null,"",null,null,null,null,null,null,null,null,null,null,null,null,null,null,null,null,null,null,null,null,null,null,null,null,null,null,null,null,null,null,null,null,null,null,null,null,null,null,null,null,null,null,null,null,null,410,0,"","","","","","",null,410,null,410,null,null,null,null,null,null,0]
["",null,null,null,null,null,null,null,"",null,null,null,null,null,null,null,null,null,null,null,null,null,null,null,null,null,null,null,null,null,null,null,null,null,null,null,null,null,null,null,null,null,null,null,null,null,null,null,null,null,null,null,null,411,null,0,"","","","","","",null,411,null,null,411,null,null,null,null,null,0]
["",null,null,null,null,null,null,null,"",null,null,null,null,null,null,null,null,null,null,null,null,null,null,null,null,null,null,null,null,null,null,null,null,null,null,null,null,null,null,null,null,null,null,null,null,null,null,null,null,null,null,null,null,null,412,0,"","","","","","",null,412,null,null,null,412,null,null,null,null,0]
["",null,null,null,null,null,null,null,"",null,null,null,null,null,null,null,null,null,null,null,null,null,null,null,null,null,null,null,null,null,null,null,null,null,null,null,null,null,null,null,null,null,null,null,null,null,null,null,null,null,null,null,null,413,null,0,"","","","","","",null,413,null,null,null,null,413,null,null,null,0]
["",null,null,null,null,null,null,null,"",null,null,null,null,null,null,null,null,null,null,null,null,null,null,null,null,null,null,null,null,null,null,null,null,null,null,null,null,null,null,null,null,null,null,null,null,null,null,null,null,null,null,null,null,null,414,0,"","","","","","",null,414,null,null,null,null,null,414,null,null,0]
["",null,null,null,null,null,null,null,"",null,null,null,null,null,null,null,null,null,null,null,null,null,null,null,null,null,null,null,null,null,null,null,null,null,null,null,null,null,null,null,null,null,null,null,null,null,null,null,null,null,null,null,null,415,null,0,"","","","","","",null,415,null,null,null,null,null,null,415,null,0]
["",null,null,null,null,null,null,null,"",null,null,null,null,null,null,null,null,null,null,null,null,null,null,null,null,null,null,null,null,null,null,null,null,null,null,null,null,null,null,null,null,null,null,null,null,null,null,null,null,null,null,null,null,null,416,0,"","","","","","",null,416,null,null,null,null,null,null,null,416,0]
["",null,null,null,null,null,null,null,"",null,null,null,null,null,null,null,null,null,null,null,null,null,null,null,null,null,null,null,null,null,null,null,null,null,null,null,null,null,null,null,null,null,null,null,null,null,null,null,null,null,null,null,null,417,null,0,"","","","","","",null,417,417,null,null,null,null,null,null,null,0]
["",null,null,null,null,null,null,null,"",null,null,null,null,null,null,null,null,null,null,null,null,null,null,null,null,null,null,null,null,null,null,null,null,null,null,null,null,null,null,null,null,null,null,null,null,null,null,null,null,null,null,null,null,null,418,0,"","","","","","",null,418,null,418,null,null,null,null,null,null,0]
["",null,null,null,null,null,null,null,"",null,null,null,null,null,null,null,null,null,null,null,null,null,null,null,null,null,null,null,null,null,null,null,null,null,null,null,null,null,null,null,null,null,null,null,null,null,null,null,null,null,null,null,null,419,null,0,"","","","","","",null,419,null,null,419,null,null,null,null,null,0]
["",null,null,null,null,null,null,null,"",null,null,null,null,null,null,null,null,null,null,null,null,null,null,null,null,null,null,null,null,null,null,null,null,null,null,null,null,null,null,null,null,null,null,null,null,null,null,null,null,null,null,null,null,null,420,0,"","","","","","",null,420,null,null,null,420,null,null,null,null,0]
["",null,null,null,null,null,null,null,"",null,null,null,null,null,null,null,null,null,null,null,null,null,null,null,null,null,null,null,null,null,null,null,null,null,null,null,null,null,null,null,null,null,null,null,null,null,null,null,null,null,null,null,null,421,null,0,"","","","","","",null,421,null,null,null,null,421,null,null,null,0]
["",null,null,null,null,null,null,null,"",null,null,null,null,null,null,null,null,null,null,null,null,null,null,null,null,null,null,null,null,null,null,null,null,null,null,null,null,null,null,null,null,null,null,null,null,null,null,null,null,null,null,null,null,null,422,0,"","","","","","",null,422,null,null,null,null,null,422,null,null,0]
["",null,null,null,null,null,null,null,"",null,null,null,null,null,null,null,null,null,null,null,null,null,null,null,null,null,null,null,null,null,null,null,null,null,null,null,null,null,null,null,null,null,null,null,null,null,null,null,null,null,null,null,null,423,null,0,"","","","","","",null,423,null,null,null,null,null,null,423,null,0]
["",null,null,null,null,null,null,null,"",null,null,null,null,null,null,null,null,null,null,null,null,null,null,null,null,null,null,null,null,null,null,null,null,null,null,null,null,null,null,null,null,null,null,null,null,null,null,null,null,null,null,null,null,null,424,0,"","","","","","",null,424,null,null,null,null,null,null,null,424,0]
["",null,null,null,null,null,null,null,"",null,null,null,null,null,null,null,null,null,null,null,null,null,null,null,null,null,null,null,null,null,null,null,null,null,null,null,null,null,null,null,null,null,null,null,null,null,null,null,null,null,null,null,null,425,null,0,"","","","","","",null,425,425,null,null,null,null,null,null,null,0]
["",null,null,null,null,null,null,null,"",null,null,null,null,null,null,null,null,null,null,null,null,null,null,null,null,null,null,null,null,null,null,null,null,null,null,null,null,null,null,null,null,null,null,null,null,null,null,null,null,null,null,null,null,null,426,0,"","","","","","",null,426,null,426,null,null,null,null,null,null,0]
["",null,null,null,null,null,null,null,"",null,null,null,null,null,null,null,null,null,null,null,null,null,null,null,null,null,null,null,null,null,null,null,null,null,null,null,null,null,null,null,null,null,null,null,null,null,null,null,null,null,null,null,null,427,null,0,"","","","","","",null,427,null,null,427,null,null,null,null,null,0]
["",null,null,null,null,null,null,null,"",null,null,null,null,null,null,null,null,null,null,null,null,null,null,null,null,null,null,null,null,null,null,null,null,null,null,null,null,null,null,null,null,null,null,null,null,null,null,null,null,null,null,null,null,null,428,0,"","","","","","",null,428,null,null,null,428,null,null,null,null,0]
["",null,null,null,null,null,null,null,"",null,null,null,null,null,null,null,null,null,null,null,null,null,null,null,null,null,null,null,null,null,null,null,null,null,null,null,null,null,null,null,null,null,null,null,null,null,null,null,null,null,null,null,null,429,null,0,"","","","","","",null,429,null,null,null,null,429,null,null,null,0]
["",null,null,null,null,null,null,null,"",null,null,null,null,null,null,null,null,null,null,null,null,null,null,null,null,null,null,null,null,null,null,null,null,null,null,null,null,null,null,null,null,null,null,null,null,null,null,null,null,null,null,null,null,null,430,0,"","","","","","",null,430,null,null,null,null,null,430,null,null,0]
["",null,null,null,null,null,null,null,"",null,null,null,null,null,null,null,null,null,null,null,null,null,null,null,null,null,null,null,null,null,null,null,null,null,null,null,null,null,null,null,null,null,null,null,null,null,null,null,null,null,null,null,null,431,null,0,"","","","","","",null,431,null,null,null,null,null,null,431,null,0]
["",null,null,null,null,null,null,null,"",null,null,null,null,null,null,null,null,null,null,null,null,null,null,null,null,null,null,null,null,null,null,null,null,null,null,null,null,null,null,null,null,null,null,null,null,null,null,null,null,null,null,null,null,null,432,0,"","","","","","",null,432,null,null,null,null,null,null,null,432,0]
["",null,null,null,null,null,null,null,"",null,null,null,null,null,null,null,null,null,null,null,null,null,null,null,null,null,null,null,null,null,null,null,null,null,null,null,null,null,null,null,null,null,null,null,null,null,null,null,null,null,null,null,null,433,null,0,"","","","","","",null,433,433,null,null,null,null,null,null,null,0]
["",null,null,null,null,null,null,null,"",null,null,null,null,null,null,null,null,null,null,null,null,null,null,null,null,null,null,null,null,null,null,null,null,null,null,null,null,null,null,null,null,null,null,null,null,null,null,null,null,null,null,null,null,null,434,0,"","","","","","",null,434,null,434,null,null,null,null,null,null,0]
["",null,null,null,null,null,null,null,"",null,null,null,null,null,null,null,null,null,null,null,null,null,null,null,null,null,null,null,null,null,null,null,null,null,null,null,null,null,null,null,null,null,null,null,null,null,null,null,null,null,null,null,null,435,null,0,"","","","","","",null,435,null,null,435,null,null,null,null,null,0]
["",null,null,null,null,null,null,null,"",null,null,null,null,null,null,null,null,null,null,null,null,null,null,null,null,null,null,null,null,null,null,null,null,null,null,null,null,null,null,null,null,null,null,null,null,null,null,null,null,null,null,null,null,null,436,0,"","","","","","",null,436,null,null,null,436,null,null,null,null,0]
["",null,null,null,null,null,null,null,"",null,null,null,null,null,null,null,null,null,null,null,null,null,null,null,null,null,null,null,null,null,null,null,null,null,null,null,null,null,null,null,null,null,null,null,null,null,null,null,null,null,null,null,null,437,null,0,"","","","","","",null,437,null,null,null,null,437,null,null,null,0]
["",null,null,null,null,null,null,null,"",null,null,null,null,null,null,null,null,null,null,null,null,null,null,null,null,null,null,null,null,null,null,null,null,null,null,null,null,null,null,null,null,null,null,null,null,null,null,null,null,null,null,null,null,null,438,0,"","","","","","",null,438,null,null,null,null,null,438,null,null,0]
["",null,null,null,null,null,null,null,"",null,null,null,null,null,null,null,null,null,null,null,null,null,null,null,null,null,null,null,null,null,null,null,null,null,null,null,null,null,null,null,null,null,null,null,null,null,null,null,null,null,null,null,null,439,null,0,"","","","","","",null,439,null,null,null,null,null,null,439,null,0]
["",null,null,null,null,null,null,null,"",null,null,null,null,null,null,null,null,null,null,null,null,null,null,null,null,null,null,null,null,null,null,null,null,null,null,null,null,null,null,null,null,null,null,null,null,null,null,null,null,null,null,null,null,null,440,0,"","","","","","",null,440,null,null,null,null,null,null,null,440,0]
["",null,null,null,null,null,null,null,"",null,null,null,null,null,null,null,null,null,null,null,null,null,null,null,null,null,null,null,null,null,null,null,null,null,null,null,null,null,null,null,null,null,null,null,null,null,null,null,null,null,null,null,null,441,null,0,"","","","","","",null,441,441,null,null,null,null,null,null,null,0]
["",null,null,null,null,null,null,null,"",null,null,null,null,null,null,null,null,null,null,null,null,null,null,null,null,null,null,null,null,null,null,null,null,null,null,null,null,null,null,null,null,null,null,null,null,null,null,null,null,null,null,null,null,null,442,0,"","","","","","",null,442,null,442,null,null,null,null,null,null,0]
["",null,null,null,null,null,null,null,"",null,null,null,null,null,null,null,null,null,null,null,null,null,null,null,null,null,null,null,null,null,null,null,null,null,null,null,null,null,null,null,null,null,null,null,null,null,null,null,null,null,null,null,null,443,null,0,"","","","","","",null,443,null,null,443,null,null,null,null,null,0]
["",null,null,null,null,null,null,null,"",null,null,null,null,null,null,null,null,null,null,null,null,null,null,null,null,null,null,null,null,null,null,null,null,null,null,null,null,null,null,null,null,null,null,null,null,null,null,null,null,null,null,null,null,null,444,0,"","","","","","",null,444,null,null,null,444,null,null,null,null,0]
["",null,null,null,null,null,null,null,"",null,null,null,null,null,null,null,null,null,null,null,null,null,null,null,null,null,null,null,null,null,null,null,null,null,null,null,null,null,null,null,null,null,null,null,null,null,null,null,null,null,null,null,null,445,null,0,"","","","","","",null,445,null,null,null,null,445,null,null,null,0]
["",null,null,null,null,null,null,null,"",null,null,null,null,null,null,null,null,null,null,null,null,null,null,null,null,null,null,null,null,null,null,null,null,null,null,null,null,null,null,null,null,null,null,null,null,null,null,null,null,null,null,null,null,null,446,0,"","","","","","",null,446,null,null,null,null,null,446,null,null,0]
["",null,null,null,null,null,null,null,"",null,null,null,null,null,null,null,null,null,null,null,null,null,null,null,null,null,null,null,null,null,null,null,null,null,null,null,null,null,null,null,null,null,null,null,null,null,null,null,null,null,null,null,null,447,null,0,"","","","","","",null,447,null,null,null,null,null,null,447,null,0]
["",null,null,null,null,null,null,null,"",null,null,null,null,null,null,null,null,null,null,null,null,null,null,null,null,null,null,null,null,null,null,null,null,null,null,null,null,null,null,null,null,null,null,null,null,null,null,null,null,null,null,null,null,null,448,0,"","","","","","",null,448,null,null,null,null,null,null,null,448,0]
[{"$f":"IF(B456=\"\",\"\",ROW()-7)","v":""},null,null,null,null,null,null,null,{"$f":"IF(H456<>\"\",(H456),\"\")","v":""},null,null,null,null,null,null,null,null,null,null,null,null,null,null,null,null,null,null,null,null,null,null,null,null,null,null,null,null,null,null,null,null,null,null,null,null,null,null,null,null,null,null,null,null,449,null,0,"","","","","","",null,449,449,null,null,null,null,null,null,null,{"$f":"SUM(L457,O457,R457,V457,Z457,AC457,AG457)","v":0}]
["",null,null,null,null,null,null,null,"",null,null,null,null,null,null,null,null,null,null,null,null,null,null,null,null,null,null,null,null,null,null,null,null,null,null,null,null,null,null,null,null,null,null,null,null,null,null,null,null,null,null,null,null,null,450,{"$f":"SUM(L457,O457,R457,V457,Z457,AC457,AG457)","v":0},{"$f":"IF(OR(C457=\"\",Z457=\"\"),\"\",COUNTIF(BD$8:BD$600,\">\"&BD457)+1)","v":""},{"$f":"IF(B457=\"\",\"\",B457)","v":""},{"$f":"IF(C457=\"\",\"\",C457)","v":""},{"$f":"IF(D457=\"\",\"\",D457)","v":""},{"$f":"IF(E457=\"\",\"\",E457)","v":""},{"$f":"IF(F457=\"\",\"\",F457)","v":""},null,450,null,450,null,null,null,null,null,null,0]
["",null,null,null,null,null,null,null,"",null,null,null,null,null,null,null,null,null,null,null,null,null,null,null,null,null,null,null,null,null,null,null,null,null,null,null,null,null,null,null,null,null,null,null,null,null,null,null,null,null,null,null,null,451,null,0,"","","","","","",null,451,null,null,451,null,null,null,null,null,0]
["",null,null,null,null,null,null,null,"",null,null,null,null,null,null,null,null,null,null,null,null,null,null,null,null,null,null,null,null,null,null,null,null,null,null,null,null,null,null,null,null,null,null,null,null,null,null,null,null,null,null,null,null,null,452,0,"","","","","","",null,452,null,null,null,452,null,null,null,null,0]
["",null,null,null,null,null,null,null,"",null,null,null,null,null,null,null,null,null,null,null,null,null,null,null,null,null,null,null,null,null,null,null,null,null,null,null,null,null,null,null,null,null,null,null,null,null,null,null,null,null,null,null,null,453,null,0,"","","","","","",null,453,null,null,null,null,453,null,null,null,0]
["",null,null,null,null,null,null,null,"",null,null,null,null,null,null,null,null,null,null,null,null,null,null,null,null,null,null,null,null,null,null,null,null,null,null,null,null,null,null,null,null,null,null,null,null,null,null,null,null,null,null,null,null,null,454,0,"","","","","","",null,454,null,null,null,null,null,454,null,null,0]
["",null,null,null,null,null,null,null,"",null,null,null,null,null,null,null,null,null,null,null,null,null,null,null,null,null,null,null,null,null,null,null,null,null,null,null,null,null,null,null,null,null,null,null,null,null,null,null,null,null,null,null,null,455,null,0,"","","","","","",null,455,null,null,null,null,null,null,455,null,0]
["",null,null,null,null,null,null,null,"",null,null,null,null,null,null,null,null,null,null,null,null,null,null,null,null,null,null,null,null,null,null,null,null,null,null,null,null,null,null,null,null,null,null,null,null,null,null,null,null,null,null,null,null,null,456,0,"","","","","","",null,456,null,null,null,null,null,null,null,456,0]
["",null,null,null,null,null,null,null,"",null,null,null,null,null,null,null,null,null,null,null,null,null,null,null,null,null,null,null,null,null,null,null,null,null,null,null,null,null,null,null,null,null,null,null,null,null,null,null,null,null,null,null,null,457,null,0,"","","","","","",null,457,457,null,null,null,null,null,null,null,0]
["",null,null,null,null,null,null,null,"",null,null,null,null,null,null,null,null,null,null,null,null,null,null,null,null,null,null,null,null,null,null,null,null,null,null,null,null,null,null,null,null,null,null,null,null,null,null,null,null,null,null,null,null,null,458,0,"","","","","","",null,458,null,458,null,null,null,null,null,null,0]
["",null,null,null,null,null,null,null,"",null,null,null,null,null,null,null,null,null,null,null,null,null,null,null,null,null,null,null,null,null,null,null,null,null,null,null,null,null,null,null,null,null,null,null,null,null,null,null,null,null,null,null,null,459,null,0,"","","","","","",null,459,null,null,459,null,null,null,null,null,0]
["",null,null,null,null,null,null,null,"",null,null,null,null,null,null,null,null,null,null,null,null,null,null,null,null,null,null,null,null,null,null,null,null,null,null,null,null,null,null,null,null,null,null,null,null,null,null,null,null,null,null,null,null,null,460,0,"","","","","","",null,460,null,null,null,460,null,null,null,null,0]
["",null,null,null,null,null,null,null,"",null,null,null,null,null,null,null,null,null,null,null,null,null,null,null,null,null,null,null,null,null,null,null,null,null,null,null,null,null,null,null,null,null,null,null,null,null,null,null,null,null,null,null,null,461,null,0,"","","","","","",null,461,null,null,null,null,461,null,null,null,0]
["",null,null,null,null,null,null,null,"",null,null,null,null,null,null,null,null,null,null,null,null,null,null,null,null,null,null,null,null,null,null,null,null,null,null,null,null,null,null,null,null,null,null,null,null,null,null,null,null,null,null,null,null,null,462,0,"","","","","","",null,462,null,null,null,null,null,462,null,null,0]
["",null,null,null,null,null,null,null,"",null,null,null,null,null,null,null,null,null,null,null,null,null,null,null,null,null,null,null,null,null,null,null,null,null,null,null,null,null,null,null,null,null,null,null,null,null,null,null,null,null,null,null,null,463,null,0,"","","","","","",null,463,null,null,null,null,null,null,463,null,0]
["",null,null,null,null,null,null,null,"",null,null,null,null,null,null,null,null,null,null,null,null,null,null,null,null,null,null,null,null,null,null,null,null,null,null,null,null,null,null,null,null,null,null,null,null,null,null,null,null,null,null,null,null,null,464,0,"","","","","","",null,464,null,null,null,null,null,null,null,464,0]
["",null,null,null,null,null,null,null,"",null,null,null,null,null,null,null,null,null,null,null,null,null,null,null,null,null,null,null,null,null,null,null,null,null,null,null,null,null,null,null,null,null,null,null,null,null,null,null,null,null,null,null,null,465,null,0,"","","","","","",null,465,465,null,null,null,null,null,null,null,0]
["",null,null,null,null,null,null,null,"",null,null,null,null,null,null,null,null,null,null,null,null,null,null,null,null,null,null,null,null,null,null,null,null,null,null,null,null,null,null,null,null,null,null,null,null,null,null,null,null,null,null,null,null,null,466,0,"","","","","","",null,466,null,466,null,null,null,null,null,null,0]
["",null,null,null,null,null,null,null,"",null,null,null,null,null,null,null,null,null,null,null,null,null,null,null,null,null,null,null,null,null,null,null,null,null,null,null,null,null,null,null,null,null,null,null,null,null,null,null,null,null,null,null,null,467,null,0,"","","","","","",null,467,null,null,467,null,null,null,null,null,0]
["",null,null,null,null,null,null,null,"",null,null,null,null,null,null,null,null,null,null,null,null,null,null,null,null,null,null,null,null,null,null,null,null,null,null,null,null,null,null,null,null,null,null,null,null,null,null,null,null,null,null,null,null,null,468,0,"","","","","","",null,468,null,null,null,468,null,null,null,null,0]
["",null,null,null,null,null,null,null,"",null,null,null,null,null,null,null,null,null,null,null,null,null,null,null,null,null,null,null,null,null,null,null,null,null,null,null,null,null,null,null,null,null,null,null,null,null,null,null,null,null,null,null,null,469,null,0,"","","","","","",null,469,null,null,null,null,469,null,null,null,0]
["",null,null,null,null,null,null,null,"",null,null,null,null,null,null,null,null,null,null,null,null,null,null,null,null,null,null,null,null,null,null,null,null,null,null,null,null,null,null,null,null,null,null,null,null,null,null,null,null,null,null,null,null,null,470,0,"","","","","","",null,470,null,null,null,null,null,470,null,null,0]
["",null,null,null,null,null,null,null,"",null,null,null,null,null,null,null,null,null,null,null,null,null,null,null,null,null,null,null,null,null,null,null,null,null,null,null,null,null,null,null,null,null,null,null,null,null,null,null,null,null,null,null,null,471,null,0,"","","","","","",null,471,null,null,null,null,null,null,471,null,0]
["",null,null,null,null,null,null,null,"",null,null,null,null,null,null,null,null,null,null,null,null,null,null,null,null,null,null,null,null,null,null,null,null,null,null,null,null,null,null,null,null,null,null,null,null,null,null,null,null,null,null,null,null,null,472,0,"","","","","","",null,472,null,null,null,null,null,null,null,472,0]
["",null,null,null,null,null,null,null,"",null,null,null,null,null,null,null,null,null,null,null,null,null,null,null,null,null,null,null,null,null,null,null,null,null,null,null,null,null,null,null,null,null,null,null,null,null,null,null,null,null,null,null,null,473,null,0,"","","","","","",null,473,473,null,null,null,null,null,null,null,0]
["",null,null,null,null,null,null,null,"",null,null,null,null,null,null,null,null,null,null,null,null,null,null,null,null,null,null,null,null,null,null,null,null,null,null,null,null,null,null,null,null,null,null,null,null,null,null,null,null,null,null,null,null,null,474,0,"","","","","","",null,474,null,474,null,null,null,null,null,null,0]
["",null,null,null,null,null,null,null,"",null,null,null,null,null,null,null,null,null,null,null,null,null,null,null,null,null,null,null,null,null,null,null,null,null,null,null,null,null,null,null,null,null,null,null,null,null,null,null,null,null,null,null,null,475,null,0,"","","","","","",null,475,null,null,475,null,null,null,null,null,0]
["",null,null,null,null,null,null,null,"",null,null,null,null,null,null,null,null,null,null,null,null,null,null,null,null,null,null,null,null,null,null,null,null,null,null,null,null,null,null,null,null,null,null,null,null,null,null,null,null,null,null,null,null,null,476,0,"","","","","","",null,476,null,null,null,476,null,null,null,null,0]
["",null,null,null,null,null,null,null,"",null,null,null,null,null,null,null,null,null,null,null,null,null,null,null,null,null,null,null,null,null,null,null,null,null,null,null,null,null,null,null,null,null,null,null,null,null,null,null,null,null,null,null,null,477,null,0,"","","","","","",null,477,null,null,null,null,477,null,null,null,0]
["",null,null,null,null,null,null,null,"",null,null,null,null,null,null,null,null,null,null,null,null,null,null,null,null,null,null,null,null,null,null,null,null,null,null,null,null,null,null,null,null,null,null,null,null,null,null,null,null,null,null,null,null,null,478,0,"","","","","","",null,478,null,null,null,null,null,478,null,null,0]
["",null,null,null,null,null,null,null,"",null,null,null,null,null,null,null,null,null,null,null,null,null,null,null,null,null,null,null,null,null,null,null,null,null,null,null,null,null,null,null,null,null,null,null,null,null,null,null,null,null,null,null,null,479,null,0,"","","","","","",null,479,null,null,null,null,null,null,479,null,0]
["",null,null,null,null,null,null,null,"",null,null,null,null,null,null,null,null,null,null,null,null,null,null,null,null,null,null,null,null,null,null,null,null,null,null,null,null,null,null,null,null,null,null,null,null,null,null,null,null,null,null,null,null,null,480,0,"","","","","","",null,480,null,null,null,null,null,null,null,480,0]
["",null,null,null,null,null,null,null,"",null,null,null,null,null,null,null,null,null,null,null,null,null,null,null,null,null,null,null,null,null,null,null,null,null,null,null,null,null,null,null,null,null,null,null,null,null,null,null,null,null,null,null,null,481,null,0,"","","","","","",null,481,481,null,null,null,null,null,null,null,0]
["",null,null,null,null,null,null,null,"",null,null,null,null,null,null,null,null,null,null,null,null,null,null,null,null,null,null,null,null,null,null,null,null,null,null,null,null,null,null,null,null,null,null,null,null,null,null,null,null,null,null,null,null,null,482,0,"","","","","","",null,482,null,482,null,null,null,null,null,null,0]
["",null,null,null,null,null,null,null,"",null,null,null,null,null,null,null,null,null,null,null,null,null,null,null,null,null,null,null,null,null,null,null,null,null,null,null,null,null,null,null,null,null,null,null,null,null,null,null,null,null,null,null,null,483,null,0,"","","","","","",null,483,null,null,483,null,null,null,null,null,0]
["",null,null,null,null,null,null,null,"",null,null,null,null,null,null,null,null,null,null,null,null,null,null,null,null,null,null,null,null,null,null,null,null,null,null,null,null,null,null,null,null,null,null,null,null,null,null,null,null,null,null,null,null,null,484,0,"","","","","","",null,484,null,null,null,484,null,null,null,null,0]
["",null,null,null,null,null,null,null,"",null,null,null,null,null,null,null,null,null,null,null,null,null,null,null,null,null,null,null,null,null,null,null,null,null,null,null,null,null,null,null,null,null,null,null,null,null,null,null,null,null,null,null,null,485,null,0,"","","","","","",null,485,null,null,null,null,485,null,null,null,0]
["",null,null,null,null,null,null,null,"",null,null,null,null,null,null,null,null,null,null,null,null,null,null,null,null,null,null,null,null,null,null,null,null,null,null,null,null,null,null,null,null,null,null,null,null,null,null,null,null,null,null,null,null,null,486,0,"","","","","","",null,486,null,null,null,null,null,486,null,null,0]
["",null,null,null,null,null,null,null,"",null,null,null,null,null,null,null,null,null,null,null,null,null,null,null,null,null,null,null,null,null,null,null,null,null,null,null,null,null,null,null,null,null,null,null,null,null,null,null,null,null,null,null,null,487,null,0,"","","","","","",null,487,null,null,null,null,null,null,487,null,0]
["",null,null,null,null,null,null,null,"",null,null,null,null,null,null,null,null,null,null,null,null,null,null,null,null,null,null,null,null,null,null,null,null,null,null,null,null,null,null,null,null,null,null,null,null,null,null,null,null,null,null,null,null,null,488,0,"","","","","","",null,488,null,null,null,null,null,null,null,488,0]
["",null,null,null,null,null,null,null,"",null,null,null,null,null,null,null,null,null,null,null,null,null,null,null,null,null,null,null,null,null,null,null,null,null,null,null,null,null,null,null,null,null,null,null,null,null,null,null,null,null,null,null,null,489,null,0,"","","","","","",null,489,489,null,null,null,null,null,null,null,0]
["",null,null,null,null,null,null,null,"",null,null,null,null,null,null,null,null,null,null,null,null,null,null,null,null,null,null,null,null,null,null,null,null,null,null,null,null,null,null,null,null,null,null,null,null,null,null,null,null,null,null,null,null,null,490,0,"","","","","","",null,490,null,490,null,null,null,null,null,null,0]
["",null,null,null,null,null,null,null,"",null,null,null,null,null,null,null,null,null,null,null,null,null,null,null,null,null,null,null,null,null,null,null,null,null,null,null,null,null,null,null,null,null,null,null,null,null,null,null,null,null,null,null,null,491,null,0,"","","","","","",null,491,null,null,491,null,null,null,null,null,0]
["",null,null,null,null,null,null,null,"",null,null,null,null,null,null,null,null,null,null,null,null,null,null,null,null,null,null,null,null,null,null,null,null,null,null,null,null,null,null,null,null,null,null,null,null,null,null,null,null,null,null,null,null,null,492,0,"","","","","","",null,492,null,null,null,492,null,null,null,null,0]
["",null,null,null,null,null,null,null,"",null,null,null,null,null,null,null,null,null,null,null,null,null,null,null,null,null,null,null,null,null,null,null,null,null,null,null,null,null,null,null,null,null,null,null,null,null,null,null,null,null,null,null,null,493,null,0,"","","","","","",null,493,null,null,null,null,493,null,null,null,0]
["",null,null,null,null,null,null,null,"",null,null,null,null,null,null,null,null,null,null,null,null,null,null,null,null,null,null,null,null,null,null,null,null,null,null,null,null,null,null,null,null,null,null,null,null,null,null,null,null,null,null,null,null,null,494,0,"","","","","","",null,494,null,null,null,null,null,494,null,null,0]
["",null,null,null,null,null,null,null,"",null,null,null,null,null,null,null,null,null,null,null,null,null,null,null,null,null,null,null,null,null,null,null,null,null,null,null,null,null,null,null,null,null,null,null,null,null,null,null,null,null,null,null,null,495,null,0,"","","","","","",null,495,null,null,null,null,null,null,495,null,0]
["",null,null,null,null,null,null,null,"",null,null,null,null,null,null,null,null,null,null,null,null,null,null,null,null,null,null,null,null,null,null,null,null,null,null,null,null,null,null,null,null,null,null,null,null,null,null,null,null,null,null,null,null,null,496,0,"","","","","","",null,496,null,null,null,null,null,null,null,496,0]
["",null,null,null,null,null,null,null,"",null,null,null,null,null,null,null,null,null,null,null,null,null,null,null,null,null,null,null,null,null,null,null,null,null,null,null,null,null,null,null,null,null,null,null,null,null,null,null,null,null,null,null,null,497,null,0,"","","","","","",null,497,497,null,null,null,null,null,null,null,0]
["",null,null,null,null,null,null,null,"",null,null,null,null,null,null,null,null,null,null,null,null,null,null,null,null,null,null,null,null,null,null,null,null,null,null,null,null,null,null,null,null,null,null,null,null,null,null,null,null,null,null,null,null,null,498,0,"","","","","","",null,498,null,498,null,null,null,null,null,null,0]
["",null,null,null,null,null,null,null,"",null,null,null,null,null,null,null,null,null,null,null,null,null,null,null,null,null,null,null,null,null,null,null,null,null,null,null,null,null,null,null,null,null,null,null,null,null,null,null,null,null,null,null,null,499,null,0,"","","","","","",null,499,null,null,499,null,null,null,null,null,0]
["",null,null,null,null,null,null,null,"",null,null,null,null,null,null,null,null,null,null,null,null,null,null,null,null,null,null,null,null,null,null,null,null,null,null,null,null,null,null,null,null,null,null,null,null,null,null,null,null,null,null,null,null,null,500,0,"","","","","","",null,500,null,null,null,500,null,null,null,null,0]
[null,null,null,null,null,null,null,null,null,null,null,null,null,null,null,null,null,null,null,null,null,null,null,null,null,null,null,null,null,null,null,null,null,null,null,null,null,null,null,null,null,null,null,null,null,null,null,null,null,null,null,null,null,null,null,null,null,null,null,null,null,null,null,null,null,null,null,null,null,null,null,null,0]
[null,null,null,null,null,null,null,null,null,null,null,null,null,null,null,null,null,null,null,null,null,null,null,null,null,null,null,null,null,null,null,null,null,null,null,null,null,null,null,null,null,null,null,null,null,null,null,null,null,null,null,null,null,null,null,null,null,null,null,null,null,null,null,null,null,null,null,null,null,null,null,null,0]
[null,null,null,null,null,null,null,null,null,null,null,null,null,null,null,null,null,null,null,null,null,null,null,null,null,null,null,null,null,null,null,null,null,null,null,null,null,null,null,null,null,null,null,null,null,null,null,null,null,null,null,null,null,null,null,null,null,null,null,null,null,null,null,null,null,null,null,null,null,null,null,null,0]
[null,null,null,null,null,null,null,null,null,null,null,null,null,null,null,null,null,null,null,null,null,null,null,null,null,null,null,null,null,null,null,null,null,null,null,null,null,null,null,null,null,null,null,null,null,null,null,null,null,null,null,null,null,null,null,null,null,null,null,null,null,null,null,null,null,null,null,null,null,null,null,null,0]
[null,null,null,null,null,null,null,null,null,null,null,null,null,null,null,null,null,null,null,null,null,null,null,null,null,null,null,null,null,null,null,null,null,null,null,null,null,null,null,null,null,null,null,null,null,null,null,null,null,null,null,null,null,null,null,null,null,null,null,null,null,null,null,null,null,null,null,null,null,null,null,null,0]
[null,null,null,null,null,null,null,null,null,null,null,null,null,null,null,null,null,null,null,null,null,null,null,null,null,null,null,null,null,null,null,null,null,null,null,null,null,null,null,null,null,null,null,null,null,null,null,null,null,null,null,null,null,null,null,null,null,null,null,null,null,null,null,null,null,null,null,null,null,null,null,null,0]
[null,null,null,null,null,null,null,null,null,null,null,null,null,null,null,null,null,null,null,null,null,null,null,null,null,null,null,null,null,null,null,null,null,null,null,null,null,null,null,null,null,null,null,null,null,null,null,null,null,null,null,null,null,null,null,null,null,null,null,null,null,null,null,null,null,null,null,null,null,null,null,null,0]
[null,null,null,null,null,null,null,null,null,null,null,null,null,null,null,null,null,null,null,null,null,null,null,null,null,null,null,null,null,null,null,null,null,null,null,null,null,null,null,null,null,null,null,null,null,null,null,null,null,null,null,null,null,null,null,null,null,null,null,null,null,null,null,null,null,null,null,null,null,null,null,null,0]
[null,null,null,null,null,null,null,null,null,null,null,null,null,null,null,null,null,null,null,null,null,null,null,null,null,null,null,null,null,null,null,null,null,null,null,null,null,null,null,null,null,null,null,null,null,null,null,null,null,null,null,null,null,null,null,null,null,null,null,null,null,null,null,null,null,null,null,null,null,null,null,null,0]
[null,null,null,null,null,null,null,null,null,null,null,null,null,null,null,null,null,null,null,null,null,null,null,null,null,null,null,null,null,null,null,null,null,null,null,null,null,null,null,null,null,null,null,null,null,null,null,null,null,null,null,null,null,null,null,null,null,null,null,null,null,null,null,null,null,null,null,null,null,null,null,null,0]
[null,null,null,null,null,null,null,null,null,null,null,null,null,null,null,null,null,null,null,null,null,null,null,null,null,null,null,null,null,null,null,null,null,null,null,null,null,null,null,null,null,null,null,null,null,null,null,null,null,null,null,null,null,null,null,null,null,null,null,null,null,null,null,null,null,null,null,null,null,null,null,null,0]
[null,null,null,null,null,null,null,null,null,null,null,null,null,null,null,null,null,null,null,null,null,null,null,null,null,null,null,null,null,null,null,null,null,null,null,null,null,null,null,null,null,null,null,null,null,null,null,null,null,null,null,null,null,null,null,null,null,null,null,null,null,null,null,null,null,null,null,null,null,null,null,null,0]
[null,null,null,null,null,null,null,null,null,null,null,null,null,null,null,null,null,null,null,null,null,null,null,null,null,null,null,null,null,null,null,null,null,null,null,null,null,null,null,null,null,null,null,null,null,null,null,null,null,null,null,null,null,null,null,null,null,null,null,null,null,null,null,null,null,null,null,null,null,null,null,null,{"$f":"SUM(L521,O521,R521,V521,Z521,AC521,AG521)","v":0}]
[null,null,null,null,null,null,null,null,null,null,null,null,null,null,null,null,null,null,null,null,null,null,null,null,null,null,null,null,null,null,null,null,null,null,null,null,null,null,null,null,null,null,null,null,null,null,null,null,null,null,null,null,null,null,null,null,null,null,null,null,null,null,null,null,null,null,null,null,null,null,null,null,0]
[null,null,null,null,null,null,null,null,null,null,null,null,null,null,null,null,null,null,null,null,null,null,null,null,null,null,null,null,null,null,null,null,null,null,null,null,null,null,null,null,null,null,null,null,null,null,null,null,null,null,null,null,null,null,null,null,null,null,null,null,null,null,null,null,null,null,null,null,null,null,null,null,0]
[null,null,null,null,null,null,null,null,null,null,null,null,null,null,null,null,null,null,null,null,null,null,null,null,null,null,null,null,null,null,null,null,null,null,null,null,null,null,null,null,null,null,null,null,null,null,null,null,null,null,null,null,null,null,null,null,null,null,null,null,null,null,null,null,null,null,null,null,null,null,null,null,0]
[null,null,null,null,null,null,null,null,null,null,null,null,null,null,null,null,null,null,null,null,null,null,null,null,null,null,null,null,null,null,null,null,null,null,null,null,null,null,null,null,null,null,null,null,null,null,null,null,null,null,null,null,null,null,null,null,null,null,null,null,null,null,null,null,null,null,null,null,null,null,null,null,0]
[null,null,null,null,null,null,null,null,null,null,null,null,null,null,null,null,null,null,null,null,null,null,null,null,null,null,null,null,null,null,null,null,null,null,null,null,null,null,null,null,null,null,null,null,null,null,null,null,null,null,null,null,null,null,null,null,null,null,null,null,null,null,null,null,null,null,null,null,null,null,null,null,0]
[null,null,null,null,null,null,null,null,null,null,null,null,null,null,null,null,null,null,null,null,null,null,null,null,null,null,null,null,null,null,null,null,null,null,null,null,null,null,null,null,null,null,null,null,null,null,null,null,null,null,null,null,null,null,null,null,null,null,null,null,null,null,null,null,null,null,null,null,null,null,null,null,0]
[null,null,null,null,null,null,null,null,null,null,null,null,null,null,null,null,null,null,null,null,null,null,null,null,null,null,null,null,null,null,null,null,null,null,null,null,null,null,null,null,null,null,null,null,null,null,null,null,null,null,null,null,null,null,null,null,null,null,null,null,null,null,null,null,null,null,null,null,null,null,null,null,0]
[null,null,null,null,null,null,null,null,null,null,null,null,null,null,null,null,null,null,null,null,null,null,null,null,null,null,null,null,null,null,null,null,null,null,null,null,null,null,null,null,null,null,null,null,null,null,null,null,null,null,null,null,null,null,null,null,null,null,null,null,null,null,null,null,null,null,null,null,null,null,null,null,0]
[null,null,null,null,null,null,null,null,null,null,null,null,null,null,null,null,null,null,null,null,null,null,null,null,null,null,null,null,null,null,null,null,null,null,null,null,null,null,null,null,null,null,null,null,null,null,null,null,null,null,null,null,null,null,null,null,null,null,null,null,null,null,null,null,null,null,null,null,null,null,null,null,0]
[null,null,null,null,null,null,null,null,null,null,null,null,null,null,null,null,null,null,null,null,null,null,null,null,null,null,null,null,null,null,null,null,null,null,null,null,null,null,null,null,null,null,null,null,null,null,null,null,null,null,null,null,null,null,null,null,null,null,null,null,null,null,null,null,null,null,null,null,null,null,null,null,0]
[null,null,null,null,null,null,null,null,null,null,null,null,null,null,null,null,null,null,null,null,null,null,null,null,null,null,null,null,null,null,null,null,null,null,null,null,null,null,null,null,null,null,null,null,null,null,null,null,null,null,null,null,null,null,null,null,null,null,null,null,null,null,null,null,null,null,null,null,null,null,null,null,0]
[null,null,null,null,null,null,null,null,null,null,null,null,null,null,null,null,null,null,null,null,null,null,null,null,null,null,null,null,null,null,null,null,null,null,null,null,null,null,null,null,null,null,null,null,null,null,null,null,null,null,null,null,null,null,null,null,null,null,null,null,null,null,null,null,null,null,null,null,null,null,null,null,0]
[null,null,null,null,null,null,null,null,null,null,null,null,null,null,null,null,null,null,null,null,null,null,null,null,null,null,null,null,null,null,null,null,null,null,null,null,null,null,null,null,null,null,null,null,null,null,null,null,null,null,null,null,null,null,null,null,null,null,null,null,null,null,null,null,null,null,null,null,null,null,null,null,0]

{"sheet":"شهادات الترم الأول","index":2,"n_rows":36,"n_cols":16,"rows_kept":36,"cut":false,"hidden":false,"merged":[[10,15,12,15],[10,13,12,14],[16,1,16,4],[16,7,16,8],[16,11,16,15],[1,2,1,5],[2,2,2,5],[5,11,5,12],[5,13,5,15],[5,1,5,2],[5,3,5,8],[2,13,2,15],[11,1,12,12],[14,1,14,4],[14,7,14,8],[14,11,14,15],[7,13,7,15],[8,13,9,15],[21,2,21,5],[24,1,24,2],[24,3,24,8],[21,13,21,15],[20,2,20,5],[30,1,31,12],[24,11,24,12],[24,13,24,15],[26,13,26,15],[27,13,28,15],[29,13,31,14],[29,15,31,15],[33,1,33,4],[33,7,33,8],[33,11,33,15],[35,1,35,4],[35,7,35,8],[35,11,35,15]]}
[]
[null,"إدارة",{"$f":"IF('البيانات الأساسية'!B3=\"\",\"\",'البيانات الأساسية'!B3)","v":"المنتزه التعليمية"}]
[null,"مدرسة",{"$f":"IF('البيانات الأساسية'!B4=\"\",\"\",'البيانات الأساسية'!B4)","v":"محمد اسماعيل"},null,null,null,null,4,null,null,null,null,"الصف",{"$f":"IF('البيانات الأساسية'!B6=\"\",\"\",'البيانات الأساسية'!B6)","v":"الصف الأول الإعدادي"}]
[]
[]
[null,"اسم الطالب",null,null,null,null,null,null,null,null,null,"رقم الجلوس",null,{"$f":"IF($H$3>0,LOOKUP($H$3,'شيت الترم الأول'!$BB$8:$BB$507,'شيت الترم الأول'!$B$8:$B$507),\"\")","v":103}]
[null,null,{"$f":"'شيت الترم الأول'!AA3","v":10},{"$f":"'شيت الترم الأول'!AB3","v":0},{"$f":"'شيت الترم الأول'!AC3","v":0},{"$f":"'شيت الترم الأول'!AD3","v":0},{"$f":"'شيت الترم الأول'!AE3","v":0},null,null,{"$f":"'شيت الترم الأول'!Z3","v":10}]
[null,"المادة","عربي","انجليزي","دراسات","رياضيات","علوم","التربية \nالفنية","الحاسب\n الآلي","المجموع\nالكلي","نشاط\n مصاحب","التربية \nالدينية","اللغة\nالفرنسية","ملاحظـــات"]
[null,"العظمى",100,100,100,100,100,100,100,700,10,100,100,"الكشط أو التعديل\n يلغي الشهادة"]
[null,"درجات الطالب",{"$f":"IF($H$3>0,LOOKUP($H$3,'شيت الترم الأول'!$BB$8:$BB$507,'شيت الترم الأول'!$L$8:$L$507),\"\")","v":100},{"$f":"IF($H$3>0,LOOKUP($H$3,'شيت الترم الأول'!$BB$8:$BB$507,'شيت الترم الأول'!$O$8:$O$507),\"\")","v":100},{"$f":"IF($H$3>0,LOOKUP($H$3,'شيت الترم الأول'!$BB$8:$BB$507,'شيت الترم الأول'!$R$8:$R$507),\"\")","v":100},{"$f":"IF($H$3>0,LOOKUP($H$3,'شيت الترم الأول'!$BB$8:$BB$507,'شيت الترم الأول'!$V$8:$V$507),\"\")","v":80},{"$f":"IF($H$3>0,LOOKUP($H$3,'شيت الترم الأول'!$BB$8:$BB$507,'شيت الترم الأول'!$Z$8:$Z$507),\"\")","v":100},{"$f":"IF($H$3>0,LOOKUP($H$3,'شيت الترم الأول'!$BB$8:$BB$507,'شيت الترم الأول'!$AC$8:$AC$507),\"\")","v":100},{"$f":"IF($H$3>0,LOOKUP($H$3,'شيت الترم الأول'!$BB$8:$BB$507,'شيت الترم الأول'!$AG$8:$AG$507),\"\")","v":100},{"$f":"IF(C10=\"\",\"\",SUM(C10:I10))","v":680},{"$f":"IF($H$3>0,LOOKUP($H$3,'شيت الترم الأول'!$BB$8:$BB$507,'شيت الترم الأول'!$AJ$8:$AJ$507),\"\")","v":10},{"$f":"IF($H$3>0,LOOKUP($H$3,'شيت الترم الأول'!$BB$8:$BB$507,'شيت الترم الأول'!$AM$8:$AM$507),\"\")","v":100},{"$f":"IF($H$3>0,LOOKUP($H$3,'شيت الترم الأول'!$BB$8:$BB$507,'شيت الترم الأول'!$AP$8:$AP$507),\"\")","v":100}]
[null,"التقدير",{"$f":"IF(C10=\"\",\"\",IF(C10=\"غ\",\"غ\",IF(C10<50,\"دون المستوى\",IF(AND(C10>=50,C10<65),\"مقبول\",IF(AND(C10>=65,C10<75),\"جيد\",IF(AND(C10>=75,C10<85),\"جيد جداً\",\"ممتاز\"))))))","v":"ممتاز"},{"$f":"IF(D10=\"\",\"\",IF(D10=\"غ\",\"غ\",IF(D10<50,\"دون المستوى\",IF(AND(D10>=50,D10<65),\"مقبول\",IF(AND(D10>=65,D10<75),\"جيد\",IF(AND(D10>=75,D10<85),\"جيد جداً\",\"ممتاز\"))))))","v":"ممتاز"},"ممتاز","جيد جداً","ممتاز","ممتاز","ممتاز",{"$f":"IF(J10=\"\",\"\",IF(J10=\"غ\",\"غ\",IF(J10<350,\"دون المستوى\",IF(AND(J10>=350,J10<455),\"مقبول\",IF(AND(J10>=455,J10<525),\"جيد\",IF(AND(J10>=525,J10<595),\"جيد جداً\",\"ممتاز\"))))))","v":"ممتاز"},{"$f":"IF(K10=\"\",\"\",IF(K10=\"غ\",\"غ\",IF(K10<5,\"دون المستوى\",IF(AND(K10>=5,K10<6.5),\"مقبول\",IF(AND(K10>=6.5,K10<7.5),\"جيد\",IF(AND(K10>=7.5,K10<8.5),\"جيد جداً\",\"ممتاز\"))))))","v":"ممتاز"},{"$f":"IF(L10=\"\",\"\",IF(L10=\"غ\",\"غ\",IF(L10<50,\"دون المستوى\",IF(AND(L10>=50,L10<65),\"مقبول\",IF(AND(L10>=65,L10<75),\"جيد\",IF(AND(L10>=75,L10<85),\"جيد جداً\",\"ممتاز\"))))))","v":"ممتاز"},{"$f":"IF(M10=\"\",\"\",IF(M10=\"غ\",\"غ\",IF(M10<50,\"دون المستوى\",IF(AND(M10>=50,M10<65),\"مقبول\",IF(AND(M10>=65,M10<75),\"جيد\",IF(AND(M10>=75,M10<85),\"جيد جداً\",\"ممتاز\"))))))","v":"ممتاز"},"الترتيب",null,{"$f":"IF($H$3>0,LOOKUP($H$3,'شيت الترم الأول'!$BB$8:$BB$509,'شيت الترم الأول'!$BE$8:$BE$509),\"\")","v":1}]
[null,"برمجة وتصميم : أ / محمود السايح مدرس العلوم بمدرسة / د . رفعت المحجوب ع . م . بنين ت : 0107510869"]
[]
[]
[null,"رئيس لجنة النظام والمراقبة",null,null,null,null,null,"مدير المدرسة",null,null,null,"مدير إدارة المدرسة"]
[]
[null,{"$f":"IF('البيانات الأساسية'!B7=\"\",\"\",'البيانات الأساسية'!B7)","v":"محمد علي"},null,null,null,null,null,{"$f":"IF('البيانات الأساسية'!B8=\"\",\"\",'البيانات الأساسية'!B8)","v":"محمود علي"},null,null,null,{"$f":"IF('البيانات الأساسية'!B9=\"\",\"\",'البيانات الأساسية'!B9)","v":"السيد علي"}]
[]
[]
[]
[null,"إدارة",{"$f":"IF('البيانات الأساسية'!B3=\"\",\"\",'البيانات الأساسية'!B3)","v":"المنتزه التعليمية"}]
[null,"مدرسة",{"$f":"IF('البيانات الأساسية'!B4=\"\",\"\",'البيانات الأساسية'!B4)","v":"محمد اسماعيل"},null,null,null,null,null,null,null,null,null,"الصف",{"$f":"IF('البيانات الأساسية'!B6=\"\",\"\",'البيانات الأساسية'!B6)","v":"الصف الأول الإعدادي"}]
[]
[]
[null,"اسم الطالب",null,{"$f":"IF($H$3>0,LOOKUP($H$3,'شيت الترم الأول'!$BC$8:$BC$507,'شيت الترم الأول'!$C$8:$C$507),\"\")","v":"جابر مخمد"},null,null,null,null,null,null,null,"رقم الجلوس","رقم الجلوس",{"$f":"IF($H$3>0,LOOKUP($H$3,'شيت الترم الأول'!$BC$8:$BC$507,'شيت الترم الأول'!$B$8:$B$507),\"\")","v":104}]
[]
[null,"المادة","عربي","انجليزي","دراسات","رياضيات","علوم","التربية \nالفنية","الحاسب\n الآلي","المجموع\nالكلي","نشاط \nمصاحب","التربية \nالدينية","اللغة\nالفرنسية","ملاحظـــات"]
[null,"العظمى",100,100,100,100,100,100,100,700,10,100,100,"الكشط أو التعديل\n يلغي الشهادة"]
[null,"درجات الطالب",{"$f":"IF($H$3>0,LOOKUP($H$3,'شيت الترم الأول'!$BC$8:$BC$507,'شيت الترم الأول'!$L$8:$L$507),\"\")","v":100},{"$f":"IF($H$3>0,LOOKUP($H$3,'شيت الترم الأول'!$BC$8:$BC$507,'شيت الترم الأول'!$O$8:$O$507),\"\")","v":100},{"$f":"IF($H$3>0,LOOKUP($H$3,'شيت الترم الأول'!$BC$8:$BC$507,'شيت الترم الأول'!$R$8:$R$507),\"\")","v":100},{"$f":"IF($H$3>0,LOOKUP($H$3,'شيت الترم الأول'!$BC$8:$BC$507,'شيت الترم الأول'!$V$8:$V$507),\"\")","v":80},{"$f":"IF($H$3>0,LOOKUP($H$3,'شيت الترم الأول'!$BC$8:$BC$507,'شيت الترم الأول'!$Z$8:$Z$507),\"\")","v":100},{"$f":"IF($H$3>0,LOOKUP($H$3,'شيت الترم الأول'!$BC$8:$BC$507,'شيت الترم الأول'!$AC$8:$AC$507),\"\")","v":100},{"$f":"IF($H$3>0,LOOKUP($H$3,'شيت الترم الأول'!$BC$8:$BC$507,'شيت الترم الأول'!$AG$8:$AG$507),\"\")","v":100},{"$f":"IF(C29=\"\",\"\",SUM(C29:I29))","v":680},{"$f":"IF($H$3>0,LOOKUP($H$3,'شيت الترم الأول'!$BC$8:$BC$507,'شيت الترم الأول'!$AJ$8:$AJ$507),\"\")","v":10},{"$f":"IF($H$3>0,LOOKUP($H$3,'شيت الترم الأول'!$BC$8:$BC$507,'شيت الترم الأول'!$AM$8:$AM$507),\"\")","v":100},{"$f":"IF($H$3>0,LOOKUP($H$3,'شيت الترم الأول'!$BC$8:$BC$507,'شيت الترم الأول'!$AP$8:$AP$507),\"\")","v":100}]
[null,"التقدير",{"$f":"IF(C29=\"\",\"\",IF(C29=\"غ\",\"غ\",IF(C29<50,\"دون المستوى\",IF(AND(C29>=50,C29<65),\"مقبول\",IF(AND(C29>=65,C29<75),\"جيد\",IF(AND(C29>=75,C29<85),\"جيد جداً\",\"ممتاز\"))))))","v":"ممتاز"},{"$f":"IF(D29=\"\",\"\",IF(D29=\"غ\",\"غ\",IF(D29<50,\"دون المستوى\",IF(AND(D29>=50,D29<65),\"مقبول\",IF(AND(D29>=65,D29<75),\"جيد\",IF(AND(D29>=75,D29<85),\"جيد جداً\",\"ممتاز\"))))))","v":"ممتاز"},"ممتاز","جيد جداً","ممتاز","ممتاز","ممتاز",{"$f":"IF(J29=\"\",\"\",IF(J29=\"غ\",\"غ\",IF(J29<350,\"دون المستوى\",IF(AND(J29>=350,J29<455),\"مقبول\",IF(AND(J29>=455,J29<525),\"جيد\",IF(AND(J29>=525,J29<595),\"جيد جداً\",\"ممتاز\"))))))","v":"ممتاز"},{"$f":"IF(K29=\"\",\"\",IF(K29=\"غ\",\"غ\",IF(K29<5,\"دون المستوى\",IF(AND(K29>=5,K29<6.5),\"مقبول\",IF(AND(K29>=6.5,K29<7.5),\"جيد\",IF(AND(K29>=7.5,K29<8.5),\"جيد جداً\",\"ممتاز\"))))))","v":"ممتاز"},"ممتاز","ممتاز","الترتيب",null,{"$f":"IF($H$3>0,LOOKUP($H$3,'شيت الترم الأول'!$BC$8:$BC$509,'شيت الترم الأول'!$BE$8:$BE$509),\"\")","v":1}]
[null,"برمجة وتصميم : أ / محمود السايح مدرس العلوم بمدرسة / د . رفعت المحجوب ع . م . بنين ت : 0107510869"]
[]
[]
[null,"رئيس لجنة النظام والمراقبة",null,null,null,null,null,"مدير المدرسة",null,null,null,"مدير إدارة المدرسة"]
[]
[null,{"$f":"IF('البيانات الأساسية'!B7=\"\",\"\",'البيانات الأساسية'!B7)","v":"محمد علي"},null,null,null,null,null,{"$f":"IF('البيانات الأساسية'!B8=\"\",\"\",'البيانات الأساسية'!B8)","v":"محمود علي"},null,null,null,{"$f":"IF('البيانات الأساسية'!B9=\"\",\"\",'البيانات الأساسية'!B9)","v":"السيد علي"}]